Workbook

Sheet MASTER COPY (hidden)
A1: 1 | B1: 2 | N1: New Net Mtr # from C2 NOT Listed starting 11/1/2015 | AK1: **************** | AW1: 1 | BG1: 2 | BV1: **OPERATE | CA1: = Closed / Do Not Use | CE1: = Pending Closure / Do Not Use | CH1: = Closed / Do Not Use | CK1: 3 | CN1: 4 | CO1: = Pending Closure / Do Not Use | CS1: = Closed / Do Not Use | CV1: = Pending Closure / Do Not Use | CY1: = Closed / Do Not Use | DB1: 6 | DJ1: 7 | DX1: ***MUST be filled in for DRTS*** | EC1: ***MUST be filled in for DRTS*** | FU1: Stopped tracking as of 11/10/2015
AD2: Public = Class 2 or 3 ONLY, Private excl. Simp. | BU2: 10 Days | BV2: DATE** | CA2: = Pending Closure / Do Not Use | CE2: = Active | CO2: = Active | CU2: 5 | CV2: = Active
C3: DOER | H3: DOER | K3: rvisd | T3: DOER | V3: DOER | W3: DOER | Y3: DOER | AN3: DOER | AO3: WMECO | AP3: DOER | AR3: DOER | AS3: WMECO | AT3: WMECO | AU3: DOER | AV3: WMECO | AW3: DOER | AX3: WMECO | AY3: WMECO | AZ3: WMECO | BA3: WMECO | BB3: WMECO | BC3: WMECO | BD3: WMECO | BE3: DOER | BF3: DOER | BG3: DOER | BH3: for SQ reporting as of 5/1/2014 | BL3: DOER | BM3: WMECO | BO3: 3rd Party | BP3: Landowner | BS3: DOER | BU3: WMECO | BV3: DOER | BW3: WMECO | BX3: WMECO | BY3: DOER | CA3: = Active | CE3: WMECO | CF3: WMECO | CG3: WMECO | CH3: WMECO | CI3: DOER | CJ3: DOER | CK3: DOER | CL3: DOER | CM3: DOER | CN3: DOER | CO3: WMECO | CP3: WMECO | CQ3: WMECO | CR3: WMECO | CS3: DOER | CT3: DOER | CU3: DOER | CV3: WMECO | CW3: WMECO | CX3: WMECO | CY3: WMECO | CZ3: DOER | DA3: DOER | DB3: DOER | DC3: WMECO | DD3: WMECO | DE3: WMECO | DF3: WMECO | DG3: DOER | DH3: DOER | DI3: DOER | DJ3: DOER | DK3: WMECO | DL3: DOER | DM3: DOER | DN3: WMECO | DO3: DOER
A4: 2016-02-03T12:29:30.580 | C4: Expedited / Standard Process | D4: for SQ Reporting | F4: Project Status | H4: Facility ID | K4: 4-13-12 EIA Report | L4: BA# | M4: SA# | N4: Meter # | O4: Site # | T4: City/Town | V4: Zip Code | W4: Company Name | Y4: Circuit Name | AD4: Proposed Net Meter 3% minus Simp vs 3% | AF4: As of 2/16/11 | AH4: *** See Note in Cell A1 | AM4: EIA Report | AN4: Design Capacity | AO4: Internal Use ONLY Design Capacity | AP4: Fuel Type | AQ4: internal | AR4: Date Application Received | AS4: Internal Use ONLY as of 4/10/2013 | AT4: Internal Use ONLY as of 4/10/2013 | AU4: Date Application Deemed Complete | AV4: Internal Use ONLY as of 4/11/2013 | AW4: Customer Time Lapsed (Workdays) | AX4: Simplified | AY4: Simplified | AZ4: Customer Time Lapsed (Workdays) | BA4: Simplified Plus 5 as of 8/21/2013 | BB4: Simplified Plus 5 | BC4: Simplified Plus 5 | BD4: Customer Time Lapsed (Workdays) | BE4: New DOER | BF4: New DOER | BG4: Customer Time Lapsed (Workdays) | BH4: IA Phase | BI4: IA Phase | BJ4: IA Phase | BK4: Timeline Verification | BL4: Date Interconnection Agreement Sent | BM4: For Internal Use ONLY as of 1/1/2011 | BN4: As of 8/25/09 | BO4: 3rd Party needed | BP4: Landowner needed | BQ4: as of 8/11/10 | BR4: As of 8/25/09 | BS4: System Modifications Required | BU4: As of 8/21/2013 | BV4: Authorization to Interconnect | BW4: For Internal Use ONLY as of 8/21/2013 | BX4: Customer Time Lapsed (Workdays) | BY4: Customer's Estimated In-Service Date | CA4: internal | CB4: internal | CC4: internal | CD4: internal | CE4: internal | CF4: internal | CG4: internal | CH4: internal | CI4: New DOER | CJ4: New DOER | CK4: Customer Time Lapsed (Workdays) | CL4: New DOER | CM4: New DOER | CN4: Customer Time Lapsed (Workdays) | CO4: internal | CP4: internal | CQ4: internal | CR4: internal | CS4: New DOER | CT4: New DOER | CU4: Customer Time Lapsed (Workdays) | CV4: internal | CW4: internal | CX4: internal | CY4: internal | CZ4: New DOER | DA4: New DOER | DB4: Customer Time Lapsed (Workdays) | DC4: internal | DD4: internal | DE4: internal | DF4: internal | DG4: New DOER | DH4: New DOER | DI4: New DOER | DJ4: Customer Time Lapsed (Workdays) | DK4: internal | DL4: New DOER | DM4: New DOER | DN4: internal | DO4: NOTES | DV4: Method of | DX4: Electric Customer Contact Info from Exhibit H section 6.1 | EC4: Interconnecting Customer Contact Info from Section 17.1 of the IA Agreement. | EJ4: Meter Reporting | EX4: Planning & Ordering | FP4: April 1st QF Report | FQ4: Mike Hall - columns added for FERC review | FS4: EIA-861 | FT4: Have Application
A5: 2016-02-03T12:29:30.580 | B5: 3rd Party Owner NAME | C5: Requires Monthly Report to DOER "SIMP" "EXP" "STD" "COMP" "ISO" "OTHER" | D5: Negotiated Timeline, Early ISA, Group | E5: WMECO DG Project Manager | F5: In Process / Completed / Cancelled / Removed / Withdrawn / Cust Hold | G5: Date Cancelled / Removed / Withdrawn Cust Hold | H5: WMECO Tracking ID | I5: STORMS Work Request Number | J5: Elect. Rate | K5: Residential / Commercial / Industrial | L5: C2 Billing Account # | M5: C2 Service Account # | N5: Meter Numbers | O5: Site ID | P5: Street # | Q5: Street This is the SERVICE ADDRESS from C2 | R5: Unit Type | S5: Unit Value | T5: Town | U5: State | V5: ZIP | W5: Company Name | X5: Substation | Y5: Circuit * | Z5: For Bill O'Hara PTF | AA5: For Bill O'Hara non-PTF | AB5: Prime Mover | AC5: Description | AD5: private 3% / public 3% per Mike to Cindy as of Nov 14 | AE5: Has CADMUS Approval | AF5: Host Customer = Municipality or Governmental entity (DPU) | AG5: Date Schedule Z Received | AH5: 1% | AI5: For Solar = Aggregate Capacity for 1% = 80% of DC-STC (KW) | AJ5: For Solar = DC-STC (KW) | AK5: Compensation for Net Metering | AL5: Send sales payment info form to Craig Holmes | AM5: Total AC (KW) | AN5: Design Capacity (kW) AC | AO5: Capacity (kW) AC insurance req'd | AP5: Fuel Type | AQ5: Year application received | AR5: Date Appl Rcvd - as of 8/28/2013 appl rcvd after 4pm is next day | AS5: Date 3 Day Ack Sent | AT5: Number of Business Days for 3 day Acknowledgement | AU5: Date Application Complete | AV5: Number of Business Days for 10 day "Date Appl Complete" | AW5: Number workdays "clock" stoppage 10 day "Cust for Ap Compl" | AX5: SIMP Date "15 day" Review of Screens Begun | AY5: SIMP Date "15 day" Review of Screens Completed | AZ5: Number workdays "clock" stoppage by Cust "Screen Review" | BA5: "SIMP" or "SIMP5" | BB5: Date "5 day" Start SVC type / New Svc Review Begun | BC5: Date "5 day" Start SVC type / New Svc Review Complete | BD5: Number workdays "clock" stoppage by Cust "Service Review" | BE5: EXP Date "25 day" Review of Screens Begun | BF5: EXP Date "25 day" Review of Screens Completed | BG5: Number workdays "clock" stoppage by Cust "Screen Review" | BH5: Date IA Begun | BI5: Date IA Sent | BJ5: Customer Time Lapsed (Workdays) enter workdays of "clock" stoppage by Customer | BK5: Date Timeline Verification Email Sent | BL5: Date Agreement Sent "Approval to Install" | BM5: Number of Business Days for Application "Approval to Install". | BN5: IA on File (date received) | BO5: 3rd Party doc - on File (date rcvd) | BP5: Landowner doc - on File (date rcvd) | BQ5: Insurance Required Min Amount | BR5: Insurance - Valid through | BS5: Requires Monthly Report to DOER "Yes" or "No" or "TBD" | BT5: SOG Required for Dispatch? | BU5: Date "10 days" Certificate of Completion Received | BV5: In-Service Date (On-Line) "Approval to Operate" | BW5: Number of Business Days for Application "Approval to Operate". | BX5: Number workdays "clock" stop by Cust "Compl Docs" | BY5: Estimated In-Service Date | BZ5: Transfer of Owner Form Required (enter date received) | CA5: DG Work Order # | CB5: Application Fee Dollars Received | CC5: DG Work Order Actuals | CD5: Balance on CLOSED DG work order | CE5: WMECO - Work Order # for Supplemental Review | CF5: WMECO - $ Estimate for Supplemental Review | CG5: WMECO - $ Actuals for Supplemental Review | CH5: WMECO - Date WMECO executed Supplemental Review Agreement | CI5: Date "20 Days" Supplemental Review Begun | CJ5: Date "20 Days" Supplemental Review Complete | CK5: Number workdays of "clock" stoppage by Customer | CL5: Date "20 Day" Standard Process Initial Review Begun | CM5: Date "20 Day" Standard Process Initial Review Complete | CN5: Number workdays of "clock" stoppage by Customer | CO5: WMECO - Work Order # for Impact Study | CP5: WMECO - $ Estimate for Impact Study | CQ5: WMECO - $ Actuals for Impact Study | CR5: WMECO - Date WMECO executed Impact Study Agreement | CS5: Date "55 Days" Impact Study Begun | CT5: Date "55 Days" Impact Study Sent | CU5: Number workdays of "clock" stoppage by Customer | CV5: WMECO - Work Order # for Detailed Study | CW5: WMECO - $ Estimate for Detailed Study | CX5: WMECO - $ Actuals for Detailed Study | CY5: WMECO - Date WMECO executed Detailed Study Agreement | CZ5: Date Detailed "30 Days" Study Begun | DA5: Date "30 Days" Detailed Study Sent | DB5: Number workdays of "clock" stoppage by Customer | DC5: WMECO - Total $ for Upgrade Estimate | DD5: WMECO - Construction Estimate | DE5: WMECO - CIAC Estimate | DF5: WMECO - $ Actuals for Construction without CIAC | DG5: Construction Commitment Date (negotiated) | DH5: Date Construction Begun (negotiated) | DI5: Date Construction Completed (negotiated) | DJ5: Number workdays of "clock" stoppage by Customer | DK5: WITNESS TEST Work Order # | DL5: Date Witness Test Scheduled (part of 10 Day Completion) | DM5: Date Witness Test Completed (part of 10 Day Completion) | DN5: WMECO - $ Actuals for Witness Test | DO5: Requires Monthly Report to DOER | DP5: In Service Year | DQ5: Send protection review reminder letter (1 yr notice from due date in column K) | DR5: Protection review required every 6 yrs from in-service date | DS5: Certified Relay Test Results RECEIVED DATE | DT5: Certified Relay Test Results APPROVED by Protection YES / NO | DU5: Yearly O&M maint billing Per IA | DV5: Delivery | DW5: Comments | DX5: Electric Customer Contact Name | DY5: Electric Customer Mailing Address | DZ5: Electric Customer Mailing Town | EA5: Electric Customer Mailing State | EB5: Electric Customer Mailing Zip | EC5: Name | ED5: Street | EE5: Town | EF5: State | EG5: Zip | EH5: Phone | EI5: Fax | EJ5: Y if include on monthly report to meter departments | EK5: Estimated Meter Need Date | EL5: Estimated Meter Install Date | EM5: Meter Engineering Review | EN5: Primary Meter Request Form Sent | EO5: CT/PT Ordered | EP5: Current Transformers | EQ5: Voltage Transformers | ER5: Meter Ordered | ES5: Meter Voltage | ET5: Meter Type | EU5: Meter Phone Number | EV5: Company, CCC, Construction Work Order Number, Activity | EW5: Work Request | EX5: Y if include on monthly report to Dave Thomas / planners and Frank Vancini | EY5: Likelyhood of Being Built | EZ5: Impact Study Status | FA5: Work Order written? | FB5: Long Lead Time Materials ordered? | FC5: Technician | FD5: Estimated Construction Start | FE5: Estimated Construction End | FF5: Estimated Generation ISD | FG5: Construction Description | FH5: Construction Dollars (does not include CIAC) | FI5: S/S, EM, Test | FJ5: OH | FK5: UG | FL5: Trees | FM5: Meters | FN5: Project Status | FO5: ISO Notify 1 - 5 MW / ISO APP 5 + MW | FP5: QF - for yearly DPU 220 CMR reporting | FQ5: FERC Jurisdic- tional ? | FR5: IA on File - for FERC Review 2-25-11 | FS5: FERC Report Com/Ind & Sync & <1 MW | FT5: if *****, may not be in service | FU5: Date Meter requested
A6: Robert Mazer | C6: OTHER | F6: Completed | H6: 6A1-2003 | J6: R1 | K6: R | L6: 54952202059 | M6: 170541000 | N6: 888508262 | O6: 303942004 | P6: 100 | Q6: Larkspur Dr | T6: Amherst | U6: MA | V6: 01002 | W6: WMECO | X6: =LEFT(Y6,3) -> 17K | Y6: 17K8 | AA6: non-PTF | AB6: Photovoltaic | AC6: Inverter | AD6: No Cap | AE6: n/a | AG6: 2010-04-27 | AH6: 2.112 | AI6: =AJ6*0.8 -> 2.112 | AJ6: 2.64 | AK6: Class 1 (Solar / Wind) | AM6: 2.4 | AN6: 2.4 | AO6: 2.4 | AP6: Solar | AQ6: 2003 | AR6: n.r. | AS6: n.r. | AT6: n/a | AU6: n.r. | AV6: n/a | BL6: n.r. | BM6: n/a | BN6: n/a | BQ6: 0 | BR6: n/a | BV6: 2003-08-01 | BZ6: no | DP6: 2003 | DV6: net metering | FP6: Y | FR6: Y | FS6: N
A7: John J. Czajkowski | F7: Completed | H7: 6A2-2004 | J7: R1 | K7: R | L7: 54290702042 | M7: 433841003 | N7: 888243692 | O7: 893652003 | P7: 133 | Q7: Mount Warner Rd | T7: Hadley | U7: MA | V7: 01035 | W7: WMECO | X7: 18G | Y7: 18G4 | AA7: non-PTF | AB7: Photovoltaic | AC7: Inverter | AD7: No Cap | AE7: n/a | AG7: 2009-12-15 | AH7: 2.08 | AI7: =AJ7*0.8 -> 2.08 | AJ7: 2.6 | AK7: Class 1 (Solar / Wind) | AM7: 2.1 | AN7: 2.1 | AO7: 2.1 | AP7: Solar | AQ7: 2004 | AR7: n.r. | AS7: n.r. | AT7: n/a | AU7: n.r. | AV7: n/a | BL7: n.r. | BM7: n/a | BN7: n/a | BQ7: 0 | BR7: n/a | BV7: 2004-06-04 | BZ7: no | DP7: 2004 | DV7: net metering | FP7: Y | FR7: Y | FS7: N
A8: Christina Clarke | F8: Completed | H8: 6A3-2004 | J8: R1 | K8: R | L8: 54356602011 | M8: 073741002 | N8: 888508362 | O8: 553552000 | P8: 329 | Q8: Pine St | T8: Amherst | U8: MA | V8: 01002 | W8: WMECO | X8: 18G | Y8: 18G7 | AA8: non-PTF | AB8: Photovoltaic | AC8: Inverter | AD8: No Cap | AE8: n/a | AG8: 2009-12-30 | AH8: 1.8 | AI8: =AJ8*0.8 -> 0 | AK8: Class 1 (Solar / Wind) | AM8: 1.8 | AN8: 1.8 | AO8: 1.8 | AP8: Solar | AQ8: 2004 | AR8: n.r. | AS8: n.r. | AT8: n/a | AU8: n.r. | AV8: n/a | BL8: n.r. | BM8: n/a | BN8: n/a | BQ8: 0 | BR8: n/a | BV8: 2004-06-04 | BZ8: no | DP8: 2004 | DV8: net metering | FP8: Y | FR8: Y | FS8: N
A9: Open Fields Foundation Inc | F9: Completed | H9: 6A4-2004 | J9: R1 | K9: R | L9: 54265171017 | M9: 343621008 | N9: 890471312 | O9: 171712000 | P9: 593 | Q9: South Pleasant St | T9: Amherst | U9: MA | V9: 01002 | W9: WMECO | X9: 17K | Y9: 17K6 | AA9: non-PTF | AB9: Photovoltaic | AC9: Inverter | AD9: No Cap | AG9: 2010-01-25 | AH9: 2.1 | AI9: =AJ9*0.8 -> 0 | AK9: Class 1 (Solar / Wind) | AM9: 2.1 | AN9: 2.1 | AO9: 2.1 | AP9: Solar | AQ9: 2004 | AR9: n.r. | AS9: n.r. | AT9: n/a | AU9: n.r. | AV9: n/a | BL9: n.r. | BM9: n/a | BN9: n/a | BQ9: 0 | BR9: n/a | BV9: 2004-11-04 | BZ9: no | DP9: 2004 | DV9: net metering | FP9: Y | FR9: Y | FS9: N
A10: Andrew Bellak | F10: Completed | H10: 6A5-2004 | J10: R1 | K10: R | L10: 54525091021 | M10: 533731002 | N10: 890662482 | O10: 063732001 | P10: 216 | Q10: Lincoln Ave | T10: Amherst | U10: MA | V10: 01002 | W10: WMECO | X10: 17K | Y10: 17K4 | AA10: non-PTF | AB10: Photovoltaic | AC10: Inverter | AD10: No Cap | AE10: n/a | AG10: 2010-03-03 | AH10: 2.3 | AI10: =AJ10*0.8 -> 0 | AK10: Class 1 (Solar / Wind) | AM10: 2.3 | AN10: 2.3 | AO10: 2.3 | AP10: Solar | AQ10: 2004 | AR10: n.r. | AS10: n.r. | AT10: n/a | AU10: n.r. | AV10: n/a | BL10: n.r. | BM10: n/a | BN10: n/a | BQ10: 0 | BR10: n/a | BV10: 2005-06-01 | BZ10: no | DP10: 2005 | DV10: net metering | FO10: removed - approved | FR10: N.R. | FS10: N (4MW sync) | FT10: removed
A11: UMASS - Steam Plant | F11: Removed | H11: 6A6-2004 | J11: T2 | L11: 54548734086 | M11: 372092009 | N11: 058883271 | O11: 634105006 | P11: 360 | Q11: Campus Center Way - Umass Campus | T11: Amherst | U11: MA | V11: 01002 | W11: WMECO | X11: 18G | Y11: 18G1 & 18G2 | AA11: non-PTF | AB11: Steam Turbine | AC11: cogeneration facility | AD11: n/a | AG11: n/a | AH11: 0 | AK11: N/A | AN11: 4000 | AO11: 4000 | AP11: Coal | AQ11: 2004 | AR11: n.r. | AS11: n.r. | AU11: n.r. | BN11: n/a | BQ11: n/a | BR11: n/a | BT11: N/A | BV11: 2005-12-01 | BZ11: no | CA11: WDGCG402 | DP11: 2005 - removed | DV11: no export | DW11: removed 2008 | EC11: Ray Jackson | ED11: 360 Campus Center Way | EE11: Amherst | EF11: MA | EG11: 01002 | EH11: 413-545-0605 | EI11: 413-545-1450 | FP11: Y | FR11: Y | FS11: N
A12: Robert Lynch | B12: Riverland Farm - Scott Reed | F12: Completed | H12: 6A6-2005 | J12: G0 | K12: C | L12: 54352434088 | M12: 310882009 | N12: 891141102 | O12: 582594005 | P12: 195 | Q12: River Rd | T12: Sunderland | U12: MA | V12: 01375 | W12: WMECO | X12: 18G | Y12: 18G6 | AA12: non-PTF | AB12: Photovoltaic | AC12: Inverter | AD12: No Cap | AE12: n/a | AG12: 2012-03-12 | AH12: 2.85 | AK12: Class 1 (Solar / Wind) | AM12: 2.85 | AN12: 2.85 | AO12: 2.85 | AP12: Solar | AQ12: 2005 | AR12: 2005-08-24 | AU12: n.r. | AV12: n/a | BL12: 2005-09-06 | BN12: n/a | BO12: ?? | BQ12: 0 | BR12: n/a | BV12: 2006-04-13 | BZ12: 2008-02-26 | DP12: 2006 | DV12: net metering | DW12: now Robert Lynch on electric account but Scott Reed still owns the place | FP12: Y | FR12: Y | FS12: N
A13: Neil Immerman | F13: Completed | H13: 6A7-2005 | J13: R1 | K13: R | L13: 54399861020 | M13: 994521001 | N13: 890834942 | O13: 536512001 | P13: 37 | Q13: Hillcrest Pl | T13: Amherst | U13: MA | V13: 01002 | W13: WMECO | X13: 17K | Y13: 17K6 | AA13: non-PTF | AB13: Photovoltaic | AC13: Inverter | AD13: No Cap | AE13: n/a | AG13: 2009-12-30 | AH13: 2.736 | AI13: =AJ13*0.8 -> 2.736 | AJ13: 3.42 | AK13: Class 1 (Solar / Wind) | AM13: 3.42 | AN13: 3.42 | AO13: 3.42 | AP13: Solar | AQ13: 2005 | AR13: 2005-09-09 | AU13: n.r. | AV13: n/a | BL13: 2005-09-19 | BN13: n/a | BQ13: 0 | BR13: n/a | BV13: 2005-10-01 | BZ13: no | DP13: 2005 | DV13: net metering | FR13: N.R. | FS13: N | FT13: cancelled
A14: Indian River Hydro | C14: STD | F14: Cancelled | H14: 6A7H-2005 | Q14: Station Rd | T14: Russell | U14: MA | V14: 01071 | W14: WMECO | X14: 19J | Y14: 19J1 | Z14: PTF | AB14: Hydro | AC14: hydro generating facility | AD14: n/a | AG14: n/a | AK14: N/A | AO14: 300 + 400 | AP14: Hydro | AQ14: 2005 | AR14: 2005-08-02 | AU14: n.r. | AV14: canc | BN14: n/a | BQ14: n/a | BR14: n/a | BT14: N/A | BZ14: no | CA14: WDGHY501 | DP14: Cancelled | DV14: n/a - generator | DW14: cancelled per customer request | FO14: approved | FP14: Y | FR14: Y | FS14: N (9MW sync)
A15: UMASS - Central Heating Plant (See 6A54-2008) | B15: UMBA | F15: Completed | H15: 6A8-2005 | J15: T2 | L15: 54548734086 | M15: 013092007 | N15: 058883131 | O15: 634105006 | P15: 200 | Q15: Mullins Way - Umass Campus | T15: Hadley | U15: MA | V15: 01002 | W15: WMECO | X15: 18G | Y15: 18G1 & 18G2 | AA15: non-PTF | AB15: Gas Turbine | AC15: cogeneration facility | AD15: n/a | AG15: no export | AH15: 0 | AK15: No Export | AN15: 9000 | AO15: 9000 | AP15: Natural Gas/Fuel Oil | AQ15: 2007 | AR15: 04/11/2007 * | AU15: 2007-10-31 | AV15: =IF(AU15=0,NETWORKDAYS(AR15,$A$4),NETWORKDAYS(AR15,AU15)) ->  | BL15: 2007-10-31 | BN15: Yes | BO15: 2007-10-31 | BQ15: $5M / $5M | BR15: 2015-04-01 | BT15: Yes | BV15: 2009-01-29 | BZ15: no | CA15: WDGCG502 | DP15: 2009 | DV15: n/a - will not export (export during 1st testing phase only) | DW15: * original application dated 2005, revised application dated 4/11/07. **yes - received insurance 04/25/08 - sent Con an email - contact correct - tariff n.r. | EC15: Umass Building Authority Attn: David MacKenzie - Executive Director | ED15: 333 South Street, 4th Floor | EE15: Shrewsbury | EF15: MA | EG15: 01545 | EH15: 7744557250 | EI15: 7744557255 | FO15: approved | FR15: new SGIA - Y | FS15: cancelled 400 + 400 = Yes | FT15: cancelled | FU15: Y
A16: Woronoco Hydro LLC | C16: STD | F16: Cancelled | H16: 6A8H-2005 | J16: G0 | L16: 54904534005 | M16: 939882006 | N16: 036020261 | O16: 625694008 | Q16: Bridge St | T16: Woronoco (Russell) | U16: MA | V16: 01071 | W16: WMECO | X16: 19J | Y16: 19J2 | Z16: PTF | AB16: Hydro | AC16: hydro generating facility | AD16: n/a | AG16: n/a | AH16: 0 | AK16: N/A | AO16: 1900 + 400 + 400 | AP16: Hydro | AQ16: 2005 | AR16: 2005-07-29 | AU16: 2005-08-12 | BL16: 2005-10-19 | BN16: Cancelled - Yes | BQ16: n/a | BR16: n/a | BT16: N/A - done 5/12/2010 | BV16: 2007-04-09 | BZ16: no | CA16: WDGHY502 | DP16: Cancelled | DV16: n/a - generator selling energy | DW16: was market participant (cancld - replaced w/ new SGIA - 2007) disconnect switch on pole (replaced by ISO-2011-2 and cancld with new SGIA 1/6/2012) | EC16: Attn: Peter Clark | ED16: 823 Bay Rd, PO Box 149 | EE16: Hamilton | EF16: MA | EG16: 01936 | EH16: 978-468-3999 | EI16: 978-468-1210 | FP16: Y | FR16: Y | FS16: N
A17: Gabor Lukacs | F17: Completed | H17: 6A9-2005 | J17: R1 | K17: R | L17: 54962191003 | M17: 374731004 | N17: 890690812 | O17: 306632009 | P17: 44 | Q17: Beston St | T17: Amherst | U17: MA | V17: 01002 | W17: WMECO | X17: 17K | Y17: 17K4 | AA17: non-PTF | AB17: Photovoltaic | AC17: Inverter | AD17: No Cap | AE17: n/a | AG17: 2010-03-29 | AH17: 0.84 | AI17: =AJ17*0.8 -> 0.84 | AJ17: 1.05 | AK17: Class 1 (Solar / Wind) | AM17: 1.8 | AN17: 1.8 | AO17: 1.8 | AP17: Solar | AQ17: 2005 | AR17: 2005-09-12 | AU17: n.r. | AV17: n/a | BL17: 2005-09-19 | BN17: n/a | BQ17: 0 | BR17: n/a | BV17: 2005-11-01 | BZ17: no | DP17: 2005 | DV17: net metering | FP17: Y | FR17: Y | FS17: N
A18: Brookfield Farm (Biodynamic Farmland Conservation Inc) (see 6A173-2011 addition) | F18: Completed | H18: 6A10-2005 | J18: G0 | K18: C | L18: 54548791094 | M18: 096241005 | N18: 890645322 | O18: 987542007 | P18: 24 | Q18: Hulst Rd | T18: Amherst | U18: MA | V18: 01002 | W18: WMECO | X18: 17K | Y18: 17K8 | AA18: non-PTF | AB18: Photovoltaic | AC18: Inverter | AD18: No Cap | AG18: see 6A173-2011 | AH18: 3.024 | AI18: =AJ18*0.8 -> 3.024 | AJ18: 3.78 | AK18: Class 1 (Solar / Wind) | AN18: 3.78 | AO18: 3.78 | AP18: Solar | AQ18: 2005 | AR18: 2005-10-04 | AU18: n.r. | AV18: n/a | BL18: 2005-10-14 | BN18: n/a | BQ18: 0 | BR18: n/a | BV18: 2005-10-01 | BZ18: no | DP18: 2005 | DV18: net metering | DW18: installed and inspected prior to approval given to install | FR18: N.R. | FS18: N | FT18: cancelled
A19: Jef Sharp | F19: Cancelled | H19: 6A10A-2005 | P19: 233B | Q19: Stanley St | T19: Amherst | U19: MA | V19: 01002 | W19: WMECO | X19: 17K | Y19: 17K8 | AA19: non-PTF | AB19: Photovoltaic | AC19: Inverter | AD19: n/a | AG19: n/a | AK19: N/A | AO19: 2 | AP19: Solar | AQ19: 2005 | AR19: 2005-09-19 | AU19: n.r. | AV19: canc | BL19: 2005-09-19 | BN19: n/a | BQ19: 0 | BR19: n/a | DP19: Cancelled | DV19: net metering | DW19: cancelled per customer request | FR19: N.R. | FS19: N | FT19: removed
A20: UMASS - Knowles Engineering Bldg | F20: Removed | H20: 6A11-2005 | J20: T2 | L20: 54548734086 | M20: 372092009 | N20: 058883271 | O20: 634105006 | P20: 151 | Q20: Holdsworth Way | T20: Amherst | U20: MA | V20: 01003 | W20: WMECO | X20: 18G | Y20: 18G1 & 18G2 | AA20: non-PTF | AB20: Photovoltaic | AC20: Inverter | AD20: n/a | AG20: n/a | AH20: 0 | AK20: N/A | AN20: 7.5 | AO20: 7.5 | AP20: Solar | AQ20: 2005 | AR20: 2005-11-12 | AU20: n.r. | BL20: 2005-11-14 | BN20: n/a | BQ20: n/a | BR20: n/a | BV20: 2005-12-01 | BZ20: no | DP20: 2005 - removed | DV20: no export | DW20: removed 12/20/10 - NO EXPORT of PV - would be Class 1 (solar/wind) | FP20: Y | FR20: Y | FS20: N
A21: Kristin Neville | C21: SIMP | F21: Completed | H21: 6A12-2006 | J21: R1 | K21: R | L21: 54436502041 | M21: 364641002 | N21: 890835012 | O21: 230352002 | P21: 18 | Q21: Tucker Rd | T21: Huntington | U21: MA | V21: 01050 | W21: WMECO | X21: 19J | Y21: 19J1 | Z21: PTF | AB21: Photovoltaic | AC21: Inverter | AD21: No Cap | AE21: n/a | AG21: 2013-02-04 | AH21: 1.52 | AI21: =AJ21*0.8 -> 1.52 | AJ21: 1.9 | AK21: Class 1 (Solar / Wind) | AM21: 2 | AN21: 2 | AO21: 2 | AP21: Solar | AQ21: 2006 | AR21: 2006-01-03 | AU21: n.r. | AV21: n/a | BL21: 2006-01-05 | BN21: n/a | BQ21: 0 | BR21: n/a | BV21: 2006-03-23 | BZ21: no | DP21: 2006 | DV21: net metering | FP21: Y | FR21: Y | FS21: N
A22: Tawnya Tiskus | C22: SIMP | F22: Completed | H22: 6A13-2006 | J22: R1 | K22: R | L22: 54199391046 | M22: 148931007 | N22: 890835432 | O22: 642042003 | P22: 94 | Q22: West St | T22: Easthampton | U22: MA | V22: 01027 | W22: WMECO | X22: 15A | Y22: 15A3 | Z22: PTF | AB22: Photovoltaic | AC22: Inverter | AD22: No Cap | AE22: n/a | AG22: 2012-05-02 | AH22: 1.824 | AI22: 1.824 | AJ22: 2.28 | AK22: Class 1 (Solar / Wind) | AM22: 2.5 | AN22: 2.5 | AO22: 2.5 | AP22: Solar | AQ22: 2006 | AR22: 2006-01-03 | AU22: n.r. | AV22: n/a | BL22: 2006-01-05 | BN22: n/a | BQ22: 0 | BR22: n/a | BV22: 2006-05-11 | BZ22: no | DP22: 2006 | DV22: net metering | FP22: Y | FR22: Y | FS22: N
A23: Kuhn Riddle Architects | F23: Completed | H23: 6A14-2006 | J23: G0 | K23: C | L23: 54526434055 | M23: 171982006 | N23: 891141252 | O23: 802694003 | P23: 28 | Q23: Amity St | R23: Suite | S23: 2A | T23: Amherst | U23: MA | V23: 01002 | W23: WMECO | X23: 17K | Y23: 17K5 | AA23: non-PTF | AB23: Photovoltaic | AC23: Inverter | AD23: Private | AG23: 2009-12-28 | AH23: 4.256 | AI23: 4.256 | AJ23: 5.32 | AK23: Class 1 (Solar / Wind) | AM23: 5.32 | AN23: 5.32 | AO23: 5.32 | AP23: Solar | AQ23: 2006 | AR23: 2006-01-03 | AU23: n.r. | AV23: n/a | BL23: 2006-02-16 | BN23: n/a | BQ23: 0 | BR23: n/a | BV23: 2006-10-31 | BZ23: no | DP23: 2006 | DV23: net metering | DW23: lock box with key near entrance for access to building and disconnect switch, 1 phase inverter on three phase service fed from 3 phase bank | FP23: Y | FR23: Y | FS23: N
A24: Jeffrey Sharp | F24: Completed | H24: 6A15-2006 | J24: R1 | K24: R | L24: 54785334053 | M24: 126782004 | N24: 890835302 | O24: 143394004 | P24: 276 | Q24: Strong St | T24: Amherst | U24: MA | V24: 01002 | W24: WMECO | X24: 17K | Y24: 17K7 | AA24: non-PTF | AB24: Photovoltaic | AC24: Inverter | AD24: No Cap | AE24: n/a | AG24: 2010-03-03 | AH24: 1.824 | AI24: 1.824 | AJ24: 2.28 | AK24: Class 1 (Solar / Wind) | AM24: 2 | AN24: 2 | AO24: 2 | AP24: Solar | AQ24: 2006 | AR24: 2006-01-03 | AU24: n.r. | AV24: n/a | BL24: 2006-01-06 | BN24: n/a | BQ24: 0 | BR24: n/a | BV24: 2006-09-21 | BZ24: no | DP24: 2006 | DV24: net metering | FP24: Y | FR24: Y | FS24: N
A25: Aaron Hayden | C25: SIMP | F25: Completed | H25: 6A16-2006 | J25: R1 | K25: R | L25: 54273091090 | M25: 011831001 | N25: 890835252 | O25: 543732008 | P25: 1491 | Q25: South East St | T25: Amherst | U25: MA | V25: 01002 | W25: WMECO | X25: 17K | Y25: 17K8 | AA25: non-PTF | AB25: Photovoltaic | AC25: Inverter | AD25: No Cap | AE25: n/a | AG25: 2010-02-08 | AH25: 3.3 | AI25: 0 | AK25: Class 1 (Solar / Wind) | AM25: 3.3 | AN25: 3.3 | AO25: 3.3 | AP25: Solar | AQ25: 2006 | AR25: 2006-01-18 | AU25: n.r. | AV25: n/a | BL25: 2006-01-26 | BN25: n/a | BQ25: 0 | BR25: n/a | BV25: 2006-12-01 | BZ25: no | DP25: 2006 | DV25: net metering | FP25: Y | FR25: Y | FS25: N
A26: Richard & Jane Wilkie | F26: Completed | H26: 6A17-2006 | J26: R1 | K26: R | L26: 54998034052 | M26: 909682003 | N26: 890807642 | O26: 570094004 | P26: 1660 | Q26: South East St | T26: Amherst | U26: MA | V26: 01002 | W26: WMECO | X26: 17K | Y26: 17K8 | AA26: non-PTF | AB26: Photovoltaic | AC26: Inverter | AD26: No Cap | AE26: n/a | AG26: 2009-12-15 | AH26: 2.5 | AI26: 0 | AK26: Class 1 (Solar / Wind) | AM26: 2.5 | AN26: 2.5 | AO26: 2.5 | AP26: Solar | AQ26: 2006 | AR26: 2006-01-20 | AU26: n.r. | AV26: n/a | BL26: 2006-01-26 | BN26: n/a | BQ26: 0 | BR26: n/a | BV26: 2006-01-26 | BZ26: no | DP26: 2006 | DV26: net metering | FP26: Y | FR26: Y | FS26: N
A27: Marvin Davenport | F27: Completed | H27: 6A18-2006 | J27: R1 | K27: R | L27: 54403502065 | M27: 624741006 | N27: 890835232 | O27: 533252004 | P27: 7 | Q27: The Jog | T27: West Hatfield | U27: MA | V27: 01039 | W27: WMECO | X27: 18G | Y27: 18G5 | AA27: non-PTF | AB27: Photovoltaic | AC27: Inverter | AD27: No Cap | AE27: n/a | AG27: 2009-12-15 | AH27: 2.5 | AI27: 0 | AK27: Class 1 (Solar / Wind) | AM27: 2.5 | AN27: 2.5 | AO27: 2.5 | AP27: Solar | AQ27: 2006 | AR27: 2006-02-27 | AU27: n.r. | AV27: n/a | BL27: 2006-03-06 | BN27: n/a | BQ27: 0 | BR27: n/a | BV27: 2006-07-21 | BZ27: no | DP27: 2006 | DV27: net metering | FP27: Y | FR27: Y | FS27: N
A28: Thomas Ewing | F28: Completed | H28: 6A19-2006 | J28: R1 | K28: R | L28: 54622534063 | M28: 145882004 | N28: 891114132 | O28: 790794005 | P28: 46 | Q28: Number Six Rd | T28: Leverett | U28: MA | V28: 01054 | W28: WMECO | X28: 18G | Y28: 18G7 | AA28: non-PTF | AB28: Photovoltaic | AC28: Inverter | AD28: No Cap | AE28: n/a | AG28: 2009-12-16 | AH28: 4.48 | AI28: 4.48 | AJ28: 5.6 | AK28: Class 1 (Solar / Wind) | AM28: 6 | AN28: 6 | AO28: 6 | AP28: Solar | AQ28: 2006 | AR28: 2006-04-20 | AU28: n.r. | AV28: n/a | BL28: 2006-04-25 | BN28: n/a | BQ28: 0 | BR28: n/a | BV28: 2007-01-31 | BZ28: no | DP28: 2007 | DV28: net metering | FP28: Y | FR28: Y | FS28: N
A29: Thomas Hartman (see 6A177-2011 addition) | F29: Completed | H29: 6A20-2006 | J29: R1 | K29: R | L29: 54452661010 | M29: 287321001 | N29: 890835412 | O29: 699112000 | P29: 4 | Q29: Amherst Rd | T29: Pelham | U29: MA | V29: 01002 | W29: WMECO | X29: 17K | Y29: 17K2 | AA29: non-PTF | AB29: Photovoltaic | AC29: Inverter | AD29: No Cap | AE29: n/a | AG29: 2009-12-09 | AH29: 1.824 | AI29: 1.824 | AJ29: 2.28 | AK29: Class 1 (Solar / Wind) | AN29: 2 | AO29: 2 | AP29: Solar | AQ29: 2006 | AR29: 2006-04-20 | AU29: n.r. | AV29: n/a | BL29: 2006-04-25 | BN29: n/a | BQ29: 0 | BR29: n/a | BV29: 2006-05-24 | BZ29: no | DP29: 2006 | DV29: net metering | FP29: Y | FR29: Y | FS29: N
A30: Joan Milan & David King (see 6A1154-2015) | F30: Completed | H30: 6A22A-2006 | J30: R1 | K30: R | L30: 54624481073 | M30: 127331004 | N30: 890835462 | O30: 630132006 | P30: 24 | Q30: Sheerman Ln | T30: Amherst | U30: MA | V30: 01002 | W30: WMECO | X30: 18G | Y30: 18G7 | AA30: non-PTF | AB30: Photovoltaic | AC30: Inverter | AD30: No Cap | AE30: n/a | AG30: 2010-03-26 | AH30: 3.68 | AI30: 0 | AK30: Class 1 (Solar / Wind) | AN30: 3.68 | AO30: 3.68 | AP30: Solar | AQ30: 2006 | AR30: 2006-07-17 | AU30: n.r. | AV30: n/a | BL30: 2006-07-17 | BN30: n/a | BQ30: 0 | BR30: n/a | BV30: 2006-09-29 | BZ30: no | DP30: 2006 | DV30: net metering | FR30: N.R. | FS30: N | FT30: cancelled
A31: Richard Chedester | C31: SIMP | F31: Cancelled | H31: 6A23-2006 | J31: R1 | K31: R | L31: 54550481063 | M31: 983303000 | N31: 891711362 | O31: 806822004 | P31: 260 | Q31: Haydenville Rd | T31: Whately | U31: MA | V31: 01093 | W31: WMECO | X31: 18G | Y31: 18G6 | AA31: non-PTF | AB31: Wind Turbine | AC31: Inverter | AD31: n/a | AG31: n/a | AK31: N/A | AO31: 1 | AP31: Wind | AQ31: 2006 | AR31: 2006-04-25 | AU31: n.r. | AV31: canc | BL31: 2006-05-16 | BN31: n/a | BQ31: 0 | BR31: n/a | BZ31: no | DP31: Cancelled | DV31: net metering | DW31: cancelled per customer request | FO31: approved | FP31: Y | FR31: Y | FS31: 500 = Yes
A32: Amherst College | C32: STD | F32: Completed | H32: 6A24-2006 | J32: T2 | L32: 54421791013 | M32: 036141004 | N32: 041503131 + 041502911 | O32: 467342009 | Q32: College St | T32: Amherst | U32: MA | V32: 01002 | W32: WMECO | X32: 17K | Y32: 17K4, (17K5 N.O.) | AA32: non-PTF | AB32: Gas Turbine & Steam Turbine | AC32: cogeneration facility | AD32: n/a | AG32: no export | AH32: 0 | AK32: No Export | AM32: 1750 | AN32: 1750 | AO32: 1250 + 500 | AP32: Natural Gas / Diesel | AQ32: 2006 | AR32: 2006-05-11 | AU32: 2007-08-10 | BL32: 2007-09-25 | BN32: Yes | BQ32: $2M / $5M | BR32: 2015-07-01 | BT32: Yes - written | BV32: 2007-12-04 | BZ32: no | CA32: WDGCG601 | DP32: 2007 | DV32: no export | EC32: Attn: Aaron Hayden | ED32: Amherst College Physical Plant PO Box 5000 (6 East Drive) | EE32: Amherst | EF32: MA | EG32: 01002-5000 | EH32: 4135422644 | EI32: 4135425789 | FR32: N.R. | FS32: N | FT32: cancelled
A33: Nina Weyl | C33: SIMP | F33: Cancelled | H33: 6A25-2006 | J33: R1 | K33: R | L33: 54157481003 | M33: 714621004 | N33: 887899012 | O33: 559032006 | P33: 101 | Q33: High St | T33: Amherst | U33: MA | V33: 01002 | W33: WMECO | X33: 17K | Y33: 17K3 | AA33: non-PTF | AB33: Photovoltaic | AC33: Inverter | AD33: n/a | AG33: n/a | AK33: N/A | AO33: 3.45 | AP33: Solar | AQ33: 2006 | AR33: 2006-05-15 | AU33: n.r. | AV33: canc | BL33: 2006-05-15 | BN33: n/a | BQ33: 0 | BR33: n/a | DP33: Cancelled | DV33: net metering | DW33: (Cancelled per cust request) 5/11/07 found out from solar installer that customer cancelled project | FP33: Y | FR33: Y | FS33: N
A34: Kent Faerber | C34: SIMP | F34: Completed | H34: 6A26-2006 | J34: R1 | K34: R | L34: 54653534008 | M34: 072882009 | N34: 890835572 | O34: 743594009 | P34: 481 | Q34: Station Rd | T34: Amherst | U34: MA | V34: 01002 | W34: WMECO | X34: 17K | Y34: 17K8 | AA34: non-PTF | AB34: Photovoltaic | AC34: Inverter | AD34: No Cap | AE34: n/a | AG34: 2009-12-09 | AH34: 2.88 | AI34: =AJ34*0.8 -> 2.88 | AJ34: 3.6 | AK34: Class 1 (Solar / Wind) | AM34: 3.6 | AN34: 3.6 | AO34: 3.6 | AP34: Solar | AQ34: 2006 | AR34: 2006-05-15 | AU34: n.r. | AV34: n/a | BL34: 2006-05-15 | BN34: n/a | BQ34: 0 | BR34: n/a | BV34: 2006-10-13 | BZ34: no | DP34: 2006 | DV34: net metering | FP34: Y | FR34: Y | FS34: N
A35: Joshua Goldstein (was Andra Rose) | C35: SIMP | F35: Removed | G35: 2015-10-02 | H35: 6A27-2006 | J35: R1 | K35: R | L35: 54585027006 | M35: 928741007 | N35: 890835652 | O35: 615552009 | P35: 16 | Q35: Poets Corner Rd | T35: Amherst | U35: MA | V35: 01002 | W35: WMECO | X35: 17K | Y35: 17K2 | AA35: non-PTF | AB35: Photovoltaic | AC35: Inverter | AD35: No Cap | AE35: n/a | AG35: 2015-06-02 | AH35: 3.45 | AI35: 0 | AK35: Class 1 (Solar / Wind) | AM35: 3.45 | AN35: 3.45 | AO35: 3.45 | AP35: Solar | AQ35: 2006 | AR35: 2006-06-27 | AU35: n.r. | AV35: n/a | BL35: 2006-06-28 | BN35: n/a | BQ35: 0 | BR35: n/a | BV35: 2006-11-30 | BZ35: 2015-05-18 | DP35: 2006 - replaced | DV35: net metering | FP35: Y | FR35: Y | FS35: N
A36: Christopher Smith (Hatfield Printing & Publishing) | F36: Completed | H36: 6A28-2006 | J36: R1 | K36: R | L36: 54631791001 | M36: 399041002 | N36: 890326842 | O36: 736652008 | P36: 19 | Q36: Prospect St | T36: Hatfield | U36: MA | V36: 01038 | W36: WMECO | X36: 18G | Y36: 18G5 | AA36: non-PTF | AB36: Photovoltaic | AC36: Inverter | AD36: No Cap | AE36: n/a | AG36: 2010-03-29 | AH36: 14.4 | AI36: 14.4 | AJ36: 18 | AK36: Class 1 (Solar / Wind) | AM36: 18 | AN36: 18 | AO36: 18 | AP36: Solar | AQ36: 2006 | AR36: 2006-07-31 | AU36: 2006-08-04 | BL36: 2006-08-04 | BN36: n/a - has IA under old rules | BQ36: 0 | BR36: n/a | BV36: 2006-08-25 | BZ36: no | CA36: WDGSL602 | DP36: 2006 | DV36: net metering | DW36: can open C/O's on pole. (3) 6 kW, single phase inverters on 3 ph service. Per CADMUS - 3 ph system - NO CAP. | EC36: Christopher Smith | ED36: 19 Prospect St | EE36: Hatfield | EF36: MA | EG36: 01038 | EH36: 413-247-5362 | FP36: Y | FR36: Y | FS36: N
A37: Ellen & Robert Meeropol (see 6A539-2014) | F37: Completed | H37: 6A30-2006 | J37: R1 | K37: R | L37: 54501302061 | M37: 128441002 | N37: 890834872 | O37: 662152005 | P37: 79 | Q37: Plain St | T37: Easthampton | U37: MA | V37: 01027 | W37: WMECO | X37: 15A | Y37: 15A5 | Z37: PTF | AB37: Photovoltaic | AC37: Inverter | AD37: No Cap | AE37: n/a | AG37: 2010-02-12 | AH37: 2.5 | AI37: 0 | AK37: Class 1 (Solar / Wind) | AN37: 2.5 | AO37: 2.5 | AP37: Solar | AQ37: 2006 | AR37: 2006-09-05 | AU37: n.r. | AV37: n/a | BL37: 2006-09-12 | BN37: n/a | BQ37: 0 | BR37: n/a | BV37: 2006-12-26 | BZ37: no | DP37: 2006 | DV37: net metering | FP37: Y | FR37: Y | FS37: N
A38: Roger Webb (see 6A295-2012 addition) | F38: Completed | H38: 6A31-2006 | J38: R1 | K38: R | L38: 54164734006 | M38: 025982007 | N38: 891113962 | O38: 251994008 | P38: 293 | Q38: Potwine Ln | T38: Amherst | U38: MA | V38: 01002 | W38: WMECO | X38: 17K | Y38: 17K8 | AA38: non-PTF | AB38: Photovoltaic | AC38: Inverter | AD38: No Cap | AE38: n/a | AG38: 2009-12-09 | AH38: 2.88 | AI38: 2.88 | AJ38: 3.6 | AK38: Class 1 (Solar / Wind) | AN38: 4 | AO38: 4 | AP38: Solar | AQ38: 2006 | AR38: 2006-09-21 | AU38: n.r. | AV38: n/a | BL38: 2006-09-25 | BN38: n/a | BQ38: 0 | BR38: n/a | BV38: 2007-03-01 | BZ38: no | DP38: 2007 | DV38: net metering | DW38: new construction | FP38: Y | FR38: Y | FS38: N
A39: Lee Edwards | F39: Completed | H39: 6A32-2006 | J39: R3 | K39: R | L39: 54355791039 | M39: 169141000 | N39: 891140442 | O39: 877242002 | P39: 5 | Q39: Wildwood Ln | T39: Amherst | U39: MA | V39: 01002 | W39: WMECO | X39: 17K | Y39: 17K7 | AA39: non-PTF | AB39: Photovoltaic | AC39: Inverter | AD39: No Cap | AE39: n/a | AG39: 2010-01-07 | AH39: 4.128 | AI39: 4.128 | AJ39: 5.16 | AK39: Class 1 (Solar / Wind) | AM39: 5.16 | AN39: 5.16 | AO39: 5.16 | AP39: Solar | AQ39: 2006 | AR39: 2006-10-20 | AU39: n.r. | AV39: n/a | BL39: 2006-10-20 | BN39: n/a | BQ39: 0 | BR39: n/a | BV39: 2006-12-31 | BZ39: no | DP39: 2006 | DV39: net metering | FP39: Y | FR39: Y | FS39: N
A40: Food Bank of Western Massachusetts | F40: Completed | H40: 6A33-2006 | J40: G0 | K40: C | L40: 54405734039 | M40: 697982000 | N40: 891169972 | O40: 414894001 | P40: 97 | Q40: North Hatfield Rd | T40: Hatfield | U40: MA | V40: 01038 | W40: WMECO | X40: 18G | Y40: 18G6 | AA40: non-PTF | AB40: Photovoltaic | AC40: Inverter | AD40: Private | AG40: 2010-04-04 | AH40: 24.192 | AI40: 24.192 | AJ40: 30.24 | AK40: Class 1 (Solar / Wind) | AM40: 25.623 | AN40: 25.623 | AO40: 25.623 | AP40: Solar | AQ40: 2006 | AR40: 2006-11-09 | AU40: 2006-11-09 | BL40: 2007-01-22 | BN40: Yes | BQ40: 0 | BR40: n/a | BV40: 2007-01-22 | BZ40: no | CA40: WDGSL603 | DP40: 2007 | DV40: net metering | DW40: external switch | EC40: Asa deRoode | ED40: 97 North Hatfield Rd | EE40: Hatfield | EF40: MA | EG40: 01038 | EH40: 413-247-9738 | EI40: 413-247-9577 | FP40: Y | FR40: Y | FS40: N
A41: Daniel & Patricia Campbell | F41: Completed | H41: 6A34-2006 | J41: R1 | K41: R | L41: 54338861016 | M41: 351521007 | N41: 891140852 | O41: 364412000 | P41: 96 | Q41: Prospect St | T41: Hatfield | U41: MA | V41: 01038 | W41: WMECO | X41: 18G | Y41: 18G6 | AA41: non-PTF | AB41: Photovoltaic | AC41: Inverter | AD41: No Cap | AE41: n/a | AG41: 2010-03-31 | AH41: 4.3 | AI41: 0 | AK41: Class 1 (Solar / Wind) | AM41: 4.3 | AN41: 4.3 | AO41: 4.3 | AP41: Solar | AQ41: 2006 | AR41: 2006-11-01 | AU41: n.r. | AV41: n/a | BL41: 2006-11-13 | BN41: n/a | BQ41: 0 | BR41: n/a | BV41: 2006-12-18 | BZ41: no | DP41: 2006 | DV41: net metering | FP41: Y | FR41: Y | FS41: N
A42: Stiebel Eltron Inc | F42: Completed | H42: 6A35-2006 | J42: G0 | K42: C | L42: 54177502069 | M42: 806641004 | N42: 891169992 | O42: 883452005 | P42: 17 | Q42: West St | T42: West Hatfield | U42: MA | V42: 01088 | W42: WMECO | X42: 18G | Y42: 18G5 | AA42: non-PTF | AB42: Photovoltaic | AC42: Inverter | AD42: Private | AG42: 2011-03-07 | AH42: 4.5 | AI42: 0 | AK42: Class 1 (Solar / Wind) | AM42: 4.5 | AN42: 4.5 | AO42: 4.5 | AP42: Solar | AQ42: 2006 | AR42: 2006-11-17 | AU42: n.r. | AV42: n/a | BL42: 2006-11-21 | BN42: n/a - has IA under old rules | BQ42: 0 | BR42: n/a | BV42: 2007-03-29 | BZ42: no | DP42: 2007 | DV42: net metering | DW42: can open C/O's on pole, two single phase inverters on three phase service | FP42: Y | FR42: Y | FS42: N
A43: Flora Chamlin (see 6A237-2011 additon) | F43: Completed | H43: 6A36-2006 | J43: R1 | K43: R | L43: 54040271033 | M43: 093621004 | N43: 891140452 | O43: 750812001 | P43: 35 | Q43: Westbrook Rd | T43: Whately | U43: MA | V43: 01093 | W43: WMECO | X43: 18G | Y43: 18G6 | AA43: non-PTF | AB43: Photovoltaic | AC43: Inverter | AD43: No Cap | AE43: n/a | AG43: see 6A237-2011 | AH43: 2.736 | AI43: 2.736 | AJ43: 3.42 | AK43: Class 1 (Solar / Wind) | AN43: 4 | AO43: 4 | AP43: Solar | AQ43: 2006 | AR43: 2006-11-27 | AU43: n.r. | AV43: n/a | BL43: 2006-11-28 | BN43: n/a | BQ43: 0 | BR43: n/a | BV43: 2007-03-01 | BZ43: no | DP43: 2007 | DV43: net metering | FP43: Y | FR43: Y | FS43: N
A44: Rolf Nelson | F44: Completed | H44: 6A37-2006 | J44: R1 | K44: R | L44: 54029602075 | M44: 464841006 | N44: 891140562 | O44: 216552005 | P44: 40 | Q44: Hop Brook Rd | T44: Amherst | U44: MA | V44: 01002 | W44: WMECO | X44: 17K | Y44: 17K2 | AA44: non-PTF | AB44: Photovoltaic | AC44: Inverter | AD44: No Cap | AE44: n/a | AG44: 2012-03-16 | AH44: 3.84 | AI44: 3.84 | AJ44: 4.8 | AK44: Class 1 (Solar / Wind) | AM44: 4.8 | AN44: 4.8 | AO44: 4.8 | AP44: Solar | AQ44: 2006 | AR44: 2006-12-21 | AU44: n.r. | AV44: n/a | BL44: 2006-12-21 | BN44: n/a | BQ44: 0 | BR44: n/a | BV44: 2007-04-03 | BZ44: no | DP44: 2007 | DV44: net metering | FP44: Y | FR44: Y | FS44: N
A45: Lisa Gawle | F45: Completed | H45: 6A38-2007 | J45: R1 | K45: R | L45: 54442334082 | M45: 469782003 | N45: 891146852 | O45: 536494007 | P45: 36 | Q45: Holly Circle | T45: Easthampton | U45: MA | V45: 01027 | W45: WMECO | X45: 15A | Y45: 15A3 | Z45: PTF | AB45: Photovoltaic | AC45: Inverter | AD45: No Cap | AE45: n/a | AG45: 2009-12-28 | AH45: 3.63 | AI45: 0 | AK45: Class 1 (Solar / Wind) | AM45: 3.63 | AN45: 3.63 | AO45: 3.63 | AP45: Solar | AQ45: 2007 | AR45: 2007-01-02 | AU45: n.r. | AV45: n/a | BL45: 2007-01-02 | BN45: n/a | BQ45: 0 | BR45: n/a | BV45: 2007-01-02 | BZ45: no | DP45: 2007 | DV45: net metering | FP45: Y | FR45: Y | FS45: N
A46: Annettte Wysocki (was Fred Cheyette) | F46: Completed | H46: 6A39-2007 | J46: R1 | K46: R | L46: 54451637086 | M46: 041303008 | N46: 891408202 | O46: 044232004 | P46: 119 | Q46: Shutesbury Rd | T46: Leverett | U46: MA | V46: 01054 | W46: WMECO | X46: 18G | Y46: 18G7 | AA46: non-PTF | AB46: Photovoltaic | AC46: Inverter | AD46: No Cap | AE46: n/a | AG46: 2015-12-02 | AH46: 3.648 | AI46: 3.648 | AJ46: 4.56 | AK46: Class 1 (Solar / Wind) | AM46: 5 | AN46: 5 | AO46: 5 | AP46: Solar | AQ46: 2007 | AR46: 2007-07-16 | AU46: n.r. | AV46: n/a | BL46: 2007-07-16 | BN46: n/a | BQ46: 0 | BR46: n/a | BV46: 2007-12-07 | BZ46: 2015-12-02 | DP46: 2007 | DV46: net metering | FP46: Y | FR46: Y | FS46: N
A47: David Arnold & Elizabeth Harvey (see 6A557-2014 | F47: Completed | H47: 6A40-2007 | J47: R1 | K47: R | L47: 54562602011 | M47: 480741002 | N47: 891378122 | O47: 108452000 | P47: 35 | Q47: Hop Brook Rd | T47: Amherst | U47: MA | V47: 01002 | W47: WMECO | X47: 17K | Y47: 17K2 | AA47: non-PTF | AB47: Photovoltaic | AC47: Inverter | AD47: No Cap | AE47: n/a | AG47: 2009-12-15 | AH47: 2.8 | AI47: 2.8 | AJ47: 3.5 | AK47: Class 1 (Solar / Wind) | AN47: 4 | AO47: 4 | AP47: Solar | AQ47: 2007 | AR47: 2007-08-27 | AU47: n.r. | AV47: n/a | BL47: 2007-08-28 | BN47: n/a | BQ47: 0 | BR47: n/a | BV47: 2007-10-05 | BZ47: no | DP47: 2007 | DV47: net metering | FP47: Y | FR47: Y | FS47: N
A48: Tom Baker | C48: SIMP | F48: Completed | H48: 6A41-2007 | J48: R1 | K48: R | L48: 54530502046 | M48: 416641007 | N48: 891146722 | O48: 967352003 | P48: 137 | Q48: Shutesbury Rd | T48: Amherst | U48: MA | V48: 01002 | W48: WMECO | X48: 17K | Y48: 17K7 | AA48: non-PTF | AB48: Photovoltaic | AC48: Inverter | AD48: No Cap | AE48: n/a | AG48: 2010-01-18 | AH48: 3.36 | AI48: 3.36 | AJ48: 4.2 | AK48: Class 1 (Solar / Wind) | AM48: 5 | AN48: 5 | AO48: 5 | AP48: Solar | AQ48: 2007 | AR48: 2007-08-27 | AU48: n.r. | AV48: n/a | BL48: 2007-08-28 | BN48: n/a | BQ48: 0 | BR48: n/a | BV48: 2007-10-22 | BZ48: no | DP48: 2007 | DV48: net metering | FP48: Y | FR48: Y | FS48: N
A49: William Obear | C49: SIMP | F49: Completed | H49: 6A42-2007 | J49: R1 | K49: R | L49: 54742791007 | M49: 232141008 | N49: 891378322 | O49: 010342008 | P49: 134 | Q49: Webber Rd | T49: Whately | U49: MA | V49: 01093 | W49: WMECO | X49: 18G | Y49: 18G6 | AA49: non-PTF | AB49: Photovoltaic | AC49: Inverter | AD49: No Cap | AE49: n/a | AG49: 2009-12-15 | AH49: 3.74 | AI49: 0 | AK49: Class 1 (Solar / Wind) | AM49: 3.74 | AN49: 3.74 | AO49: 3.74 | AP49: Solar | AQ49: 2007 | AR49: 2007-09-25 | AU49: n.r. | AV49: n/a | BL49: 2007-09-26 | BN49: n/a | BQ49: 0 | BR49: n/a | BV49: 2007-10-05 | BZ49: no | DP49: 2007 | DV49: net metering | FP49: Y | FR49: Y | FS49: N
A50: Daniel Giat | C50: SIMP | F50: Completed | H50: 6A43-2007 | J50: R1 | K50: R | L50: 54593961071 | M50: 726421002 | N50: 891146662 | O50: 240612006 | P50: 98 | Q50: Arnold Rd | T50: Pelham | U50: MA | V50: 01002 | W50: WMECO | X50: 17K | Y50: 17K2 | AA50: non-PTF | AB50: Photovoltaic | AC50: Inverter | AD50: No Cap | AE50: n/a | AG50: 2010-02-08 | AH50: 5 | AI50: 0 | AK50: Class 1 (Solar / Wind) | AM50: 5 | AN50: 5 | AO50: 5 | AP50: Solar | AQ50: 2007 | AR50: 2007-10-22 | AU50: n.r. | AV50: n/a | BL50: 2007-10-22 | BN50: n/a | BQ50: 0 | BR50: n/a | BV50: 2008-01-07 | BZ50: no | DP50: 2008 | DV50: net metering | FP50: Y | FR50: Y | FS50: N
A51: Robert Fydenkevez | C51: SIMP | F51: Completed | H51: 6A44-2007 | J51: R1 | K51: R | L51: 54191491000 | M51: 568931001 | N51: 891378522 | O51: 340042008 | P51: 120 | Q51: Christian Ln | T51: Whately | U51: MA | V51: 01373 | W51: WMECO | X51: 18G | Y51: 18G6 | AA51: non-PTF | AB51: Photovoltaic | AC51: Inverter | AD51: No Cap | AE51: n/a | AG51: 2010-03-15 | AH51: 2.88 | AI51: 2.88 | AJ51: 3.6 | AK51: Class 1 (Solar / Wind) | AM51: 4 | AN51: 4 | AO51: 4 | AP51: Solar | AQ51: 2007 | AR51: 2007-11-06 | AU51: n.r. | AV51: n/a | BL51: 2007-11-06 | BN51: n/a | BQ51: 0 | BR51: n/a | BV51: 2008-04-30 | BZ51: no | DP51: 2008 | DV51: net metering | FR51: N.R. | FS51: N | FT51: cancelled - new application submitted
A52: Constance & Herbert Futter (new 6A48-2008) | F52: Cancelled | H52: 6A45-2007 | J52: R1 | K52: R | L52: 54772271003 | M52: 683621004 | N52: 891408292 | O52: 490812008 | P52: 7 | Q52: Claverick Rd | T52: Whately | U52: MA | V52: 01093 | W52: WMECO | X52: 18G | Y52: 18G6 | AA52: non-PTF | AB52: Photovoltaic | AC52: Inverter | AD52: n/a | AG52: n/a | AK52: N/A | AO52: 9.8 | AP52: Solar | AQ52: 2007 | AR52: 2007-12-13 | AU52: n.r. | AV52: canc | BN52: n/a | BQ52: 0 | BR52: n/a | BZ52: no | DP52: Cancelled | DV52: net metering | DW52: Kosmo Solar specified a 3 phase inverter for a single phase service. | FP52: Y | FR52: Y | FS52: N
A53: Bruce Coldham (was Colham & Hartman Architects LLC) | F53: Completed | H53: 6A46-2008 | J53: R1 | K53: R | L53: 54277706073 | M53: 632741000 | N53: 891806182 | O53: 760552001 | P53: 155 | Q53: Pine St | T53: Amherst | U53: MA | V53: 01002 | W53: WMECO | X53: 18G | Y53: 18G7 | AA53: non-PTF | AB53: Photovoltaic | AC53: Inverter | AD53: No Cap | AE53: n/a | AG53: 2012-06-18 | AH53: 3.08 | AI53: =AJ53*0.8 -> 3.08 | AJ53: 3.85 | AK53: Class 1 (Solar / Wind) | AM53: 5 | AN53: 5 | AO53: 5 | AP53: Solar | AQ53: 2008 | AR53: 2008-01-09 | AU53: n.r. | AV53: n/a | BL53: 2008-01-15 | BN53: n/a | BQ53: 0 | BR53: n/a | BV53: 2008-03-05 | BZ53: 2012-06-04 | DP53: 2008 | DV53: net metering | DW53: Single phase svc and gen. Under 10 kW. NO CAP | FP53: Y | FR53: Y | FS53: N
A54: Richard Seelig | F54: Completed | H54: 6A47-2008 | J54: R1 | K54: R | L54: 54354702003 | M54: 473741004 | N54: 891408072 | O54: 165552009 | P54: 39 | Q54: Buffam Rd | T54: Pelham | U54: MA | V54: 01002 | W54: WMECO | X54: 17K | Y54: 17K2 | AA54: non-PTF | AB54: Photovoltaic | AC54: Inverter | AD54: No Cap | AE54: n/a | AG54: 2010-03-17 | AH54: 0.992 | AI54: =AJ54*0.8 -> 0.992 | AJ54: 1.24 | AK54: Class 1 (Solar / Wind) | AM54: 1.24 | AN54: 1.24 | AO54: 1.24 | AP54: Solar | AQ54: 2008 | AR54: 2008-01-23 | AU54: n.r. | AV54: n/a | BL54: 2008-01-23 | BN54: n/a | BQ54: 0 | BR54: n/a | BV54: 2008-03-11 | BZ54: no | DP54: 2008 | DV54: net metering | FP54: Y | FR54: Y | FS54: N
A55: Patricia Lomeli ( was Constance & Herbert Futter) | F55: Completed | H55: 6A48-2008 | J55: R1 | K55: R | L55: 54372886036 | M55: 683621004 | N55: 891408292 | O55: 490812008 | P55: 7 | Q55: Claverick Rd | T55: Whately | U55: MA | V55: 01093 | W55: WMECO | X55: 18G | Y55: 18G6 | AA55: non-PTF | AB55: Photovoltaic | AC55: Inverter | AD55: No Cap | AE55: n/a | AG55: 2014-06-16 | AH55: 9.8 | AI55: =AJ55*0.8 -> 0 | AK55: Class 1 (Solar / Wind) | AM55: 9.8 | AN55: 9.8 | AO55: 9.8 | AP55: Solar | AQ55: 2008 | AR55: 2008-02-15 | AU55: n.r. | AV55: n/a | BL55: 2008-02-19 | BN55: n/a | BQ55: 0 | BR55: n/a | BV55: 2008-03-13 | BZ55: 2014-06-16 | DP55: 2008 | DV55: net metering | DW55: Solar Wrights (Kosmo Solar's new name) started installation prior to WMECO receiving application. | FR55: N.R. | FS55: N | FT55: cancelled - new application submitted
A56: Paul Newlin (new 6A52-2008) | F56: Cancelled | H56: 6A49-2008 | J56: R3 | K56: R | L56: 54782725055 | M56: 672621008 | N56: 891408282 | O56: 690812008 | P56: 148 | Q56: Conway Rd | T56: Whately | U56: MA | V56: 01093 | W56: WMECO | X56: 18G | Y56: 18G6 | AA56: non-PTF | AB56: Photovoltaic | AC56: Inverter | AD56: n/a | AG56: n/a | AK56: N/A | AO56: 3.7 | AP56: Solar | AQ56: 2008 | AR56: 2008-02-20 | AU56: n.r. | AV56: canc | BL56: 2008-02-21 | BN56: n/a | BQ56: 0 | BR56: n/a | BZ56: no | DP56: Cancelled | DV56: net metering | DW56: 5/1/08 installer said customer cancelled this project | FP56: Y | FR56: Y | FS56: N
A57: Natalia Bouyea (was Timothy Chilson) | F57: Completed | H57: 6A50-2008 | J57: R1 | K57: R | L57: 54653327098 | M57: 052321004 | N57: 891408332 | O57: 235312006 | P57: 19 | Q57: Keddy St | T57: Easthampton | U57: MA | V57: 01027 | W57: WMECO | X57: 15A | Y57: 15A5 | Z57: PTF | AB57: Photovoltaic | AC57: Inverter | AD57: No Cap | AE57: n/a | AG57: MIMO - needed | AH57: 3 | AK57: N/A because no Schedule Z on file | AM57: 3 | AN57: 3 | AO57: 3 | AP57: Solar | AQ57: 2008 | AR57: 2008-02-26 | AU57: n.r. | AV57: n/a | BL57: 2008-02-26 | BN57: n/a | BQ57: 0 | BR57: n/a | BV57: 2008-05-14 | BZ57: MIMO - needed | DP57: 2008 | DV57: net metering | FP57: Y | FR57: Y | FS57: N
A58: Jonathan Child (was Elizabeth Rosenberg) (see 6A166-2011 addition) | F58: Completed | H58: 6A51-2008 | J58: R1 | K58: R | L58: 54404976011 | M58: 664753006 | N58: 891408342 | O58: 443332000 | P58: 135 | Q58: East St | T58: Hadley | U58: MA | V58: 01035 | W58: WMECO | X58: 17K | Y58: 17K5 | AA58: non-PTF | AB58: Photovoltaic | AC58: Inverter | AD58: No Cap | AE58: n/a | AG58: see 6A166-2011 | AH58: 2.96 | AI58: =AJ58*0.8 -> 2.96 | AJ58: 3.7 | AK58: Class 1 (Solar / Wind) | AN58: 4 | AO58: 4 | AP58: Solar | AQ58: 2008 | AR58: 2008-03-12 | AU58: n.r. | AV58: n/a | BL58: 2008-03-12 | BQ58: 0 | BR58: n/a | BV58: 2008-09-16 | DP58: 2008 | DV58: net metering | FR58: N.R. | FS58: N | FT58: cancelled - new application submitted
A59: Paul Newlin (new 6A60-2008) | F59: Cancelled | H59: 6A52-2008 | J59: R3 | K59: R | L59: 54782725055 | M59: 672621008 | N59: 891408282 | O59: 690812008 | P59: 148 | Q59: Conway Rd | T59: Whately | U59: MA | V59: 01093 | W59: WMECO | X59: 18G | Y59: 18G6 | AA59: non-PTF | AB59: Photovoltaic | AC59: Inverter | AD59: n/a | AG59: n/a | AK59: N/A | AO59: 3.7 | AP59: Solar | AQ59: 2008 | AR59: 2008-04-04 | AU59: n.r. | AV59: canc | BL59: 2008-04-04 | BN59: n/a | BQ59: 0 | BR59: n/a | BZ59: no | DP59: Cancelled | DV59: net metering | DW59: 6/16/08 installer changing inverters/solar panels, cancelled this project | FP59: Y | FR59: Y | FS59: N
A60: Kathryn Perry | F60: Completed | H60: 6A53-2008 | J60: R2 | K60: R | L60: 54985734078 | M60: 737982009 | N60: 891479552 | O60: 352005006 | P60: 24 | Q60: Stanley St | T60: Amherst | U60: MA | V60: 01002 | W60: WMECO | X60: 17K | Y60: 17K8 | AA60: non-PTF | AB60: Photovoltaic | AC60: Inverter | AD60: No Cap | AE60: n/a | AG60: 2010-03-03 | AH60: 2.5 | AI60: =AJ60*0.8 -> 0 | AK60: Class 1 (Solar / Wind) | AM60: 2.5 | AN60: 2.5 | AO60: 2.5 | AP60: Solar | AQ60: 2008 | AR60: 2008-04-08 | AU60: n.r. | AV60: n/a | BL60: 2008-04-08 | BN60: n/a | BQ60: 0 | BR60: n/a | BV60: 2009-01-14 | BZ60: no | DP60: 2009 | DV60: net metering | FO60: approved | FP60: Y | FR60: Y | FS60: N (4MW sync) | FU60: 2008-04-08
A61: UMASS 4 MW - 4 MW at CHP w/UMBA 9 MW | C61: STD | F61: Completed | H61: 6A54-2008 | J61: T2 | L61: 54548734086 | M61: 013092007 | N61: 004100100 | O61: 634105006 | P61: 200 | Q61: Mullins Way - Umass Campus | T61: Hadley | U61: MA | V61: 01002 | W61: WMECO | X61: 18G | Y61: 18G1 & 18G2 | AA61: non-PTF | AB61: Gas Turbine & Steam Turbine | AC61: cogeneration facility | AD61: n/a | AG61: no export | AH61: 0 | AK61: No Export | AN61: 4000 | AO61: 4,000 kW add (13,000 kW total) | AP61: Natural Gas/Fuel Oil | AQ61: 2008 | AR61: 2008-01-31 | AU61: 2009-09-29 | BL61: 2008-09-29 | BN61: Yes | BQ61: see 6A104-2009 combined insurance | BR61: see 6A104-2009 | BT61: Yes | BV61: 2009-04-16 | BZ61: no | CA61: WDGCG801 | DP61: 2009 | DV61: no export | EC61: Attn: Raymond Jackson - Assist. Dir Utilities | ED61: Physical Plant 360 Campus Center Way | EE61: Amherst | EF61: MA | EG61: 01003-9248 | EH61: 413-545-0605 | FP61: Y | FR61: Y | FS61: N | FU61: n/a
A62: Janie Morose (was Ann Latham) | F62: Completed | H62: 6A55-2008 | J62: R1 | K62: R | L62: 54661517029 | M62: 885263008 | N62: 891479562 | O62: 272452005 | P62: 65 | Q62: Edwards Rd | T62: Westhampton | U62: MA | V62: 01027 | W62: WMECO | X62: 15A | Y62: 15A3 | Z62: PTF | AB62: Photovoltaic | AC62: Inverter | AD62: No Cap | AE62: n/a | AG62: 2015-08-03 | AH62: 3.456 | AI62: =AJ62*0.8 -> 3.456 | AJ62: 4.32 | AK62: Class 1 (Solar / Wind) | AM62: 5.1 | AN62: 5.1 | AO62: 5.1 | AP62: Solar | AQ62: 2008 | AR62: 2008-04-24 | AU62: n.r. | AV62: n/a | BL62: 2008-04-25 | BN62: n/a | BQ62: 0 | BR62: n/a | BV62: 2008-06-10 | BZ62: 2015-06-25 | DP62: 2008 | DV62: net metering | FP62: Y | FR62: Y | FS62: N
A63: Sarah Rossmassler | F63: Completed | H63: 6A56-2008 | J63: R1 | K63: R | L63: 54432091098 | M63: 668731009 | N63: 891479822 | O63: 412732008 | P63: 100 | Q63: Main St | T63: Hatfield | U63: MA | V63: 01038 | W63: WMECO | X63: 18G | Y63: 18G5 | AA63: non-PTF | AB63: Photovoltaic | AC63: Inverter | AD63: No Cap | AE63: n/a | AG63: 2010-03-26 | AH63: 1.056 | AI63: =AJ63*0.8 -> 1.056 | AJ63: 1.32 | AK63: Class 1 (Solar / Wind) | AM63: 1.8 | AN63: 1.8 | AO63: 1.8 | AP63: Solar | AQ63: 2008 | AR63: 2008-05-12 | AU63: n.r. | AV63: n/a | BL63: 2008-05-13 | BN63: n/a | BQ63: 0 | BR63: n/a | BV63: 2008-06-10 | BZ63: no | DP63: 2008 | DV63: net metering | FO63: cancelled - needed | FR63: N.R. | FS63: N | FT63: cancelled
A64: Indian River Hydro | C64: STD | F64: Cancelled | H64: 6A56H-2008 | Q64: Station Rd | T64: Russell | U64: MA | V64: 01071 | W64: WMECO | X64: 19J | Y64: 19J1 | Z64: PTF | AB64: Hydro | AC64: hydro generating facility | AD64: n/a | AG64: n/a | AK64: N/A | AO64: 700 + 700 not MA tariff | AP64: Hydro | AQ64: 2008 | AR64: 2008-05-12 | AU64: n.r. | AV64: canc | BN64: n/a | BQ64: n/a | BR64: n/a | BZ64: no | DP64: Cancelled | DV64: n/a - generator | DW64: cancld -cust needs to file with Russell or ISO [Not MA tariff (19J1)] | FP64: Y | FR64: Y | FS64: N
A65: Stanley Brown | F65: Completed | H65: 6A57-2008 | J65: R1 | K65: R | L65: 54678602012 | M65: 343841003 | N65: 891408362 | O65: 016552000 | P65: 14 | Q65: Wampanoag Dr | T65: Hadley | U65: MA | V65: 01035 | W65: WMECO | X65: 17K | Y65: 17K5 | AA65: non-PTF | AB65: Photovoltaic | AC65: Inverter | AD65: No Cap | AE65: n/a | AG65: 2009-12-15 | AH65: 5.1 | AI65: =AJ65*0.8 -> 0 | AK65: Class 1 (Solar / Wind) | AM65: 5.1 | AN65: 5.1 | AO65: 5.1 | AP65: Solar | AQ65: 2008 | AR65: 2008-05-19 | AU65: n.r. | AV65: n/a | BL65: 2008-05-20 | BN65: n/a | BQ65: 0 | BR65: n/a | BV65: 2008-07-08 | BZ65: no | DP65: 2008 | DV65: net metering | FP65: Y | FR65: Y | FS65: N
A66: John & Elizabeth Finn | F66: Completed | H66: 6A58-2008 | J66: R3 | K66: R | L66: 54626181002 | M66: 865231003 | N66: 891480322 | O66: 581622009 | P66: 34 | Q66: Carriage Ln | T66: Amherst | U66: MA | V66: 01002 | W66: WMECO | X66: 17K | Y66: 17K8 | AA66: non-PTF | AB66: Photovoltaic | AC66: Inverter | AD66: No Cap | AE66: n/a | AG66: 2012-06-20 | AH66: 3.84 | AI66: 3.84 | AJ66: 4.8 | AK66: Class 1 (Solar / Wind) | AM66: 5.1 | AN66: 5.1 | AO66: 5.1 | AP66: Solar | AQ66: 2008 | AR66: 2008-06-02 | AU66: n.r. | AV66: n/a | BL66: 2008-06-02 | BN66: n/a | BQ66: 0 | BR66: n/a | BV66: 2008-07-21 | BZ66: no | DP66: 2008 | DV66: net metering | FP66: Y | FR66: Y | FS66: N
A67: Daniel Regish | F67: Completed | H67: 6A59-2008 | J67: R3 | K67: R | L67: 54194771051 | M67: 418921002 | N67: 891480222 | O67: 011222004 | P67: 16 | Q67: Newton Ln | T67: Hadley | U67: MA | V67: 01035 | W67: WMECO | X67: 18G | Y67: 18G4 | AA67: non-PTF | AB67: Photovoltaic | AC67: Inverter | AD67: No Cap | AE67: n/a | AG67: 2010-05-03 | AH67: 5 | AI67: 0 | AK67: Class 1 (Solar / Wind) | AM67: 5 | AN67: 5 | AO67: 5 | AP67: Solar | AQ67: 2008 | AR67: 2008-06-10 | AU67: n.r. | AV67: n/a | BL67: 2008-06-10 | BN67: n/a | BQ67: 0 | BR67: n/a | BV67: 2008-07-01 | BZ67: no | DP67: 2008 | DV67: net metering | FP67: Y | FR67: Y | FS67: N
A68: Paul Newlin | F68: Completed | H68: 6A60-2008 | J68: R3 | K68: R | L68: 54782725055 | M68: 672621008 | N68: 891408282 | O68: 690812008 | P68: 148 | Q68: Conway Rd | T68: Whately | U68: MA | V68: 01093 | W68: WMECO | X68: 18G | Y68: 18G6 | AA68: non-PTF | AB68: Photovoltaic | AC68: Inverter | AD68: No Cap | AE68: n/a | AG68: 2010-03-29 | AH68: 3.85 | AI68: 0 | AK68: Class 1 (Solar / Wind) | AM68: 3.85 | AN68: 3.85 | AO68: 3.85 | AP68: Solar | AQ68: 2008 | AR68: 2008-06-16 | AU68: n.r. | AV68: n/a | BL68: 2008-06-17 | BN68: n/a | BQ68: 0 | BR68: n/a | BV68: 2008-06-24 | BZ68: no | DP68: 2008 | DV68: net metering | FP68: Y | FR68: Y | FS68: N
A69: Ashlee Cancio-Bello (was Pioneer Valley Habitat for Humanity) | F69: Completed | H69: 6A61-2008 | J69: R1 | K69: R | L69: 54704494038 | M69: 474292003 | N69: 891758452 | O69: 472405008 | P69: 18 | Q69: Stanley St | T69: Amherst | U69: MA | V69: 01002 | W69: WMECO | X69: 17K | Y69: 17K8 | AA69: non-PTF | AB69: Photovoltaic | AC69: Inverter | AD69: No Cap | AE69: n/a | AG69: 2010-03-01 | AH69: 2.016 | AI69: 2.016 | AJ69: 2.52 | AK69: Class 1 (Solar / Wind) | AM69: 3.3 | AN69: 3.3 | AO69: 3.3 | AP69: Solar | AQ69: 2008 | AR69: 2008-06-26 | AU69: n.r. | AV69: n/a | BL69: 2008-06-26 | BN69: n/a | BQ69: 0 | BR69: n/a | BV69: 2008-11-17 | BZ69: 2010-04-06 | DP69: 2008 | DV69: net metering | FP69: Y | FR69: Y | FS69: N | FU69: 2008-07-30
A70: Larry Kuttner | F70: Completed | H70: 6A62-2008 | J70: R1 | K70: R | L70: 54959791096 | M70: 955241007 | N70: 891759612 | O70: 388542007 | P70: 37 | Q70: Laurel Mt Rd | T70: Whately | U70: MA | V70: 01093 | W70: WMECO | X70: =LEFT(Y70,3) -> 18G | Y70: 18G6 | AA70: non-PTF | AB70: Photovoltaic | AC70: Inverter | AD70: No Cap | AE70: n/a | AG70: 2010-01-25 | AH70: 2.8 | AI70: 0 | AK70: Class 1 (Solar / Wind) | AM70: 2.8 | AN70: 2.8 | AO70: 2.8 | AP70: Solar | AQ70: 2008 | AR70: 2008-07-16 | AU70: n.r. | AV70: n/a | BL70: 2008-07-16 | BN70: n/a | BQ70: 0 | BR70: n/a | BV70: 2008-11-04 | BZ70: no | DP70: 2008 | DV70: net metering | FP70: Y | FR70: Y | FS70: N | FU70: 2008-09-09
A71: Nancy Talanian | F71: Completed | H71: 6A63-2008 | J71: R1 | K71: R | L71: 54241481035 | M71: 817431006 | N71: 891728902 | O71: 706032001 | P71: 19 | Q71: Poplar Hill Rd | T71: Whately | U71: MA | V71: 01039 | W71: WMECO | X71: 18G | Y71: 18G6 | AA71: non-PTF | AB71: Photovoltaic | AC71: Inverter | AD71: No Cap | AE71: n/a | AG71: 2009-12-28 | AH71: 2.88 | AI71: 2.88 | AJ71: 3.6 | AK71: Class 1 (Solar / Wind) | AM71: 3 | AN71: 3 | AO71: 3 | AP71: Solar | AQ71: 2008 | AR71: 2008-08-13 | AU71: n.r. | AV71: n/a | BL71: 2008-08-14 | BN71: n/a | BQ71: 0 | BR71: n/a | BV71: 2009-01-06 | BZ71: no | DP71: 2009 | DV71: net metering | DW71: 50 kVA xfr on 2B/6 feeds 17, 17R, 19 & 28 Poplar Hill and 176 Conway Rd per field check | FP71: Y | FR71: Y | FS71: N | FU71: 2008-08-14
A72: Noble View Camp (Appalachian Mountain Club) | F72: Completed | H72: 6A64-2008 | J72: G0 | K72: C | L72: 54605434018 | M72: 265782002 | N72: 891256632 | O72: 883305009 | P72: 635 | Q72: South Quarter Rd | T72: Russell | U72: MA | V72: 01097 | W72: WMECO | X72: 19J | Y72: 19J2 | Z72: PTF | AB72: Photovoltaic | AC72: Inverter | AD72: Private | AG72: 2010-02-12 | AH72: 8.208 | AI72: 8.208 | AJ72: 10.26 | AK72: Class 1 (Solar / Wind) | AM72: 12 | AN72: 10 | AO72: 10 | AP72: Solar | AQ72: 2008 | AR72: 2008-08-14 | AU72: n.r. | AV72: n/a | BL72: 2008-08-14 | BN72: n/a | BQ72: 0 | BR72: n/a | BV72: 2010-02-05 | BZ72: no | DP72: 2010 | DV72: net metering | DW72: Actual size is 12 kW AC (2 x 6). 12 > 10, on single phase svc. PRIVATE. | FP72: Y | FR72: Y | FS72: N | FU72: 2008-08-14
A73: Marcy A Sala | F73: Completed | H73: 6A65-2008 | J73: R1 | K73: R | L73: 54608402020 | M73: 287641001 | N73: 891759372 | O73: 799352001 | P73: 161 | Q73: Pine St | R73: Unit | S73: E | T73: Amherst | U73: MA | V73: 01002 | W73: WMECO | X73: 18G | Y73: 18G7 | AA73: non-PTF | AB73: Photovoltaic | AC73: Inverter | AD73: No Cap | AE73: n/a | AG73: 2010-02-03 | AH73: 3.2 | AI73: 0 | AK73: Class 1 (Solar / Wind) | AM73: 3.2 | AN73: 3.2 | AO73: 3.2 | AP73: Solar | AQ73: 2008 | AR73: 2008-08-20 | AU73: n.r. | AV73: n/a | BL73: 2008-08-22 | BN73: n/a | BQ73: 0 | BR73: n/a | BV73: 2008-12-01 | BZ73: no | DP73: 2008 | DV73: net metering | FP73: Y | FR73: Y | FS73: N | FU73: 2008-08-22
A74: Steven R Dunn | F74: Completed | H74: 6A66-2008 | J74: R1 | K74: R | L74: 54119402022 | M74: 849641003 | N74: 891759642 | O74: 021452001 | P74: 161 | Q74: Pine St | R74: Unit | S74: A | T74: Amherst | U74: MA | V74: 01002 | W74: WMECO | X74: 18G | Y74: 18G7 | AA74: non-PTF | AB74: Photovoltaic | AC74: Inverter | AD74: No Cap | AE74: n/a | AG74: 2010-01-25 | AH74: 2.9 | AI74: 0 | AK74: Class 1 (Solar / Wind) | AM74: 2.9 | AN74: 2.9 | AO74: 2.9 | AP74: Solar | AQ74: 2008 | AR74: 2008-08-20 | AU74: n.r. | AV74: n/a | BL74: 2008-08-22 | BN74: n/a | BQ74: 0 | BR74: n/a | BV74: 2009-01-16 | BZ74: no | DP74: 2009 | DV74: net metering | FP74: Y | FR74: Y | FS74: N | FU74: 2008-08-22
A75: Kay Klippel | F75: Completed | H75: 6A67-2008 | J75: R1 | K75: R | L75: 54037381050 | M75: 792431001 | N75: 891729292 | O75: 143032003 | P75: 95 | Q75: Haydenville Rd | T75: Whately | U75: MA | V75: 01039 | W75: WMECO | X75: 18G | Y75: 18G6 | AA75: non-PTF | AB75: Photovoltaic | AC75: Inverter | AD75: No Cap | AE75: n/a | AG75: 2010-01-18 | AH75: 4.368 | AI75: 4.368 | AJ75: 5.46 | AK75: Class 1 (Solar / Wind) | AM75: 5 | AN75: 5 | AO75: 5 | AP75: Solar | AQ75: 2008 | AR75: 2008-08-28 | AU75: n.r. | AV75: n/a | BL75: 2008-09-02 | BN75: n/a | BQ75: 0 | BR75: n/a | BV75: 2009-01-05 | BZ75: no | DP75: 2009 | DV75: net metering | FP75: Y | FR75: Y | FS75: N | FU75: 2008-09-02
A76: David Kastor | F76: Completed | H76: 6A68-2008 | J76: R1 | K76: R | L76: 54787502004 | M76: 229641005 | N76: 891759512 | O76: 273352009 | P76: 161 | Q76: Pine St | R76: Unit | S76: D | T76: Amherst | U76: MA | V76: 01002 | W76: WMECO | X76: 18G | Y76: 18G7 | AA76: non-PTF | AB76: Photovoltaic | AC76: Inverter | AD76: No Cap | AE76: n/a | AG76: 2009-12-16 | AH76: 3.3 | AI76: 0 | AK76: Class 1 (Solar / Wind) | AM76: 3.3 | AN76: 3.3 | AO76: 3.3 | AP76: Solar | AQ76: 2008 | AR76: 2008-09-10 | AU76: n.r. | AV76: n/a | BL76: 2008-09-11 | BN76: n/a | BQ76: 0 | BR76: n/a | BV76: 2009-01-16 | BZ76: no | DP76: 2009 | DV76: net metering | FP76: Y | FR76: Y | FS76: N | FU76: 2008-09-10
A77: Peter & Kate Lamdin | F77: Completed | H77: 6A69-2008 | J77: R1 | K77: R | L77: 54219861093 | M77: 098421004 | N77: 891758532 | O77: 232612007 | P77: 24 | Q77: Cook Rd | T77: Pelham | U77: MA | V77: 01002 | W77: WMECO | X77: 17K | Y77: 17K2 | AA77: non-PTF | AB77: Photovoltaic | AC77: Inverter | AD77: No Cap | AE77: n/a | AG77: 2009-12-21 | AH77: 3.36 | AI77: 0 | AK77: Class 1 (Solar / Wind) | AM77: 3.36 | AN77: 3.36 | AO77: 3.36 | AP77: Solar | AQ77: 2008 | AR77: 2008-09-08 | AU77: n.r. | AV77: n/a | BL77: 2008-09-09 | BN77: n/a | BQ77: 0 | BR77: n/a | BV77: 2009-01-07 | BZ77: no | DP77: 2009 | DV77: net metering | FP77: Y | FR77: Y | FS77: N | FU77: 2008-09-08
A78: David Mastroianni | F78: Completed | H78: 6A70-2008 | J78: R3 | K78: R | L78: 54121661094 | M78: 417321005 | N78: 891805592 | O78: 130312008 | P78: 39 | Q78: Tracy Circle | T78: Amherst | U78: MA | V78: 01002 | W78: WMECO | X78: 17K | Y78: 17K8 | AA78: non-PTF | AB78: Photovoltaic | AC78: Inverter | AD78: No Cap | AE78: n/a | AG78: 2010-03-03 | AH78: 3.84 | AI78: 3.84 | AJ78: 4.8 | AK78: Class 1 (Solar / Wind) | AM78: 5.3 | AN78: 5.3 | AO78: 5.3 | AP78: Solar | AQ78: 2008 | AR78: 2008-09-09 | AU78: n.r. | AV78: n/a | BL78: 2008-09-10 | BN78: n/a | BQ78: 0 | BR78: n/a | BV78: 2009-01-09 | BZ78: no | DP78: 2009 | DV78: net metering | FP78: Y | FR78: Y | FS78: N | FU78: 2008-09-09
A79: Nicholas Jones | F79: Completed | H79: 6A71-2008 | J79: R1 | K79: R | L79: 54145481081 | M79: 005331002 | N79: 891806842 | O79: 278032006 | P79: 175 | Q79: Chestnut Plain Rd | R79: Floor | S79: 1 | T79: Whately | U79: MA | V79: 01093 | W79: WMECO | X79: 18G | Y79: 18G6 | AA79: non-PTF | AB79: Photovoltaic | AC79: Inverter | AD79: No Cap | AE79: n/a | AG79: 2009-12-15 | AH79: 3.36 | AI79: 3.36 | AJ79: 4.2 | AK79: Class 1 (Solar / Wind) | AM79: 3.9 | AN79: 3.9 | AO79: 3.9 | AP79: Solar | AQ79: 2008 | AR79: 2008-09-22 | AU79: n.r. | AV79: n/a | BL79: 2008-09-23 | BN79: n/a | BQ79: 0 | BR79: n/a | BV79: 2009-01-06 | BZ79: no | DP79: 2009 | DV79: net metering | FP79: Y | FR79: Y | FS79: N | FU79: 2008-09-23
A80: Greg Howe (was Phil Smith) | F80: Completed | H80: 6A72-2008 | J80: R1 | K80: R | L80: 54878275023 | M80: 708331004 | N80: 891759822 | O80: 349032001 | P80: 9 | Q80: Briggs St | R80: Floor | S80: 1 | T80: Easthampton | U80: MA | V80: 01027 | W80: WMECO | X80: 15A | Y80: 15A5 | Z80: PTF | AB80: Photovoltaic | AC80: Inverter | AD80: No Cap | AE80: n/a | AG80: MIMO - needed | AH80: 5 | AI80: 0 | AK80: N/A because no Schedule Z on file | AM80: 5 | AN80: 5 | AO80: 5 | AP80: Solar | AQ80: 2008 | AR80: 2008-09-23 | AU80: n.r. | AV80: n/a | BL80: 2008-09-23 | BN80: n/a | BQ80: 0 | BR80: n/a | BV80: 2008-10-27 | BZ80: MIMO - needed | DP80: 2008 | DV80: net metering | FP80: Y | FR80: Y | FS80: N | FU80: 2008-09-23
A81: Mark Gelotte | F81: Completed | H81: 6A73-2008 | J81: R1 | K81: R | L81: 54362391054 | M81: 429931005 | N81: 891758032 | O81: 441832004 | P81: 70 | Q81: Elm St | T81: Hatfield | U81: MA | V81: 01038 | W81: WMECO | X81: 18G | Y81: 18G5 | AA81: non-PTF | AB81: Photovoltaic | AC81: Inverter | AD81: No Cap | AE81: n/a | AG81: 2009-12-09 | AH81: 3.024 | AI81: 3.024 | AJ81: 3.78 | AK81: Class 1 (Solar / Wind) | AM81: 3.9 | AN81: 3.9 | AO81: 3.9 | AP81: Solar | AQ81: 2008 | AR81: 2008-10-09 | AU81: n.r. | AV81: n/a | BL81: 2008-10-09 | BN81: n/a | BQ81: 0 | BR81: n/a | BV81: 2009-01-09 | BZ81: no | DP81: 2009 | DV81: net metering | FP81: Y | FR81: Y | FS81: N | FU81: 2008-10-09
A82: Hampshire College - Liebling Center | F82: Completed | H82: 6A74-2008 | J82: T2 | K82: C | L82: 54917561086 | M82: 538221007 | N82: 000010940 | O82: 082212006 | P82: 893 | Q82: West St | T82: Amherst | U82: MA | V82: 01002 | W82: WMECO | X82: 19B | Y82: 19B16 | Z82: PTF | AB82: Photovoltaic | AC82: Inverter | AD82: n/a | AG82: no export | AH82: 0 | AK82: No Export | AM82: 5.4 | AN82: 5.4 | AO82: 5.4 | AP82: Solar | AQ82: 2008 | AR82: 2008-12-11 | AU82: n.r. | AV82: n/a | BL82: 2008-12-11 | BN82: n/a | BQ82: 0 | BR82: n/a | BV82: 2009-04-14 | BZ82: no | DP82: 2009 | DV82: n/a - not expected to export | FP82: Y | FR82: Y | FS82: N | FU82: n/a
A83: Rebecca Jones | F83: Completed | H83: 6A75-2008 | J83: R1 | K83: R | L83: 54419381025 | M83: 707431006 | N83: 891808212 | O83: 084922000 | P83: 185 | Q83: Chestnut Plain Rd | T83: Whately | U83: MA | V83: 01093 | W83: WMECO | X83: 18G | Y83: 18G6 | AA83: non-PTF | AB83: Photovoltaic | AC83: Inverter | AD83: No Cap | AE83: n/a | AG83: 2009-12-28 | AH83: 3.9 | AI83: =AJ83*0.8 -> 0 | AK83: Class 1 (Solar / Wind) | AM83: 3.9 | AN83: 3.9 | AO83: 3.9 | AP83: Solar | AQ83: 2008 | AR83: 2008-12-18 | AU83: n.r. | AV83: n/a | BL83: 2008-12-19 | BN83: n/a | BQ83: 0 | BR83: n/a | BV83: 2009-05-04 | BZ83: no | DP83: 2009 | DV83: net metering | FP83: Y | FR83: Y | FS83: N | FU83: 2008-12-19
A84: James David Marley | F84: Completed | H84: 6A76-2008 | J84: G2 | K84: C | L84: 54411002033 | M84: 811113005 | N84: 891725642 | O84: 660742001 | P84: 100 | Q84: University Dr | T84: Amherst | U84: MA | V84: 01002 | W84: WMECO | X84: 17K | Y84: 17K6 | AA84: non-PTF | AB84: Photovoltaic | AC84: Inverter | AD84: Private | AG84: 2009-12-09 | AH84: 65.52 | AI84: 65.52 | AJ84: 81.9 | AK84: Class 2 | AL84: now net metered 06/08/2009 | AM84: 82 | AN84: 82 | AO84: 82 | AP84: Solar | AQ84: 2008 | AR84: 2008-12-23 | AU84: 2009-02-13 | BL84: 2009-02-17 | BN84: Yes | BQ84: $500K / $500K | BR84: 2014-07-23 | BT84: No | BV84: 2009-06-08 | BY84: 2009-05-01 | BZ84: no | CA84: WDGSL805 | DP84: 2009 | DV84: net metering | EC84: c/o Diversified Construction | ED84: 100 University Drive | EE84: Amherst | EF84: MA | EG84: 01002 | EH84: 4135492900 | FP84: Y | FR84: Y | FS84: N | FU84: 2009-02-18
A85: John Knox | C85: SIMP | F85: Completed | H85: 6A77-2009 | J85: R1 | K85: R | L85: 54485781017 | M85: 628531008 | N85: 891759652 | O85: 496332000 | P85: 8 | Q85: Searle Rd | T85: Huntington | U85: MA | V85: 01050 | W85: WMECO | X85: 19J | Y85: 19J1 | Z85: PTF | AB85: Photovoltaic | AC85: Inverter | AD85: No Cap | AE85: n/a | AG85: 2014-09-12 | AH85: 4.032 | AI85: 4.032 | AJ85: 5.04 | AK85: Class 1 (Solar / Wind) | AM85: 5.04 | AN85: 5.04 | AO85: 5.04 | AP85: Solar | AQ85: 2009 | AR85: 2009-03-09 | AU85: n.r. | AV85: n/a | BL85: 2009-03-09 | BN85: n/a | BQ85: 0 | BR85: n/a | BV85: 2009-04-28 | BY85: 06/2009 | BZ85: no | DP85: 2009 | DV85: net metering | FP85: Y | FR85: Y | FS85: N | FU85: 2009-03-09
A86: Eric Decker | C86: SIMP | F86: Completed | H86: 6A78-2009 | J86: R1 | K86: R | L86: 54967771064 | M86: 705031005 | N86: 891806402 | O86: 484322005 | P86: 18 | Q86: Russell St | T86: Sunderland | U86: MA | V86: 01375 | W86: WMECO | X86: 18G | Y86: 18G8 | AA86: non-PTF | AB86: Photovoltaic | AC86: Inverter | AD86: No Cap | AE86: n/a | AG86: 2009-12-28 | AH86: 4.032 | AI86: 4.032 | AJ86: 5.04 | AK86: Class 1 (Solar / Wind) | AM86: 5.04 | AN86: 5.04 | AO86: 5.04 | AP86: Solar | AQ86: 2009 | AR86: 2009-04-07 | AU86: n.r. | AV86: n/a | BL86: 2009-04-07 | BN86: n/a | BQ86: 0 | BR86: n/a | BV86: 2009-06-11 | BY86: 2009-06-15 | BZ86: no | DP86: 2009 | DV86: net metering | FP86: Y | FR86: Y | FS86: N | FU86: 2009-04-07
A87: Peter Acker | C87: SIMP | F87: Completed | H87: 6A79-2009 | J87: R1 | K87: R | L87: 54990602096 | M87: 106741007 | N87: 890690682 | O87: 938552008 | P87: 138 | Q87: Harkness Rd | R87: Lot | S87: 5 | T87: Pelham | U87: MA | V87: 01002 | W87: WMECO | X87: 17K | Y87: 17K2 | AA87: non-PTF | AB87: Photovoltaic | AC87: Inverter | AD87: No Cap | AE87: n/a | AG87: 2010-03-26 | AH87: 3.28 | AI87: 0 | AK87: Class 1 (Solar / Wind) | AM87: 3.28 | AN87: 3.28 | AO87: 3.28 | AP87: Solar | AQ87: 2009 | AR87: 2009-05-26 | AU87: n.r. | AV87: n/a | BL87: 2009-05-26 | BN87: n/a | BQ87: 0 | BR87: n/a | BV87: 2009-07-30 | BY87: 2009-07-08 | BZ87: no | DP87: 2009 | DV87: net metering | FP87: Y | FR87: Y | FS87: N | FU87: 2009-05-26
A88: Allen Eccleston | F88: Completed | H88: 6AF79-2008 | J88: R1 | K88: R | L88: 54347502064 | M88: 753741005 | N88: 891407842 | O88: 263452005 | P88: 231 | Q88: Bay Rd | T88: Hadley | U88: MA | V88: 01035 | W88: WMECO | X88: 19B | Y88: 19B15 | Z88: PTF | AB88: Photovoltaic | AC88: Inverter | AD88: No Cap | AE88: n/a | AG88: 2010-03-29 | AH88: 2.52 | AI88: 2.52 | AJ88: 3.15 | AK88: Class 1 (Solar / Wind) | AM88: 3.3 | AN88: 3.3 | AO88: 3.3 | AP88: Solar | AQ88: 2008 | AR88: 2008-06-19 | AU88: n.r. | AV88: n/a | BL88: 2008-06-19 | BN88: n/a | BQ88: 0 | BR88: n/a | BV88: 2008-07-30 | BZ88: no | DP88: 2008 | DV88: net metering | FP88: Y | FR88: Y | FS88: N
A89: R. Brooke Thomas (see 6A549-2014) | C89: SIMP | F89: Completed | H89: 6A80-2009 | J89: R1 | K89: R | L89: 54203481031 | M89: 495331002 | N89: 891758782 | O89: 340922002 | P89: 39 | Q89: Long Hill Rd | T89: Leverett | U89: MA | V89: 01054 | W89: WMECO | X89: 18G | Y89: 18G7 | AA89: non-PTF | AB89: Photovoltaic | AC89: Inverter | AD89: No Cap | AE89: n/a | AG89: 2009-12-15 | AH89: 2.52 | AI89: 2.52 | AJ89: 3.15 | AK89: Class 1 (Solar / Wind) | AN89: 3.15 | AO89: 3.15 | AP89: Solar | AQ89: 2009 | AR89: 2009-06-26 | AU89: n.r. | AV89: n/a | BL89: 2009-06-29 | BN89: n/a | BQ89: 0 | BR89: n/a | BV89: 2009-10-28 | BY89: 2009-09-01 | BZ89: no | DP89: 2009 | DV89: net metering | FP89: Y | FR89: Y | FS89: N | FU89: 2009-06-29
A90: Hitchcock Center Inc | C90: SIMP | F90: Completed | H90: 6A81-2009 | J90: G0 | K90: C | L90: 54574591012 | M90: 992703001 | N90: 891880592 | O90: 851142000 | P90: 525 | Q90: South Pleasant St | T90: Amherst | U90: MA | V90: 01002 | W90: WMECO | X90: 17K | Y90: 17K6 | AA90: non-PTF | AB90: Photovoltaic | AC90: Inverter | AD90: No Cap | AE90: n/a | AG90: 2010-03-25 | AH90: 0.576 | AI90: 0.576 | AJ90: 0.72 | AK90: Class 1 (Solar / Wind) | AM90: 0.72 | AN90: 0.72 | AO90: 0.72 | AP90: Solar | AQ90: 2009 | AR90: 2009-06-26 | AU90: n.r. | AV90: n/a | BL90: 2009-06-29 | BN90: n/a | BQ90: 0 | BR90: n/a | BV90: 2009-09-15 | BY90: 2009-07-06 | BZ90: no | DP90: 2009 | DV90: net metering | DW90: < 10 kW single phase. NO CAP | FP90: Y | FR90: Y | FS90: N | FU90: 2009-06-29
A91: New England Environmental, Inc. | C91: EXP | E91: Cindy | F91: Completed | H91: 6A82-2009 | J91: G0 | K91: C | L91: 54473884047 | M91: 903003006 | N91: 891220802 | O91: 890835002 | P91: 15 | Q91: Research Dr | T91: Amherst | U91: MA | V91: 01002 | W91: WMECO | X91: 17K | Y91: 17K2 | AA91: non-PTF | AB91: Photovoltaic | AC91: Inverter | AD91: Private | AG91: 2009-12-15 | AH91: 31.2 | AI91: 31.2 | AJ91: 39 | AK91: Class 1 (Solar / Wind) | AM91: 39 | AN91: 39 | AO91: 39 | AP91: Solar | AQ91: 2009 | AR91: 2009-06-29 | AU91: 2009-07-24 | BL91: 2009-07-30 | BN91: Yes | BQ91: 0 | BR91: n/a | BS91: No | BV91: 2009-08-10 | BY91: 08/2009 | BZ91: no | CA91: WDGSL902 | CB91: 300 | DN91: 357.29 | DO91: On line. New construction. | DP91: 2009 | DQ91: ?? | DR91: ?? | DV91: net metering | EC91: Attn: Michael J. Marcus | ED91: 15 Research Drive | EE91: Amherst | EF91: MA | EG91: 01002 | EH91: 4132560202 | FP91: Y | FR91: Y | FS91: N | FU91: 2009-07-30
A92: Michael April | C92: SIMP | F92: Completed | H92: 6A83-2009 | J92: R1 | K92: R | L92: 54947402053 | M92: 271641004 | N92: 891807702 | O92: 591252004 | P92: 120 | Q92: Pulpit Hill Rd | R92: Unit | S92: 1 | T92: Amherst | U92: MA | V92: 01002 | W92: WMECO | X92: 18G | Y92: 18G7 | AA92: non-PTF | AB92: Photovoltaic | AC92: Inverter | AD92: No Cap | AE92: n/a | AG92: 2010-01-27 | AH92: 2.7 | AI92: 0 | AK92: Class 1 (Solar / Wind) | AM92: 2.7 | AN92: 2.7 | AO92: 2.7 | AP92: Solar | AQ92: 2009 | AR92: 2009-07-28 | AU92: n.r. | AV92: n/a | BL92: 2009-07-30 | BN92: n/a | BQ92: 0 | BR92: n/a | BV92: 2009-08-14 | BY92: 2009-08-03 | BZ92: no | DP92: 2009 | DV92: net metering | FP92: Y | FR92: Y | FS92: N | FU92: 2009-07-30
A93: William Lyons Whitten | C93: SIMP | F93: Completed | H93: 6A84-2009 | J93: R1 | K93: R | L93: 54747402055 | M93: 633741006 | N93: 891864802 | O93: 491252004 | P93: 120 | Q93: Pulpit Hill Rd | R93: Unit | S93: 7 | T93: Amherst | U93: MA | V93: 01002 | W93: WMECO | X93: 18G | Y93: 18G7 | AA93: non-PTF | AB93: Photovoltaic | AC93: Inverter | AD93: No Cap | AE93: n/a | AG93: 2010-02-13 | AH93: 3.7 | AI93: 0 | AK93: Class 1 (Solar / Wind) | AM93: 3.7 | AN93: 3.7 | AO93: 3.7 | AP93: Solar | AQ93: 2009 | AR93: 2009-07-28 | AU93: n.r. | AV93: n/a | BL93: 2009-07-28 | BN93: n/a | BQ93: 0 | BR93: n/a | BV93: 2009-08-14 | BY93: 2009-08-03 | BZ93: no | DP93: 2009 | DV93: net metering | FP93: Y | FR93: Y | FS93: N | FU93: 2009-07-28
A94: Jerry Koch-Gonzalez | C94: SIMP | F94: Completed | H94: 6A85-2009 | J94: R1 | K94: R | L94: 54681502068 | M94: 337641009 | N94: 891863972 | O94: 286352005 | P94: 120 | Q94: Pulpit Hill Rd | R94: Unit | S94: 8 | T94: Amherst | U94: MA | V94: 01002 | W94: WMECO | X94: 18G | Y94: 18G7 | AA94: non-PTF | AB94: Photovoltaic | AC94: Inverter | AD94: No Cap | AE94: n/a | AG94: 2013-03-25 | AH94: 3.5 | AI94: 0 | AK94: Class 1 (Solar / Wind) | AM94: 3.5 | AN94: 3.5 | AO94: 3.5 | AP94: Solar | AQ94: 2009 | AR94: 2009-08-03 | AU94: n.r. | AV94: n/a | BL94: 2009-08-04 | BN94: n/a | BQ94: 0 | BR94: n/a | BV94: 2009-08-24 | BY94: 2009-08-03 | BZ94: no | DP94: 2009 | DV94: net metering | FP94: Y | FR94: Y | FS94: N | FU94: 2009-08-04
A95: Louis R Conover | C95: SIMP | F95: Completed | H95: 6A86-2009 | J95: R1 | K95: R | L95: 54728402090 | M95: 918641001 | N95: 891806102 | O95: 691452008 | P95: 120 | Q95: Pulpit Hill Rd | R95: Unit | S95: 9 | T95: Amherst | U95: MA | V95: 01002 | W95: WMECO | X95: 18G | Y95: 18G7 | AA95: non-PTF | AB95: Photovoltaic | AC95: Inverter | AD95: No Cap | AE95: n/a | AG95: 2012-10-10 | AH95: 4 | AI95: 0 | AK95: Class 1 (Solar / Wind) | AM95: 4 | AN95: 4 | AO95: 4 | AP95: Solar | AQ95: 2009 | AR95: 2009-07-28 | AU95: n.r. | AV95: n/a | BL95: 2009-07-29 | BN95: n/a | BQ95: 0 | BR95: n/a | BV95: 2009-08-14 | BY95: 2009-08-03 | BZ95: no | DP95: 2009 | DV95: net metering | FP95: Y | FR95: Y | FS95: N | FU95: 2009-07-29
A96: Amy Freed | C96: SIMP | F96: Completed | H96: 6A87-2009 | J96: R1 | K96: R | L96: 54200502011 | M96: 021641002 | N96: 891864782 | O96: 024352009 | P96: 120 | Q96: Pulpit Hill Rd | R96: Unit | S96: 19 | T96: Amherst | U96: MA | V96: 01002 | W96: WMECO | X96: 18G | Y96: 18G7 | AA96: non-PTF | AB96: Photovoltaic | AC96: Inverter | AD96: No Cap | AE96: n/a | AG96: 2010-01-04 | AH96: 2.8 | AI96: 0 | AK96: Class 1 (Solar / Wind) | AM96: 2.8 | AN96: 2.8 | AO96: 2.8 | AP96: Solar | AQ96: 2009 | AR96: 2009-08-03 | AU96: n.r. | AV96: n/a | BL96: 2009-08-04 | BN96: n/a | BQ96: 0 | BR96: n/a | BV96: 2009-08-20 | BY96: 2009-08-03 | BZ96: no | DP96: 2009 | DV96: net metering | FP96: Y | FR96: Y | FS96: N | FU96: 2009-08-04
A97: Diane Wiley | C97: SIMP | F97: Completed | H97: 6A88-2009 | J97: R1 | K97: R | L97: 54137502084 | M97: 769641005 | N97: 891864972 | O97: 627452007 | P97: 120 | Q97: Pulpit Hill Rd | R97: Unit | S97: 21 | T97: Amherst | U97: MA | V97: 01002 | W97: WMECO | X97: 18G | Y97: 18G7 | AA97: non-PTF | AB97: Photovoltaic | AC97: Inverter | AD97: No Cap | AE97: n/a | AG97: 2010-02-08 | AH97: 2.4 | AI97: 0 | AK97: Class 1 (Solar / Wind) | AM97: 2.4 | AN97: 2.4 | AO97: 2.4 | AP97: Solar | AQ97: 2009 | AR97: 2009-07-28 | AU97: n.r. | AV97: n/a | BL97: 2009-07-29 | BN97: n/a | BQ97: 0 | BR97: n/a | BV97: 2009-09-11 | BY97: 2009-08-03 | BZ97: no | DP97: 2009 | DV97: net metering | FP97: Y | FR97: Y | FS97: N | FU97: 2009-07-29
A98: Jana Lussier (was Robin Luberoff) | C98: SIMP | F98: Completed | H98: 6A89-2009 | J98: R1 | K98: R | L98: 54673606075 | M98: 147641009 | N98: 891863952 | O98: 802452008 | P98: 120 | Q98: Pulpit Hill Rd | R98: Unit | S98: 26 | T98: Amherst | U98: MA | V98: 01002 | W98: WMECO | X98: 18G | Y98: 18G7 | AA98: non-PTF | AB98: Photovoltaic | AC98: Inverter | AD98: No Cap | AE98: n/a | AG98: 2012-05-14 | AH98: 2.8 | AI98: 0 | AK98: Class 1 (Solar / Wind) | AM98: 2.8 | AN98: 2.8 | AO98: 2.8 | AP98: Solar | AQ98: 2009 | AR98: 2009-07-28 | AU98: n.r. | AV98: n/a | BL98: 2009-07-29 | BN98: n/a | BQ98: 0 | BR98: n/a | BV98: 2009-08-24 | BY98: 2009-08-03 | BZ98: 2012-05-14 | DP98: 2009 | DV98: net metering | FP98: Y | FR98: Y | FS98: N | FU98: 2009-07-29
A99: Karen Kowles | C99: SIMP | F99: Completed | H99: 6A90-2009 | J99: R2 | K99: R | L99: 54638402099 | M99: 146641000 | N99: 891807032 | O99: 702452008 | P99: 120 | Q99: Pulpit Hill Rd | R99: Unit | S99: 27 | T99: Amherst | U99: MA | V99: 01002 | W99: WMECO | X99: 18G | Y99: 18G7 | AA99: non-PTF | AB99: Photovoltaic | AC99: Inverter | AD99: No Cap | AE99: n/a | AG99: 2010-01-11 | AH99: 1.8 | AI99: 0 | AK99: Class 1 (Solar / Wind) | AM99: 1.8 | AN99: 1.8 | AO99: 1.8 | AP99: Solar | AQ99: 2009 | AR99: 2009-07-28 | AU99: n.r. | AV99: n/a | BL99: 2009-07-29 | BN99: n/a | BQ99: 0 | BR99: n/a | BV99: 2009-08-24 | BY99: 2009-08-03 | BZ99: no | DP99: 2009 | DV99: net metering | FR99: N.R. | FS99: N | FT99: cancelled | FU99: 2009-07-29
A100: Roger Bird | C100: EXP | E100: Cindy | F100: Cancelled | H100: 6A91-2009 | P100: 88 | Q100: Shutesbury Rd | T100: Leverett | U100: MA | V100: 01054 | W100: WMECO | X100: 18G | Y100: 18G7 | AA100: non-PTF | AB100: Photovoltaic | AC100: Inverter | AD100: n/a | AG100: n/a | AK100: N/A | AM100: 13.8 | AN100: 13.8 | AO100: 13.8 | AP100: Solar | AQ100: 2009 | AR100: 2009-07-28 | AU100: 2009-09-14 | BL100: 2009-09-17 | BN100: Yes | BQ100: n/a | BR100: n/a | BS100: Yes | BY100: 08/2009 or 09/2009 | BZ100: canc | CA100: WDGSL905 | CB100: 300 | DC100: 1117.57 | DD100: 989 | DE100: 128.57 | DO100: Cancelled by Cust. Cust changed design, reapplied. | DP100: Cancelled | DQ100: n/a | DR100: n/a | DV100: net metering | DW100: cancelled per customer request 2/5/10 | EC100: Roger Bird | ED100: 88 Shutesbury Road | EE100: Leverett | EF100: MA | EG100: 01054 | EH100: 4135494959 | FR100: N.R. | FS100: N | FT100: cancelled
A101: Robert McGovern | C101: SIMP | F101: Cancelled | H101: 6A92-2009 | J101: R3 | K101: R | L101: 54658391073 | M101: 672931004 | N101: 885605122 | O101: 454042006 | P101: 53 | Q101: Main St | T101: Hatfield | U101: MA | V101: 01038 | W101: WMECO | X101: 18G | Y101: 18G5 | AA101: non-PTF | AB101: Photovoltaic | AC101: Inverter | AD101: n/a | AG101: n/a | AK101: N/A | AO101: 5.04 | AP101: Solar | AQ101: 2009 | AR101: 2009-08-11 | AU101: n.r. | AV101: canc | BL101: 2009-08-14 | BN101: n/a | BQ101: 0 | BR101: n/a | BY101: 09/31/09 | BZ101: no | DP101: Cancelled | DV101: net metering | DW101: Cancld 10-30-09 Michelle by phone | FP101: Y | FR101: Y | FS101: N | FU101: 2009-08-14
A102: Francis P Lepine | B102: Sun Run | C102: SIMP | F102: Completed | H102: 6A93-2009 | J102: R1 | K102: R | L102: 54507961068 | M102: 594521009 | N102: 887295652 | O102: 076512005 | P102: 14 | Q102: Garfield Ave | T102: Easthampton | U102: MA | V102: 01027 | W102: WMECO | X102: 15A | Y102: 15A3 | Z102: PTF | AB102: Photovoltaic | AC102: Inverter | AD102: No Cap | AE102: n/a | AG102: 2009-12-09 | AH102: 4.51 | AI102: =AJ102*0.8 -> 0 | AK102: Class 1 (Solar / Wind) | AM102: 4.51 | AN102: 4.51 | AO102: 4.51 | AP102: Solar | AQ102: 2009 | AR102: 2009-08-20 | AU102: n.r. | AV102: n/a | BL102: 2009-08-21 | BN102: n/a | BO102: yes | BQ102: 0 | BR102: n/a | BV102: 2009-12-03 | BY102: 2009-09-30 | BZ102: no | DP102: 2009 | DV102: net metering | FP102: Y | FR102: Y | FS102: N | FU102: 2009-08-21
A103: Kirk Birrell | C103: SIMP | F103: Completed | H103: 6A94-2009 | J103: R1 | K103: R | L103: 54932702038 | M103: 101841009 | N103: 887901922 | O103: 998452002 | P103: 15 | Q103: Montgomery Rd | T103: Huntington | U103: MA | V103: 01050 | W103: WMECO | X103: 19J | Y103: 19J1 | Z103: PTF | AB103: Photovoltaic | AC103: Inverter | AD103: No Cap | AE103: n/a | AG103: 2010-04-06 | AH103: 5 | AI103: =AJ103*0.8 -> 0 | AK103: Class 1 (Solar / Wind) | AM103: 5 | AN103: 5 | AO103: 5 | AP103: Solar | AQ103: 2009 | AR103: 2009-09-28 | AU103: n.r. | AV103: n/a | BL103: 2009-09-29 | BN103: n/a | BQ103: 0 | BR103: n/a | BV103: 2009-11-16 | BY103: 2009-10-12 | BZ103: no | DP103: 2009 | DV103: net metering | FP103: Y | FR103: Y | FS103: N | FU103: 2009-09-29
A104: James Harvey (see 6A456-2013) | C104: SIMP | F104: Completed | H104: 6A95-2009 | J104: R1 | K104: R | L104: 54293602025 | M104: 094841006 | N104: 883791542 | O104: 390652001 | P104: 293 | Q104: River Dr | T104: Hadley | U104: MA | V104: 01035 | W104: WMECO | X104: 18G | Y104: 18G5 | AA104: non-PTF | AB104: Photovoltaic | AC104: Inverter | AD104: No Cap | AE104: n/a | AG104: 2009-12-15 | AH104: 3.2 | AI104: =AJ104*0.8 -> 3.2 | AJ104: 4 | AK104: Class 1 (Solar / Wind) | AN104: 3.9 | AO104: 3.9 | AP104: Solar | AQ104: 2009 | AR104: 2009-09-29 | AU104: n.r. | AV104: n/a | BL104: 2009-09-29 | BN104: n/a | BQ104: 0 | BR104: n/a | BV104: 2009-12-04 | BY104: 2009-11-20 | BZ104: no | DP104: 2009 | DV104: net metering | FP104: Y | FR104: Y | FS104: N | FU104: 2009-09-29
A105: Kim Mcgovern | B105: Sun Run | C105: SIMP | F105: Completed | H105: 6A96-2009 | J105: R3 | K105: R | L105: 54658391073 | M105: 672931004 | N105: 891864372 | O105: 454042006 | P105: 53 | Q105: Main St | T105: Hatfield | U105: MA | V105: 01038 | W105: WMECO | X105: 18G | Y105: 18G5 | AA105: non-PTF | AB105: Photovoltaic | AC105: Inverter | AD105: No Cap | AE105: n/a | AG105: 2009-12-09 | AH105: 4.032 | AI105: =AJ105*0.8 -> 4.032 | AJ105: 5.04 | AK105: Class 1 (Solar / Wind) | AM105: 5.04 | AN105: 5.04 | AO105: 5.04 | AP105: Solar | AQ105: 2009 | AR105: 2009-10-21 | AU105: n.r. | AV105: n/a | BL105: 2009-11-10 | BN105: n/a | BO105: yes | BQ105: 0 | BR105: n/a | BV105: 2010-01-05 | BY105: 2009-11-15 | BZ105: no | DP105: 2010 | DV105: net metering | FP105: Y | FR105: Y | FS105: N | FU105: 2009-11-10
A106: Gary O'Connor | B106: Sun Run | C106: SIMP | F106: Completed | H106: 6A97-2009 | J106: R1 | K106: R | L106: 54303602015 | M106: 563841006 | N106: 891759172 | O106: 781552009 | P106: 131 | Q106: Former Rd | T106: Southampton | U106: MA | V106: 01073 | W106: WMECO | X106: 15A | Y106: 15A1 | Z106: PTF | AB106: Photovoltaic | AC106: Inverter | AD106: No Cap | AE106: n/a | AG106: 2009-12-07 | AH106: 4.032 | AI106: =AJ106*0.8 -> 4.032 | AJ106: 5.04 | AK106: Class 1 (Solar / Wind) | AM106: 5.04 | AN106: 5.04 | AO106: 5.04 | AP106: Solar | AQ106: 2009 | AR106: 2009-10-21 | AU106: n.r. | AV106: n/a | BL106: 2009-10-21 | BN106: n/a | BO106: 2009-11-13 | BQ106: 0 | BR106: n/a | BV106: 2009-12-09 | BY106: 2009-11-15 | BZ106: no | DP106: 2009 | DV106: net metering | FP106: Y | FR106: Y | FS106: N | FU106: 2009-10-29
A107: Alicia Hackerson | C107: SIMP | F107: Completed | H107: 6A98-2009 | J107: R3 | K107: R | L107: 54414102095 | M107: 071541006 | N107: 883963762 | O107: 242052008 | P107: 35 | Q107: Church St | T107: Huntington | U107: MA | V107: 01050 | W107: WMECO | X107: 19J | Y107: 19J1 | Z107: PTF | AB107: Photovoltaic | AC107: Inverter | AD107: No Cap | AE107: n/a | AG107: 2012-03-12 | AH107: 2.05 | AK107: Class 1 (Solar / Wind) | AM107: 2.05 | AN107: 2.05 | AO107: 2.05 | AP107: Solar | AQ107: 2009 | AR107: 2009-09-16 | AU107: n.r. | AV107: n/a | BL107: 2009-10-27 | BN107: n/a | BQ107: 0 | BR107: n/a | BV107: 2010-03-08 | BY107: 2009-09-14 | BZ107: no | DP107: 2010 | DV107: net metering | FP107: Y | FR107: Y | FS107: N | FU107: 2009-10-27
A108: James & Martha Hanner | B108: Sun Run | C108: SIMP | F108: Completed | H108: 6A99-2009 | J108: R1 | K108: R | L108: 54118002088 | M108: 197341009 | N108: 883910622 | O108: 013942007 | P108: 18 | Q108: Alyssum Dr | T108: Amherst | U108: MA | V108: 01002 | W108: WMECO | X108: 17K | Y108: 17K8 | AA108: non-PTF | AB108: Photovoltaic | AC108: Inverter | AD108: No Cap | AE108: n/a | AG108: 2009-12-23 | AH108: 3.9 | AI108: =AJ108*0.8 -> 0 | AK108: Class 1 (Solar / Wind) | AM108: 3.9 | AN108: 3.9 | AO108: 3.9 | AP108: Solar | AQ108: 2009 | AR108: 2009-10-27 | AU108: n.r. | AV108: n/a | BL108: 2009-10-28 | BN108: n/a | BO108: 2009-12-23 | BQ108: 0 | BR108: n/a | BV108: 2010-02-12 | BY108: 2009-12-01 | BZ108: no | DP108: 2010 | DV108: net metering | FP108: Y | FR108: Y | FS108: N
A109: That's a Plenty Farm | C109: SIMP | F109: Completed | H109: 6A100-2009 | J109: G0 | K109: C | L109: 54905125084 | M109: 548703002 | N109: 891742742 | O109: 439585008 | P109: 36 | Q109: Honey Pot Rd | T109: Hadley | U109: MA | V109: 01035 | W109: WMECO | X109: 18G | Y109: 18G4 | AA109: non-PTF | AB109: Photovoltaic | AC109: Inverter | AD109: No Cap | AE109: n/a | AG109: 2010-04-13 | AH109: 1.44 | AI109: =AJ109*0.8 -> 1.44 | AJ109: 1.8 | AK109: Class 1 (Solar / Wind) | AM109: 1.8 | AN109: 1.8 | AO109: 1.8 | AP109: Solar | AQ109: 2009 | AR109: 2009-10-01 | AU109: n.r. | AV109: n/a | BL109: 2009-11-13 | BN109: n/a | BQ109: 0 | BR109: n/a | BV109: 2010-04-30 | BY109: 2009-12-15 | BZ109: no | DP109: 2010 | DV109: net metering | DW109: new construction. < 10 kW single phase. NO CAP. | FP109: Y | FR109: Y | FS109: N | FU109: 2010-04-14
A110: Patrick Zephyr | B110: Sun Run | C110: SIMP | F110: Completed | H110: 6A101-2009 | J110: R1 | K110: R | L110: 54026602094 | M110: 062841005 | N110: 891865202 | O110: 845652008 | P110: 281 | Q110: North Valley Rd | R110: Lot | S110: 7 | T110: Pelham | U110: MA | V110: 01002 | W110: WMECO | X110: 17K | Y110: 17K2 | AA110: non-PTF | AB110: Photovoltaic | AC110: Inverter | AD110: No Cap | AE110: n/a | AG110: 2010-01-05 | AH110: 4.032 | AI110: =AJ110*0.8 -> 4.032 | AJ110: 5.04 | AK110: Class 1 (Solar / Wind) | AM110: 5.04 | AN110: 5.04 | AO110: 5.04 | AP110: Solar | AQ110: 2009 | AR110: 2009-11-19 | AU110: n.r. | AV110: n/a | BL110: 2009-11-24 | BN110: n/a | BO110: yes | BQ110: 0 | BR110: n/a | BV110: 2010-02-10 | BZ110: no | DP110: 2010 | DV110: net metering | FP110: Y | FR110: Y | FS110: N | FU110: 2009-11-25
A111: Saloma Furlong | C111: SIMP | F111: Completed | H111: 6A102-2009 | J111: R1 | K111: R | L111: 54166574061 | M111: 451821004 | N111: 891697552 | O111: 761912004 | P111: 6 | Q111: School St | T111: Sunderland | U111: MA | V111: 01375 | W111: WMECO | X111: 18G | Y111: 18G3 | AA111: non-PTF | AB111: Photovoltaic | AC111: Inverter | AD111: No Cap | AE111: n/a | AG111: 2009-12-18 | AH111: 2.392 | AI111: =AJ111*0.8 -> 2.392 | AJ111: 2.99 | AK111: Class 1 (Solar / Wind) | AM111: 2.9 | AN111: 2.9 | AO111: 2.9 | AP111: Solar | AQ111: 2009 | AR111: 2009-12-18 | AU111: n.r. | AV111: n/a | BL111: 2009-12-24 | BN111: n/a | BQ111: 0 | BR111: n/a | BV111: 2010-01-12 | BY111: 2009-12-18 | BZ111: no | DP111: 2010 | DV111: net metering | FP111: Y | FR111: Y | FS111: N | FU111: 2009-12-24
A112: Paul Tourville (was Daniel Dmuchovsky) | B112: (was Sun Run) | C112: SIMP | F112: Completed | H112: 6A103-2009 | J112: R1 | K112: R | L112: 54568047088 | M112: 830031004 | N112: 891865812 | O112: 758322003 | P112: 97 | Q112: Main Rd | T112: Westhampton | U112: MA | V112: 01027 | W112: WMECO | X112: 15A | Y112: 15A3 | Z112: PTF | AB112: Photovoltaic | AC112: Inverter | AD112: No Cap | AE112: n/a | AG112: 2016-02-08 | AH112: 4.032 | AI112: =AJ112*0.8 -> 4.032 | AJ112: 5.04 | AK112: Class 1 (Solar / Wind) | AM112: 5.04 | AN112: 5.04 | AO112: 5.04 | AP112: Solar | AQ112: 2009 | AR112: 2009-12-22 | AU112: n.r. | AV112: n/a | BL112: 2009-12-31 | BN112: n/a | BO112: yes | BQ112: 0 | BR112: n/a | BV112: 2010-04-07 | BY112: 2010-01-22 | BZ112: 2016-02-08 | DP112: 2010 | DV112: net metering | FO112: approved | FP112: Y | FR112: Y | FU112: 2009-12-31
A113: UMASS 2 MW Turbine addition to 4 MW & UMBA 9 MW | B113: UMBA | C113: STD | E113: Cindy | F113: Completed | H113: 6A104-2009 | J113: T2 | L113: 54548734086 | M113: 013092007 | N113: 004100100 | O113: 634105006 | P113: 200 | Q113: Mullins Way - Umass Campus | T113: Hadley | U113: MA | V113: 01002 | W113: WMECO | X113: 18G | Y113: 18G1 & 18G2 | AA113: non-PTF | AB113: Steam Turbine | AC113: cogeneration facility | AD113: n/a | AG113: no export | AH113: 0 | AK113: No Export | AM113: 15000 | AN113: 2000 | AO113: 2,000 kW add (15,000 kW total) | AP113: Natural Gas/Fuel Oil | AQ113: 2009 | AR113: 2009-12-30 | AU113: 2010-02-17 | BL113: 2011-02-22 | BN113: Yes | BO113: yes | BQ113: Combined amount $5M / $5M | BR113: 2015-05-01 | BS113: Yes | BT113: Yes | BV113: 2011-03-01 | BY113: 09/2010 | CA113: WDGCG001 | CB113: 2500 | CC113: 9697.58 | CD113: =CC113-CB113 -> 7197.58 | CO113: WDGCG00A | CP113: 55000 | CQ113: 41166.57 | CR113: 2010-04-02 | CS113: 2010-07-19 | DN113: 2512.55 | DO113: On line. | DP113: 2011 | DQ113: needed | DR113: needed | DU113: ?? | DV113: no export | DW113: This project has a Transmission Study work order = WDCGT001 | EC113: Attn: Raymond Jackson - Assist. Dir Utilities | ED113: Physical Plant 360 Campus Center Way | EE113: Amherst | EF113: MA | EG113: 01003-9248 | EH113: 413-545-0605 | FP113: Y | FR113: Y | FS113: N
A114: Amherst Housing (Town of Amherst) | C114: SIMP | F114: Completed | H114: 6A105-2010 | J114: G2 | K114: C | L114: 54361961022 | M114: 376521003 | N114: 889037782 | O114: 927412000 | P114: 33 | Q114: Kellogg Ave | R114: Ste | S114: 81 | T114: Amherst | U114: MA | V114: 01002 | W114: WMECO | X114: 17K | Y114: 17K4 | AA114: non-PTF | AB114: Photovoltaic | AC114: Inverter | AD114: No Cap | AE114: n/a | AG114: 2010-03-10 | AH114: 13.2 | AI114: =AJ114*0.8 -> 13.2 | AJ114: 16.5 | AK114: Class 1 (Solar / Wind) | AM114: 15 | AN114: 15 | AO114: 15 | AP114: Solar | AQ114: 2010 | AR114: 2010-01-13 | AU114: n.r. | AV114: n/a | BL114: 2010-01-18 | BN114: n/a | BQ114: 0 | BR114: n/a | BV114: 2010-03-29 | BY114: 2010-01-15 | BZ114: no | DP114: 2010 | DV114: net metering | DW114: (Attn Donna Ceabteee) - Town of Amherst. < 25 kW three phase. NO CAP | FP114: Y | FR114: Y | FS114: N | FU114: 2010-01-18
A115: Peter K. Hepler | C115: SIMP | F115: Completed | H115: 6A106-2010 | J115: R1 | K115: R | L115: 54514661040 | M115: 667321001 | N115: 888825452 | O115: 087212003 | P115: 6 | Q115: Quarry Rd | T115: Pelham | U115: MA | V115: 01002 | W115: WMECO | X115: 17K | Y115: 17K2 | AA115: non-PTF | AB115: Photovoltaic | AC115: Inverter | AD115: No Cap | AE115: n/a | AG115: 2013-01-02 | AH115: 4.416 | AI115: 4.416 | AJ115: 5.52 | AK115: Class 1 (Solar / Wind) | AM115: 5.52 | AN115: 5.52 | AO115: 5.52 | AP115: Solar | AQ115: 2010 | AR115: 2010-02-05 | AU115: n.r. | AV115: n/a | BL115: 2010-02-08 | BN115: n/a | BQ115: 0 | BR115: n/a | BV115: 2010-05-14 | BY115: 2010-05-01 | BZ115: no | DP115: 2010 | DV115: net metering | FP115: Y | FR115: Y | FS115: N | FU115: 2010-02-08
A116: Roger Bird | C116: EXP | E116: Cindy | F116: Completed | H116: 6A107-2010 | J116: R1 | K116: R | L116: 54477025043 | M116: 734303000 | N116: 890985332 | O116: 223855004 | P116: 88 | Q116: Shutesbury Rd | T116: Leverett | U116: MA | V116: 01054 | W116: WMECO | X116: 18G | Y116: 18G7 | AA116: non-PTF | AB116: Photovoltaic | AC116: Inverter | AD116: Private | AG116: 2010-02-08 | AH116: 8.736 | AI116: 8.736 | AJ116: 10.92 | AK116: Class 1 (Solar / Wind) | AM116: =9.995+3.8 -> 13.795 | AN116: =9.995+3.8 -> 13.795 | AO116: =9.995+3.8 -> 13.795 | AP116: Solar | AQ116: 2010 | AR116: 2010-02-05 | AU116: 2010-02-11 | BL116: 2010-02-12 | BN116: Yes | BQ116: 0 | BR116: n/a | BS116: Yes | BV116: 2010-02-18 | BY116: 2010-02-01 | BZ116: no | CA116: WDGSL005 | CB116: 300 | DC116: 1117.57 | DD116: 989 | DE116: 128.57 | DN116: 291.57 | DO116: On line. New construction. | DP116: 2010 | DQ116: ?? | DR116: ?? | DV116: net metering | EC116: Roger Bird | ED116: 88 Shutesbury Road | EE116: Leverett | EF116: MA | EG116: 01054 | EH116: 4135494959 | FP116: Y | FR116: Y | FS116: N | FU116: 2010-02-10
A117: Janice Lamberg (was Pioneer Valley Habitat for Humanity) | C117: SIMP | F117: Completed | H117: 6A108-2010 | J117: R1 | K117: R | L117: 54249535055 | M117: 128703009 | N117: 891805522 | O117: 926285006 | P117: 14 | Q117: Stanley St | T117: Amherst | U117: MA | V117: 01002 | W117: WMECO | X117: 17K | Y117: 17K8 | AA117: non-PTF | AB117: Photovoltaic | AC117: Inverter | AD117: No Cap | AE117: n/a | AG117: 2011-01-13 | AH117: 2.24 | AI117: 2.24 | AJ117: 2.8 | AK117: Class 1 (Solar / Wind) | AM117: 2.8 | AN117: 2.8 | AO117: 2.8 | AP117: Solar | AQ117: 2010 | AR117: 2010-02-18 | AU117: n.r. | AV117: n/a | BL117: 2010-03-01 | BN117: n/a | BQ117: 0 | BR117: n/a | BV117: 2010-03-12 | BY117: 2010-03-01 | BZ117: 2011-01-13 | DP117: 2010 | DV117: net metering | FP117: Y | FR117: Y | FS117: N | FU117: 2010-03-01
A118: Mary Methot | C118: SIMP | F118: Completed | H118: 6A109-2010 | J118: R1 | K118: R | L118: 54465794071 | M118: 904141000 | N118: 890690702 | O118: 764242005 | P118: 135 | Q118: Packardville Rd | T118: Pelham | U118: MA | V118: 01002 | W118: WMECO | X118: 17K | Y118: 17K2 | AA118: non-PTF | AB118: Photovoltaic | AC118: Inverter | AD118: No Cap | AE118: n/a | AG118: 2010-04-21 | AH118: 4.048 | AI118: 4.048 | AJ118: 5.06 | AK118: Class 1 (Solar / Wind) | AM118: 4.9 | AN118: 4.9 | AO118: 4.9 | AP118: Solar | AQ118: 2010 | AR118: 2010-03-05 | AU118: n.r. | AV118: n/a | BL118: 2010-03-26 | BN118: n/a | BQ118: 0 | BR118: n/a | BV118: 2010-05-07 | BY118: 2010-04-01 | BZ118: no | DP118: 2010 | DV118: net metering | FP118: Y | FR118: Y | FS118: N | FU118: 2010-03-26
A119: Sara Ross | C119: EXP | E119: Cindy | F119: Completed | H119: 6A110-2010 | J119: R1 | K119: R | L119: 54427481080 | M119: 528621009 | N119: 892150822 | O119: 067812007 | P119: 82 | Q119: Cottage St | T119: Amherst | U119: MA | V119: 01002 | W119: WMECO | X119: 17K | Y119: 17K3 | AA119: non-PTF | AB119: Photovoltaic | AC119: Inverter | AD119: Private | AG119: 2013-03-18 | AH119: 9.936 | AI119: 9.936 | AJ119: 12.42 | AK119: Class 1 (Solar / Wind) | AM119: 14.7 | AN119: 14.7 | AO119: 14.7 | AP119: Solar | AQ119: 2010 | AR119: 2010-04-01 | AU119: 2010-04-12 | BL119: 2010-05-18 | BN119: Yes | BQ119: 0 | BR119: n/a | BS119: Yes | BV119: 2010-06-23 | BY119: 5/2010 | BZ119: no | CA119: WDGSL006 | CB119: 300 | DC119: 6500 | DD119: 5200 | DE119: 1300 | DN119: 207.96 | DO119: On line. New construction. | DP119: 2010 | DQ119: ?? | DR119: ?? | DV119: net metering | EC119: Sara Ross | ED119: 82 Cottage Street | EE119: Amherst | EF119: MA | EG119: 01002 | EH119: 4135495690 | FP119: Y | FR119: Y | FS119: N | FU119: 2010-05-20
A120: Charles Emmons | C120: SIMP | F120: Completed | H120: 6A111-2010 | J120: R1 | K120: R | L120: 54338102056 | M120: 358441007 | N120: 892151302 | O120: 038842004 | P120: 457 | Q120: Montague Rd | T120: Sunderland | U120: MA | V120: 01375 | W120: WMECO | X120: 18G | Y120: 18G3 | AA120: non-PTF | AB120: Photovoltaic | AC120: Inverter | AD120: No Cap | AE120: n/a | AG120: 2010-04-06 | AH120: 5.208 | AI120: 5.208 | AJ120: 6.51 | AK120: Class 1 (Solar / Wind) | AM120: 6.51 | AN120: 6.51 | AO120: 6.51 | AP120: Solar | AQ120: 2010 | AR120: 2010-04-06 | AU120: n.r. | AV120: n/a | BL120: 2010-04-09 | BN120: n/a | BQ120: 0 | BR120: n/a | BV120: 2010-06-23 | BY120: 2010-07-01 | BZ120: no | DP120: 2010 | DV120: net metering | FR120: N.R. | FT120: cancelled - new application submitted | FU120: 2010-04-09
A121: Bob Saul (new 6A115-2010) | B121: Sun Run | C121: SIMP | F121: Cancelled | H121: 6A111A-2010 | J121: R1 | K121: R | L121: 54772502076 | M121: 645641007 | N121: 883786412 | O121: 912452006 | P121: 321 | Q121: East Hadley Rd | T121: Amherst | U121: MA | V121: 01002 | W121: WMECO | X121: 17K | Y121: 17K1 | AA121: non-PTF | AB121: Photovoltaic | AC121: Inverter | AD121: n/a | AG121: n/a | AK121: N/A | AO121: 4.8 | AP121: Solar | AQ121: 2010 | AR121: 2010-04-08 | AU121: n.r. | AV121: canc | BM121: canc | BN121: n/a | BO121: needed | BQ121: 0 | BR121: n/a | BY121: 2010-04-30 | BZ121: no | DP121: Cancelled | DV121: net metering | FP121: Y | FR121: Y | FS121: N
A122: Fisher Home, Inc. | C122: SIMP | F122: Completed | H122: 6A112-2010 | J122: G0 | K122: C | L122: 54690271077 | M122: 783621008 | N122: 892000502 | O122: 743612004 | P122: 1165 | Q122: North Pleasant St | T122: Amherst | U122: MA | V122: 01002 | W122: WMECO | X122: 18G | Y122: 18G4 | AA122: non-PTF | AB122: Photovoltaic | AC122: Inverter | AD122: No Cap | AE122: n/a | AG122: 2010-06-18 | AH122: 4.16 | AI122: =AJ122*0.8 -> 4.16 | AJ122: 5.2 | AK122: Class 1 (Solar / Wind) | AM122: 4.9 | AN122: 4.9 | AO122: 4.9 | AP122: Solar | AQ122: 2010 | AR122: 2010-05-14 | AU122: n.r. | AV122: n/a | BL122: 2010-05-18 | BN122: n/a | BQ122: 0 | BR122: n/a | BV122: 2010-06-18 | BY122: 2010-05-30 | BZ122: no | DP122: 2010 | DV122: net metering | DW122: < 10 kW single phase. NO CAP | FP122: Y | FR122: Y | FS122: N | FU122: 2010-05-18
A123: Andrew Cowles | C123: SIMP | F123: Completed | H123: 6A113-2010 | J123: G0 | K123: C | L123: 54970402053 | M123: 696541004 | N123: 892000542 | O123: 909252003 | P123: 1178 | Q123: South East St | T123: Amherst | U123: MA | V123: 01003 | W123: WMECO | X123: 17K | Y123: 17K8 | AA123: non-PTF | AB123: Photovoltaic | AC123: Inverter | AD123: No Cap | AE123: n/a | AG123: 2010-05-12 | AH123: 3.52 | AI123: 3.52 | AJ123: 4.4 | AK123: Class 1 (Solar / Wind) | AM123: 3.9 | AN123: 3.9 | AO123: 3.9 | AP123: Solar | AQ123: 2010 | AR123: 2010-05-12 | AU123: n.r. | AV123: n/a | BL123: 2010-05-17 | BN123: n/a | BQ123: 0 | BR123: n/a | BV123: 2010-07-01 | BY123: 2010-06-11 | BZ123: no | DP123: 2010 | DV123: net metering | FP123: Y | FR123: Y | FS123: N | FU123: 2010-05-17
A124: Lisa Rutledge (was Don Muccino) | C124: SIMP | F124: Completed | H124: 6A114-2010 | J124: R1 | K124: R | L124: 54378146039 | M124: 446931007 | N124: 892150952 | O124: 227932005 | P124: 17 | Q124: Pleasant View Dr | T124: Hatfield | U124: MA | V124: 01038 | W124: WMECO | X124: 18G | Y124: 18G5 | AA124: non-PTF | AB124: Photovoltaic | AC124: Inverter | AD124: No Cap | AE124: n/a | AG124: 2013-04-18 | AH124: 4.128 | AI124: 4.128 | AJ124: 5.16 | AK124: Class 1 (Solar / Wind) | AM124: 4.9 | AN124: 4.9 | AO124: 4.9 | AP124: Solar | AQ124: 2010 | AR124: 2010-05-06 | AS124: 2010-05-07 | AT124: =IF(AS124=0,NETWORKDAYS(AR124,$A$4),NETWORKDAYS(AR124,AS124)) -> 2 | AU124: n.r. | AV124: n/a | BL124: 2010-05-17 | BN124: n/a | BQ124: 0 | BR124: n/a | BV124: 2010-06-14 | BY124: 2010-05-30 | BZ124: 2013-04-18 | DP124: 2010 | DV124: net metering | FP124: Y | FR124: Y | FU124: 2010-05-17
A125: Bob Saul | B125: Sun Run | C125: SIMP | F125: Completed | H125: 6A115-2010 | J125: R1 | K125: R | L125: 54772502076 | M125: 645641007 | N125: 891866522 | O125: 912452006 | P125: 321 | Q125: East Hadley Rd | T125: Amherst | U125: MA | V125: 01002 | W125: WMECO | X125: 17K | Y125: 17K1 | AA125: non-PTF | AB125: Photovoltaic | AC125: Inverter | AD125: No Cap | AE125: n/a | AG125: 2010-05-26 | AH125: 5.76 | AI125: 5.76 | AJ125: 7.2 | AK125: Class 1 (Solar / Wind) | AM125: 7 | AN125: 7 | AO125: 7 | AP125: Solar | AQ125: 2010 | AR125: 2010-05-26 | AU125: n.r. | AV125: n/a | BL125: 2010-06-04 | BN125: n/a | BO125: 2010-06-21 | BQ125: 0 | BR125: n/a | BV125: 2010-11-16 | BY125: 2010-06-15 | BZ125: no | DP125: 2010 | DV125: net metering | FP125: Y | FR125: Y | FU125: 2010-06-07
A126: Jeannette Wicks-Lim | B126: Sun Run | C126: SIMP | F126: Completed | H126: 6A116-2010 | J126: R1 | K126: R | L126: 54211571062 | M126: 463503006 | N126: 891866862 | O126: 240665004 | P126: 865 | Q126: Belchertown Rd | T126: Amherst | U126: MA | V126: 01002 | W126: WMECO | X126: 17K | Y126: 17K2 | AA126: non-PTF | AB126: Photovoltaic | AC126: Inverter | AD126: No Cap | AE126: n/a | AG126: 2010-05-26 | AH126: 4.08 | AI126: 4.08 | AJ126: 5.1 | AK126: Class 1 (Solar / Wind) | AM126: 4.9 | AN126: 4.9 | AO126: 4.9 | AP126: Solar | AQ126: 2010 | AR126: 2010-05-26 | AU126: n.r. | AV126: n/a | BL126: 2010-06-17 | BN126: n/a | BO126: 2010-07-01 | BQ126: 0 | BR126: n/a | BV126: 2010-10-08 | BY126: 2010-06-30 | BZ126: no | DP126: 2010 | DV126: net metering | FP126: Y | FR126: Y | FU126: 2010-06-18
A127: Vicky Pillard | C127: SIMP | F127: Completed | H127: 6A117-2010 | J127: R1 | K127: R | L127: 54568402093 | M127: 702641004 | N127: 891866612 | O127: 240665004 | P127: 120 | Q127: Pulpit Hill Rd | R127: Unit | S127: 16 | T127: Amherst | U127: MA | V127: 01002 | W127: WMECO | X127: 18G | Y127: 18G7 | AA127: non-PTF | AB127: Photovoltaic | AC127: Inverter | AD127: No Cap | AE127: n/a | AG127: 2010-06-07 | AH127: 3.024 | AI127: 3.024 | AJ127: 3.78 | AK127: Class 1 (Solar / Wind) | AM127: 3.326 | AN127: 3.326 | AO127: 3.326 | AP127: Solar | AQ127: 2010 | AR127: 2010-06-07 | AU127: n.r. | AV127: n/a | BL127: 2010-06-09 | BN127: n/a | BQ127: 0 | BR127: n/a | BV127: 2010-08-13 | BY127: 2010-06-30 | BZ127: no | DP127: 2010 | DV127: net metering | FP127: Y | FR127: Y | FU127: 2010-06-09
A128: Charles Bodhi | C128: SIMP | F128: Completed | H128: 6A118-2010 | J128: R1 | K128: R | L128: 54696502087 | M128: 192641008 | N128: 891866272 | O128: 942252004 | P128: 120 | Q128: Pulpit Hill Rd | R128: Unit | S128: 24 | T128: Amherst | U128: MA | V128: 01002 | W128: WMECO | X128: 18G | Y128: 18G7 | AA128: non-PTF | AB128: Photovoltaic | AC128: Inverter | AD128: No Cap | AE128: n/a | AG128: 2010-06-07 | AH128: 2.952 | AI128: 2.952 | AJ128: 3.69 | AK128: Class 1 (Solar / Wind) | AM128: 3.247 | AN128: 3.247 | AO128: 3.247 | AP128: Solar | AQ128: 2010 | AR128: 2010-06-07 | AU128: n.r. | AV128: n/a | BL128: 2010-06-14 | BN128: n/a | BQ128: 0 | BR128: n/a | BV128: 2010-08-13 | BY128: 2010-06-30 | BZ128: no | DP128: 2010 | DV128: net metering | FP128: Y | FR128: Y | FU128: 2010-06-14
A129: Mary Kraus | C129: SIMP | F129: Completed | H129: 6A119-2010 | J129: R1 | K129: R | L129: 54448402099 | M129: 746641000 | N129: 891866532 | O129: 796452007 | P129: 120 | Q129: Pulpit Hill Rd | R129: Unit | S129: 14 | T129: Amherst | U129: MA | V129: 01002 | W129: WMECO | X129: 18G | Y129: 18G7 | AA129: non-PTF | AB129: Photovoltaic | AC129: Inverter | AD129: No Cap | AE129: n/a | AG129: 2010-06-07 | AH129: 4.704 | AI129: 4.704 | AJ129: 5.88 | AK129: Class 1 (Solar / Wind) | AM129: 5.174 | AN129: 5.174 | AO129: 5.174 | AP129: Solar | AQ129: 2010 | AR129: 2010-06-07 | AU129: n.r. | AV129: n/a | BL129: 2010-06-09 | BN129: n/a | BQ129: 0 | BR129: n/a | BV129: 2010-09-17 | BY129: 2010-06-30 | BZ129: no | DP129: 2010 | DV129: net metering | FP129: Y | FR129: Y | FU129: 2010-06-09
A130: Nancy Bair | C130: SIMP | F130: Completed | H130: 6A120-2010 | J130: R1 | K130: R | L130: 54786502088 | M130: 437641009 | N130: 891866662 | O130: 176452007 | P130: 120 | Q130: Pulpit Hill Rd | R130: Unit | S130: 5 | T130: Amherst | U130: MA | V130: 01002 | W130: WMECO | X130: 18G | Y130: 18G7 | AA130: non-PTF | AB130: Photovoltaic | AC130: Inverter | AD130: No Cap | AE130: n/a | AG130: 2010-06-07 | AH130: 2.296 | AI130: 2.296 | AJ130: 2.87 | AK130: Class 1 (Solar / Wind) | AM130: 2.525 | AN130: 2.525 | AO130: 2.525 | AP130: Solar | AQ130: 2010 | AR130: 2010-06-07 | AU130: n.r. | AV130: n/a | BL130: 2010-06-09 | BN130: n/a | BQ130: 0 | BR130: n/a | BV130: 2010-09-17 | BY130: 2010-06-30 | BZ130: no | DP130: 2010 | DV130: net metering | FR130: N.R. | FT130: cancelled - new application submitted | FU130: 2010-06-09
A131: Navjiwan Fuller (new 6A126-2010) | C131: SIMP | F131: Cancelled | H131: 6A121-2010 | J131: R1 | K131: R | L131: 54268502010 | M131: 125741001 | N131: 988423062 | O131: 745452009 | P131: 189 | Q131: Long Plain Rd | T131: Leverett | U131: MA | V131: 01054 | W131: WMECO | AB131: Photovoltaic | AC131: Inverter | AD131: n/a | AG131: n/a | AK131: N/A | AO131: 4.9 | AP131: Solar | AQ131: 2010 | AR131: 2010-06-11 | AU131: n.r. | AV131: canc | BL131: 2010-07-14 | BN131: n/a | BQ131: 0 | BR131: n/a | BY131: 2010-06-24 | BZ131: no | DP131: Cancelled | DV131: net metering | DW131: cancld - diff inverter new appl submitted see 6A126-2010 | FP131: Y | FR131: Y | FU131: 2010-07-14
A132: Peter Jessop | C132: SIMP | F132: Completed | H132: 6A122-2010 | J132: R1 | K132: R | L132: 54327502084 | M132: 659641005 | N132: 891866292 | O132: 717452007 | P132: 120 | Q132: Pulpit Hill Rd | R132: Unit | S132: 15 | T132: Amherst | U132: MA | V132: 01002 | W132: WMECO | X132: 18G | Y132: 18G7 | AA132: non-PTF | AB132: Photovoltaic | AC132: Inverter | AD132: No Cap | AE132: n/a | AG132: 2010-06-15 | AH132: 3.024 | AI132: =AJ132*0.8 -> 3.024 | AJ132: 3.78 | AK132: Class 1 (Solar / Wind) | AM132: 3.9 | AN132: 3.9 | AO132: 3.9 | AP132: Solar | AQ132: 2010 | AR132: 2010-06-15 | AU132: n.r. | AV132: n/a | BL132: 2010-07-01 | BN132: n/a | BQ132: 0 | BR132: n/a | BV132: 2010-08-13 | BY132: 2010-06-30 | BZ132: no | DP132: 2010 | DV132: net metering | FP132: Y | FR132: Y | FU132: 2010-07-01
A133: Dirgha Gurung (was William Allan) | C133: SIMP | F133: Completed | H133: 6A123-2010 | J133: R3 | K133: R | L133: 54196207070 | M133: 804031009 | N133: 891866872 | O133: 696322003 | P133: 85 | Q133: Rocky Hill Rd | T133: Hadley | U133: MA | V133: 01035 | W133: WMECO | X133: 18G | Y133: 18G4 | AA133: non-PTF | AB133: Photovoltaic | AC133: Inverter | AD133: No Cap | AE133: n/a | AG133: 2015-02-04 | AH133: 4.048 | AI133: 4.048 | AJ133: 5.06 | AK133: Class 1 (Solar / Wind) | AM133: 5.3 | AN133: 5.3 | AO133: 5.3 | AP133: Solar | AQ133: 2010 | AR133: 2010-06-21 | AU133: n.r. | AV133: n/a | BL133: 2010-06-24 | BN133: n/a | BQ133: 0 | BR133: n/a | BV133: 2010-08-26 | BY133: 2010-08-10 | BZ133: 2015-02-04 | DP133: 2010 | DV133: net metering | FP133: Y | FR133: Y | FU133: 2010-06-25
A134: Al Haskins | C134: SIMP | F134: Completed | H134: 6A124-2010 | J134: R1 | K134: R | L134: 54255202095 | M134: 809541006 | N134: 891866762 | O134: 705152008 | P134: 163 | Q134: Russell St | T134: Sunderland | U134: MA | V134: 01375 | W134: WMECO | X134: =LEFT(Y134,3) -> 18G | Y134: 18G6 | AA134: non-PTF | AB134: Photovoltaic | AC134: Inverter | AD134: No Cap | AE134: n/a | AG134: 2010-06-21 | AH134: 4.512 | AI134: 4.512 | AJ134: 5.64 | AK134: Class 1 (Solar / Wind) | AM134: 6 | AN134: 6 | AO134: 6 | AP134: Solar | AQ134: 2010 | AR134: 2010-06-21 | AU134: n.r. | AV134: n/a | BL134: 2010-06-22 | BN134: n/a | BQ134: 0 | BR134: n/a | BV134: 2010-10-13 | BY134: 2010-09-01 | BZ134: no | DP134: 2010 | DV134: net metering | FP134: Y | FR134: Y | FU134: 2010-06-22
A135: Richard Strong | B135: Sun Run | C135: SIMP | F135: Completed | H135: 6A125-2010 | J135: R1 | K135: R | L135: 54773991096 | M135: 263341007 | N135: 891867122 | O135: 808642008 | P135: 166 | Q135: Main St | T135: Hatfield | U135: MA | V135: 01038 | W135: WMECO | X135: 18G | Y135: 18G6 | AA135: non-PTF | AB135: Photovoltaic | AC135: Inverter | AD135: No Cap | AE135: n/a | AG135: 2010-07-13 | AH135: 4.704 | AI135: 4.704 | AJ135: 5.88 | AK135: Class 1 (Solar / Wind) | AM135: 5.3 | AN135: 5.3 | AO135: 5.3 | AP135: Solar | AQ135: 2010 | AR135: 2010-07-13 | AU135: n.r. | AV135: n/a | BL135: 2010-07-14 | BN135: n/a | BO135: 2010-07-22 | BQ135: 0 | BR135: n/a | BV135: 2010-11-16 | BY135: 2010-08-15 | BZ135: no | DP135: 2010 | DV135: net metering | FP135: Y | FR135: Y | FU135: 2010-07-14
A136: Navjiwan Fuller | C136: SIMP | F136: Completed | H136: 6A126-2010 | J136: R1 | K136: R | L136: 54268502010 | M136: 125741001 | N136: 891867092 | O136: 745452009 | P136: 189 | Q136: Long Plain Rd | T136: Leverett | U136: MA | V136: 01054 | W136: WMECO | X136: 18G | Y136: 18G7 | AA136: non-PTF | AB136: Photovoltaic | AC136: Inverter | AD136: No Cap | AE136: n/a | AG136: 2010-06-24 | AH136: 4.032 | AI136: 4.032 | AJ136: 5.04 | AK136: Class 1 (Solar / Wind) | AM136: 5 | AN136: 5 | AO136: 5 | AP136: Solar | AQ136: 2010 | AR136: 2010-07-21 | AU136: n.r. | AV136: n/a | BL136: 2010-07-21 | BN136: n/a | BQ136: 0 | BR136: n/a | BV136: 2010-07-30 | BY136: 2010-07-24 | BZ136: no | DP136: 2010 | DV136: net metering | FP136: Y | FR136: Y | FU136: 2010-07-14
A137: Mark & Elisabeth Hamin | B137: Sun Run | C137: SIMP | F137: Completed | H137: 6A127-2010 | J137: R1 | K137: R | L137: 54319002010 | M137: 983441001 | N137: 891863902 | O137: 369842009 | P137: 75 | Q137: State St | T137: Amherst | U137: MA | V137: 01002 | W137: WMECO | X137: 18G | Y137: 18G7 | AA137: non-PTF | AB137: Photovoltaic | AC137: Inverter | AD137: No Cap | AE137: n/a | AG137: 2010-07-26 | AH137: 4.032 | AI137: 4.032 | AJ137: 5.04 | AK137: Class 1 (Solar / Wind) | AM137: 4.9 | AN137: 4.9 | AO137: 4.9 | AP137: Solar | AQ137: 2010 | AR137: 2010-07-26 | AU137: n.r. | AV137: n/a | BL137: 2010-07-28 | BN137: n/a | BO137: 2010-08-11 | BQ137: 0 | BR137: n/a | BV137: 2011-01-18 | BZ137: no | DP137: 2011 | DV137: net metering | FR137: N.R. | FT137: cancelled - new application submitted | FU137: 2010-07-30
A138: MR Banas Ins Agency Inc. (new 6A129-2010) | C138: SIMP | F138: Cancelled | H138: 6A128-2010 | J138: G0 | L138: 54048091045 | M138: 055831006 | N138: 891545732 | O138: 202732003 | P138: 63 | Q138: Main St | T138: Easthampton | U138: MA | V138: 01027 | W138: WMECO | X138: 19B | Y138: 19B6 | Z138: PTF | AB138: Wind Turbine | AC138: Inverter | AD138: n/a | AG138: n/a | AK138: N/A | AO138: 6 | AP138: Wind | AQ138: 2010 | AR138: 2010-07-29 | AU138: n.r. | AV138: canc | BM138: canc | BN138: n/a | BQ138: 0 | BR138: n/a | BY138: 2010-08-20 | DP138: Cancelled | DV138: net metering | FR138: N.R. | FT138: cancelled
A139: MR Banas Insurance Agency Inc. | B139: Urban Power | C139: SIMP | F139: Cancelled | H139: 6A129-2010 | J139: G0 | L139: 54048091045 | M139: 055831006 | N139: 891545732 | O139: 202732003 | P139: 63 | Q139: Main St | T139: Easthampton | U139: MA | V139: 01027 | W139: WMECO | X139: 15A | Y139: 15A5 | Z139: PTF | AB139: Wind Turbine | AC139: Inverter | AD139: n/a | AG139: n/a | AK139: N/A | AO139: 6 | AP139: Wind | AQ139: 2010 | AR139: 2010-08-03 | AU139: n.r. | AV139: canc | BM139: canc | BN139: n/a | BO139: needed | BQ139: 0 | BR139: n/a | BY139: 2010-08-20 | DP139: Cancelled | DV139: net metering | DW139: project cancelled | FR139: N.R. | FT139: cancelled - new application submitted
A140: Simple Gifts Farm (new 6A133-2010) | C140: SIMP | F140: Cancelled | H140: 6A130-2010 | P140: 1089 | Q140: North Pleasant St | T140: Amherst | U140: MA | V140: 01002 | W140: WMECO | AB140: Photovoltaic | AC140: Inverter | AD140: n/a | AG140: n/a | AK140: N/A | AO140: 8.1 | AP140: Solar | AQ140: 2010 | AR140: 2010-08-03 | AU140: n.r. | AV140: canc | BM140: canc | BN140: n/a | BQ140: 0 | BR140: n/a | BY140: 2010-08-15 | DP140: Cancelled | DV140: net metering | FP140: Y | FR140: Y
A141: Wesley Brown | C141: SIMP | F141: Completed | H141: 6A131-2010 | J141: R1 | K141: R | L141: 54101961068 | M141: 322521009 | N141: 891867242 | O141: 780512005 | P141: 117 | Q141: Plain Rd West | T141: South Deerfield | U141: MA | V141: 01373 | W141: WMECO | X141: 22B | Y141: 22B1 | Z141: PTF | AB141: Photovoltaic | AC141: Inverter | AD141: No Cap | AE141: n/a | AG141: 2010-08-09 | AH141: 7.176 | AI141: =AJ141*0.8 -> 7.176 | AJ141: 8.97 | AK141: Class 1 (Solar / Wind) | AM141: 9.995 | AN141: 9.995 | AO141: 9.995 | AP141: Solar | AQ141: 2010 | AR141: 2010-08-09 | AU141: n.r. | AV141: n/a | BL141: 2010-08-12 | BN141: n/a | BQ141: 0 | BR141: n/a | BV141: 2010-11-16 | BY141: 2010-11-01 | DP141: 2010 | DV141: net metering | FR141: N.R. | FT141: cancelled - new application submitted | FU141: 2010-08-13
A142: Brian Towles (new 6A139-2010) | C142: SIMP | F142: Cancelled | H142: 6A132-2010 | J142: R1 | K142: R | L142: 54584871008 | M142: 154031009 | N142: 891867162 | O142: 313322009 | P142: 73 | Q142: Phelps St | T142: Easthampton | U142: MA | V142: 01027 | W142: WMECO | AB142: Photovoltaic | AC142: Inverter | AD142: n/a | AG142: n/a | AK142: N/A | AO142: 3.9 | AP142: Solar | AQ142: 2010 | AR142: 2010-08-10 | AU142: n.r. | AV142: canc | BL142: 2010-08-12 | BN142: n/a | BQ142: 0 | BR142: n/a | BY142: 2010-10-21 | BZ142: no | DP142: Cancelled | DV142: net metering | DW142: (cancld - changed inverter see 6A139-2010) | FR142: N.R. | FT142: cancelled - new application submitted | FU142: 2010-08-13
A143: Jeremy Barker-Plotkin (new 6A135-2010) | C143: SIMP | F143: Cancelled | H143: 6A133-2010 | J143: G0 | L143: 54607891017 | M143: 505241008 | N143: 889943762 | O143: 023542009 | P143: 1089 | Q143: North Pleasant St | T143: Amherst | U143: MA | V143: 01002 | W143: WMECO | AB143: Photovoltaic | AC143: Inverter | AD143: n/a | AG143: n/a | AK143: N/A | AO143: 8.1 | AP143: Solar | AQ143: 2010 | AR143: 2010-08-05 | AU143: n.r. | AV143: canc | BM143: canc | BN143: n/a | BQ143: 0 | BR143: n/a | BY143: 2010-08-15 | BZ143: no | DP143: Cancelled | DV143: net metering | DW143: (cancld - new appl submitted w/dif inverter see ID 6A135-2010) | FP143: Y | FR143: Y
A144: Cultivating Solutions, LLC | C144: EXP | E144: Carla | F144: Completed | H144: 6A134-2010 | J144: G0 | K144: C | L144: 54270545064 | M144: 445103001 | N144: 891880612 | O144: 626945007 | P144: 17 | Q144: Lawrence Plain Rd | S144: Barn | T144: Hadley | U144: MA | V144: 01035 | W144: WMECO | X144: 17K | Y144: 17K5 | AA144: non-PTF | AB144: Photovoltaic | AC144: Inverter | AD144: Private | AG144: 2014-09-12 | AH144: 27.456 | AI144: =AJ144*0.8 -> 27.456 | AJ144: 34.32 | AK144: Class 1 (Solar / Wind) | AM144: 30.3 | AN144: 30.3 | AO144: 30.3 | AP144: Solar | AQ144: 2010 | AR144: 2010-08-20 | AU144: 2010-09-03 | BL144: 2010-09-21 | BN144: Yes | BQ144: 0 | BR144: n/a | BS144: Yes | BV144: 2010-11-10 | BY144: 2010-09-20 | CA144: WDGSL014 | CB144: 300 | DC144: 2548.91 | DD144: 2055.57 | DE144: 493.34 | DN144: 27.93 | DO144: On line. | DP144: 2010 | DQ144: ?? | DR144: ?? | DV144: net metering | EC144: Attn: Michael Docter | ED144: 113 Bay Road | EE144: Hadley | EF144: MA | EG144: 01035 | EH144: 4133877140 | FR144: N.R. | FT144: cancelled - new application submitted | FU144: 2010-11-05
A145: Jeremy Barker-Plotkin (new 6A142-2010) | C145: SIMP | F145: Cancelled | H145: 6A135-2010 | J145: G0 | L145: 54607891017 | M145: 505241008 | N145: 889943762 | O145: 023542009 | P145: 1089 | Q145: North Pleasant St | T145: Amherst | U145: MA | V145: 01002 | W145: WMECO | X145: 18G | Y145: 18G4 | AA145: non-PTF | AB145: Photovoltaic | AC145: Inverter | AD145: n/a | AG145: n/a | AK145: N/A | AO145: 9.995 | AP145: Solar | AQ145: 2010 | AR145: 2010-08-27 | AU145: n.r. | AV145: canc | BM145: canc | BN145: n/a | BQ145: 0 | BR145: n/a | BY145: 2010-09-05 | DP145: Cancelled | DV145: net metering | DW145: (cancld - new appl submitted w/diff inverter see 6A142-2010) | FP145: Y | FR145: Y
A146: Hampshire College - Longsworth Arts | C146: EXP | E146: Erik | F146: Completed | H146: 6A136-2010 | J146: T2 | K146: C | L146: 54917561086 | M146: 538221007 | N146: 064632791 + 078004591 | O146: 082212006 | P146: 893 | Q146: West St | T146: Amherst | U146: MA | V146: 01002 | W146: WMECO | X146: 19B | Y146: 19B16 | Z146: PTF | AB146: Photovoltaic | AC146: Inverter | AD146: n/a | AG146: no export | AH146: 0 | AK146: No Export | AM146: 39.6 | AN146: 39.6 | AO146: 39.6 | AP146: Solar | AQ146: 2010 | AR146: 2010-08-30 | AU146: 2010-09-10 | BL146: 2010-10-01 | BN146: Yes | BQ146: 0 | BR146: n/a | BS146: No | BV146: 2010-10-15 | BY146: 2010-09-01 | BZ146: no | CA146: WDGSL016 | DO146: On line. | DP146: 2010 | DQ146: needed | DR146: needed | DV146: n/a - not expected to export | EC146: Trustees of Hampshire College Attn: Larry Archer | ED146: 893 West St | EE146: Amherst | EF146: MA | EG146: 01002 | EH146: 4135595767 | EI146: 4135595662 | FP146: Y | FR146: Y | FU146: 2010-09-22
A147: Alan Sax | C147: SIMP | F147: Completed | H147: 6A137-2010 | J147: R1 | K147: R | L147: 54508402021 | M147: 840641002 | N147: 892149012 | O147: 699352001 | P147: 161 | Q147: Pine St | R147: Apt | S147: F | T147: Amherst | U147: MA | V147: 01002 | W147: WMECO | X147: 18G | Y147: 18G7 | AA147: non-PTF | AB147: Photovoltaic | AC147: Inverter | AD147: No Cap | AE147: n/a | AG147: 2012-04-10 | AH147: 4.536 | AI147: =AJ147*0.8 -> 4.536 | AJ147: 5.67 | AK147: Class 1 (Solar / Wind) | AM147: 6 | AN147: 6 | AO147: 6 | AP147: Solar | AQ147: 2010 | AR147: 2010-09-13 | AU147: n.r. | AV147: n/a | BL147: 2010-09-20 | BN147: n/a | BQ147: 0 | BR147: n/a | BV147: 2011-01-05 | BY147: 2010-12-01 | BZ147: no | DP147: 2011 | DV147: net metering | FP147: Y | FR147: Y | FU147: 2010-09-20
A148: Carolyn & Kyle Cave | C148: EXP | E148: Cindy | F148: Completed | H148: 6A138-2010 | J148: R1 | K148: R | L148: 54145771010 | M148: 659613005 | N148: 890985372 | O148: 126926001 | P148: 18 | Q148: Kennedy Dr | T148: Hadley | U148: MA | V148: 01035 | W148: WMECO | X148: 18G | Y148: 18G5 | AA148: non-PTF | AB148: Photovoltaic | AC148: Inverter | AD148: Private | AG148: 2015-01-20 | AH148: 17.304 | AI148: =AJ148*0.8 -> 17.304 | AJ148: 21.63 | AK148: Class 1 (Solar / Wind) | AM148: 25.5 | AN148: 25.5 | AO148: 25.5 | AP148: Solar | AQ148: 2010 | AR148: 2010-09-21 | AU148: 2010-10-22 | BL148: 2010-11-30 | BN148: Yes | BQ148: 0 | BR148: n/a | BS148: Yes | BV148: 2011-02-23 | BY148: 2010-11-01 | CA148: WDGSL019 | CB148: 300 | DC148: 3000 | DD148: 2650 | DE148: 350 | DN148: 65.64 | DO148: On line. New construction. | DP148: 2011 | DQ148: ?? | DR148: ?? | DV148: net metering | DW148: new construction | EC148: Carolyn Cave | ED148: 18 Kennedy Drive | EE148: Hadley | EF148: MA | EG148: 01035 | EH148: 4135490321 | FR148: N.R. | FT148: cancelled - new application submitted | FU148: 2010-12-01
A149: Brian Towles (new 6A148-2010) | C149: SIMP | F149: Cancelled | H149: 6A139-2010 | J149: R1 | K149: R | L149: 54584871008 | M149: 154031009 | N149: 891867162 | O149: 313322009 | P149: 73 | Q149: Phelps St | T149: Easthampton | U149: MA | V149: 10583 | W149: WMECO | X149: 15A | Y149: 15A1 | Z149: PTF | AB149: Photovoltaic | AC149: Inverter | AD149: n/a | AG149: n/a | AK149: N/A | AO149: 4.18 | AP149: Solar | AQ149: 2010 | AR149: 2010-10-27 | AU149: n.r. | AV149: canc | BL149: 2010-11-03 | BN149: n/a | BQ149: 0 | BR149: n/a | BY149: 2010-01-15 | DP149: Cancelled | DV149: net metering | DW149: Customer applied, changed inverters, cancelled was application 6A132-2010 | FR149: N.R. | FT149: cancelled - new application submitted | FU149: 2010-08-13
A150: Mapleline Farm (new 6A141-2010) | C150: SIMP | F150: Cancelled | H150: 6A140-2010 | J150: G0 | L150: 54260534029 | M150: 891982000 | N150: 890475492 | O150: 105694000 | P150: 71 | Q150: Comins Rd | T150: Hadley | U150: MA | V150: 01035 | W150: WMECO | X150: 18G | Y150: 18G5 | AA150: non-PTF | AB150: Photovoltaic | AC150: Inverter | AD150: n/a | AG150: n/a | AK150: N/A | AO150: 11.4 | AP150: Solar | AQ150: 2010 | AR150: 2010-11-05 | AU150: n.r. | AV150: canc | BM150: canc | BN150: n/a | BQ150: n/a | BR150: n/a | BY150: 2011-02-01 | DP150: Cancelled | DV150: net metering | DW150: (cancld - submitted appl with different name see ID 6A141-2010) | FP150: Y | FR150: Y
A151: John Kokoski | C151: SIMP | F151: Completed | H151: 6A141-2010 | J151: G0 | K151: C | L151: 54260534029 | M151: 891982000 | N151: 891873012 | O151: 105694000 | P151: 71 | Q151: Comins Rd | T151: Hadley | U151: MA | V151: 01035 | W151: WMECO | X151: 18G | Y151: 18G5 | AA151: non-PTF | AB151: Photovoltaic | AC151: Inverter | AD151: No Cap | AE151: n/a | AG151: 2010-11-09 | AH151: 7.744 | AI151: =AJ151*0.8 -> 7.744 | AJ151: 9.68 | AK151: Class 1 (Solar / Wind) | AM151: 11.4 | AN151: 11.4 | AO151: 11.4 | AP151: Solar | AQ151: 2010 | AR151: 2010-11-09 | AU151: n.r. | AV151: n/a | BL151: 2010-11-29 | BQ151: 0 | BR151: n/a | BV151: 2011-02-15 | BY151: 2011-02-01 | DP151: 2011 | DV151: net metering | DW151: < 25 kW three phase. NO CAP | FR151: N.R. | FT151: cancelled - new application submitted | FU151: 2010-11-29
A152: Jeremy Barker-Plotkin (new 6A143-2010) | C152: SIMP | F152: Cancelled | H152: 6A142-2010 | J152: G0 | L152: 54607891017 | M152: 505241008 | N152: 892243822 | O152: 023542009 | P152: 1089 | Q152: North Pleasant St | T152: Amherst | U152: MA | V152: 01002 | W152: WMECO | X152: 18G | Y152: 18G4 | AA152: non-PTF | AB152: Photovoltaic | AC152: Inverter | AD152: n/a | AG152: n/a | AK152: N/A | AO152: 12 | AP152: Solar | AQ152: 2010 | AR152: 2010-11-12 | AU152: n.r. | AV152: canc | BM152: canc | BN152: n/a | BQ152: n/a | BR152: n/a | BY152: 2010-11-15 | DP152: Cancelled | DV152: net metering | DW152: cancld - new appl submitted w/diff inverter see 6A143-2010) | FP152: Y | FR152: Y
A153: Jeremy Barker-Plotkin | C153: SIMP | F153: Completed | H153: 6A143-2010 | J153: G0 | K153: C | L153: 54607891017 | M153: 505241008 | N153: 892243822 | O153: 023542009 | P153: 1089 | Q153: North Pleasant St | T153: Amherst | U153: MA | V153: 01002 | W153: WMECO | X153: 18G | Y153: 18G4 | AA153: non-PTF | AB153: Photovoltaic | AC153: Inverter | AD153: No Cap | AE153: n/a | AG153: 2010-09-24 | AH153: 7.84 | AI153: =AJ153*0.8 -> 7.84 | AJ153: 9.8 | AK153: Class 1 (Solar / Wind) | AM153: 11.4 | AN153: 11.4 | AO153: 11.4 | AP153: Solar | AQ153: 2010 | AR153: 2010-11-18 | AU153: n.r. | AV153: n/a | BL153: 2010-11-19 | BQ153: 0 | BR153: n/a | BV153: 2010-11-23 | BY153: 2010-11-25 | DP153: 2010 | DV153: net metering | DW153: < 25 kW three phase. NO CAP | FP153: Y | FR153: Y
A154: Seren Derin | B154: Sun Run | C154: SIMP | F154: Completed | H154: 6A144-2010 | J154: R1 | K154: R | L154: 54254991060 | M154: 154341001 | N154: 892149412 | O154: 651642005 | P154: 22 | Q154: Alyssum Dr | T154: Amherst | U154: MA | V154: 01002 | W154: WMECO | X154: 17K | Y154: 17K8 | AA154: non-PTF | AB154: Photovoltaic | AC154: Inverter | AD154: No Cap | AE154: n/a | AG154: 2010-11-22 | AH154: 3.68 | AI154: =AJ154*0.8 -> 3.68 | AJ154: 4.6 | AK154: Class 1 (Solar / Wind) | AM154: 5.1 | AN154: 5.1 | AO154: 5.1 | AP154: Solar | AQ154: 2010 | AR154: 2010-11-22 | AU154: n.r. | AV154: n/a | BL154: 2010-12-01 | BN154: n/a | BO154: 2010-12-08 | BQ154: 0 | BR154: n/a | BV154: 2011-05-20 | BY154: 2010-02-01 | DP154: 2011 | DV154: net metering | FP154: Y | FR154: Y | FU154: 2010-12-01
A155: Albert Larose | C155: SIMP | F155: Completed | H155: 6A145-2010 | J155: R1 | K155: R | L155: 54882571060 | M155: 810921001 | N155: 892149712 | O155: 290122005 | P155: 17 | Q155: Pomeroy St | T155: Easthampton | U155: MA | V155: 01027 | W155: WMECO | X155: 15A | Y155: 15A1 | Z155: PTF | AB155: Photovoltaic | AC155: Inverter | AD155: No Cap | AE155: n/a | AG155: 2010-12-01 | AH155: 4.049 | AI155: =AJ155*0.8 -> 4.0488 | AJ155: 5.061 | AK155: Class 1 (Solar / Wind) | AM155: 5.1 | AN155: 5.1 | AO155: 5.1 | AP155: Solar | AQ155: 2010 | AR155: 2010-11-22 | AU155: n.r. | AV155: n/a | BL155: 2010-12-02 | BQ155: 0 | BR155: n/a | BV155: 2011-01-27 | BY155: 2010-12-01 | DP155: 2011 | DV155: net metering | FR155: N.R. | FT155: cancelled - new application submitted | FU155: 2010-12-02
A156: Brian Dillon (new 6A150-2011) | C156: SIMP | F156: Cancelled | H156: 6A146-2010 | J156: R1 | K156: R | L156: 54927471052 | M156: 830921003 | N156: 892149842 | O156: 315912004 | P156: 22 | Q156: Pomeroy St | T156: Easthampton | U156: MA | V156: 01027 | W156: WMECO | X156: 15A | Y156: 15A1 | Z156: PTF | AB156: Photovoltaic | AC156: Inverter | AD156: n/a | AG156: n/a | AK156: N/A | AO156: 4.7 | AP156: Solar | AQ156: 2010 | AR156: 2010-11-22 | AU156: n.r. | AV156: canc | BL156: 2010-12-02 | BN156: n/a | BQ156: 0 | BR156: n/a | BY156: 2010-12-15 | DP156: Cancelled | DV156: net metering | DW156: cancld - new appl submitted w/ diff inverter see 6A150-2011 | FP156: Y | FR156: Y | FU156: 2010-12-02
A157: Robert Tinker | C157: SIMP | F157: Completed | H157: 6A147-2010 | J157: R3 | K157: R | L157: 54684002025 | M157: 555441006 | N157: 892149872 | O157: 541842000 | P157: 126 | Q157: Shutesbury Rd | T157: Amherst | U157: MA | V157: 01002 | W157: WMECO | X157: 17K | Y157: 17K7 | AA157: non-PTF | AB157: Photovoltaic | AC157: Inverter | AD157: No Cap | AE157: n/a | AG157: 2010-11-29 | AH157: 4.136 | AI157: =AJ157*0.8 -> 4.136 | AJ157: 5.17 | AK157: Class 1 (Solar / Wind) | AM157: 4.9 | AN157: 4.9 | AO157: 4.9 | AP157: Solar | AQ157: 2010 | AR157: 2010-11-29 | AU157: n.r. | AV157: n/a | BL157: 2010-12-03 | BQ157: 0 | BR157: n/a | BV157: 2011-04-12 | BY157: 2010-12-15 | DP157: 2011 | DV157: net metering | FP157: Y | FR157: Y | FU157: 2010-12-03
A158: Brian Towles | C158: SIMP | F158: Completed | H158: 6A148-2010 | J158: R1 | K158: R | L158: 54584871008 | M158: 154031009 | N158: 891867162 | O158: 313322009 | P158: 73 | Q158: Phelps St | T158: Easthampton | U158: MA | V158: 01027 | W158: WMECO | X158: 15A | Y158: 15A1 | Z158: PTF | AB158: Photovoltaic | AC158: Inverter | AD158: No Cap | AE158: n/a | AG158: 2010-11-03 | AH158: 3.168 | AI158: =AJ158*0.8 -> 3.168 | AJ158: 3.96 | AK158: Class 1 (Solar / Wind) | AM158: 4 | AN158: 4 | AO158: 4 | AP158: Solar | AQ158: 2010 | AR158: 2010-11-29 | AU158: n.r. | AV158: n/a | BL158: 2010-12-08 | BQ158: 0 | BR158: n/a | BV158: 2010-12-28 | BY158: 2010-12-30 | BZ158: no | DP158: 2010 | DV158: net metering | FR158: N.R. | FT158: cancelled - new application submitted | FU158: 2010-08-13
A159: Barstow's Longview Farm (new 6A156-2011) | C159: STD | E159: Cindy | F159: Cancelled | H159: 6A149-2011 | J159: G0 | P159: 14 | Q159: Barstow Ln | T159: Hadley | U159: MA | V159: 01035 | W159: WMECO | X159: 19B | Y159: 19B15 | Z159: PTF | AB159: Reciprocating Engines | AC159: cogeneration facility | AD159: n/a | AG159: n/a | AK159: N/A | AM159: 450 | AN159: 450 | AO159: 450 | AP159: Biogas | AQ159: 2011 | AR159: 2011-01-04 | AS159: 2011-01-04 | AT159: =IF(AS159=0,NETWORKDAYS(AR159,$A$4),NETWORKDAYS(AR159,AS159)) -> 1 | AV159: canc | BM159: canc | BN159: n/a | BQ159: n/a | BR159: n/a | BS159: Yes | BY159: 2011-07-01 | CA159: WDGCG101 | CB159: see 6A156-2011 | CO159: WDCGA101 | DO159: Cancelled by Cust. Cust name and design changed. Reapplied. | DP159: Cancelled | DQ159: n/a | DR159: n/a | DV159: net metering | FP159: Y | FR159: Y
A160: Brian Dillon | C160: SIMP | F160: Completed | H160: 6A150-2011 | J160: R1 | K160: R | L160: 54927471052 | M160: 830921003 | N160: 892149842 | O160: 315912004 | P160: 22 | Q160: Pomeroy St | T160: Easthampton | U160: MA | V160: 01027 | W160: WMECO | X160: 15A | Y160: 15A1 | Z160: PTF | AB160: Photovoltaic | AC160: Inverter | AD160: No Cap | AE160: n/a | AG160: 2010-12-01 | AH160: 4.049 | AI160: =AJ160*0.8 -> 4.0488 | AJ160: 5.061 | AK160: Class 1 (Solar / Wind) | AM160: 5.4 | AN160: 5.4 | AO160: 5.4 | AP160: Solar | AQ160: 2011 | AR160: 2011-01-18 | AS160: 2011-01-19 | AT160: 2 | AU160: n.r. | AV160: n/a | BL160: 2011-01-21 | BM160: =IF(BL160=0,NETWORKDAYS(AR160,$A$4),NETWORKDAYS(AR160,BL160)) -> 4 | BQ160: 0 | BR160: n/a | BV160: 2011-01-27 | BY160: 2010-12-15 | DP160: 2011 | DV160: net metering | FO160: approved | FP160: Y | FR160: Y | FU160: n/a
A161: City of Easthampton (Landfill) | B161: GLC - (MA) Easthampton, LLC | C161: STD | E161: Erik | F161: Completed | H161: 6A151-2011 | J161: G0 | K161: C | L161: 54995506078 | M161: 076923008 | N161: 000003648 | O161: 768027003 | P161: 155 | Q161: Oliver St | T161: Easthampton | U161: MA | V161: 01027 | W161: WMECO | X161: 15A | Y161: 15A3 | Z161: PTF | AB161: Photovoltaic | AC161: Inverter | AD161: Public | AF161: Municipality | AG161: 2013-12-09 | AH161: 1762.904 | AI161: 1762.904 | AJ161: 2203.63 | AK161: Class 2 | AM161: 2000 | AN161: 2000 | AO161: 2000 | AP161: Solar | AQ161: 2011 | AR161: 2011-01-27 | AS161: 2011-01-27 | AT161: 1 | AU161: 2011-03-16 | AV161: =IF(AU161=0,NETWORKDAYS(AR161,$A$4),NETWORKDAYS(AR161,AU161)) -> 35 | BL161: 2011-10-21 | BM161: 192 | BN161: 2011-11-01 | BO161: 2011-11-07 | BQ161: $2M / $5M | BR161: 2015-04-01 | BS161: Yes | BT161: yes | BV161: 2012-06-01 | BY161: 2011-11-19 | CA161: WDGSL102 | CB161: 2500 | CC161: 11033.75 | CD161: =CC161-CB161 -> 8533.75 | CO161: WDSLA102 | CP161: 40000 | CQ161: 32276.76 | CR161: 2011-03-10 | CS161: 2011-03-21 | CT161: 2011-06-29 | CV161: WDSLD102 | CW161: 35000 | CX161: 34890.22 | CY161: 2011-06-24 | CZ161: 2011-07-06 | DC161: 577500 | DD161: 550000 | DE161: 27500 | DF161: 418266.66 | DN161: 1527.24 | DO161: On line. Int Cust worked with Verizon to get phone lines. Third party owned. Stand alone generation. New construction. | DP161: 2012 | DQ161: needed | DR161: needed | DU161: ?? | DV161: net metering | DW161: Also has Transfer Tip WO# WDSTT102. Online prior to DTT being activated. Subject to temporary SOG. | DX161: Attn: Office of the Mayor | DY161: 50 Payson Avenue | DZ161: Easthampton | EA161: MA | EB161: 01027 | EC161: GLC - (MA) Easthampton, LLC c/o Accretive Solutions Attn: Jason Tai | ED161: 2500 Venture Oaks Way, Suite 390 | EE161: Sacramento | EF161: CA | EG161: 95833 | EJ161: C | EK161: 2012-02-06 | EL161: installed | EM161: Complete | EN161: Yes | EO161: Yes | ES161: 23 KV | ET161: ION 8600 | EU161: 413-527-2831 | EV161: 4D 621 6A120511 DXO | EW161: 1821109 | EX161: C | EY161: Constructed | EZ161: completed by RLC | FA161: yes | FB161: yes | FC161: Matt Fuller | FD161: Fall 2011 | FE161: 2012-04-30 | FF161: 2012-05-01 | FG161: Replace armless brackets with fiberglass arms, new primary metered service with DSCADA recloser, another recloser, DTT | FH161: 550000 | FI161: x | FJ161: x | FM161: x | FN161: Complete | FP161: Y | FR161: Y
A162: Phyllis Keenan (was Pioneer Valley Habitat For Humanity) | C162: SIMP | F162: Completed | H162: 6A152-2011 | J162: R1 | K162: R | L162: 54112975008 | M162: 138813008 | N162: 892152232 | O162: 316646006 | P162: 10 | Q162: Stanley St | T162: Amherst | U162: MA | V162: 01002 | W162: WMECO | X162: 17K | Y162: 17K8 | AA162: non-PTF | AB162: Photovoltaic | AC162: Inverter | AD162: No Cap | AE162: n/a | AG162: 2011-10-12 | AH162: 2.352 | AI162: 2.352 | AJ162: 2.94 | AK162: Class 1 (Solar / Wind) | AM162: 4 | AN162: 4 | AO162: 4 | AP162: Solar | AQ162: 2011 | AR162: 2011-02-04 | AS162: 2011-02-07 | AT162: 2 | AU162: n.r. | AV162: n/a | BL162: 2011-02-15 | BM162: 8 | BQ162: 0 | BR162: n/a | BV162: 2011-03-28 | BY162: 2011-03-01 | BZ162: 2011-10-12 | DP162: 2011 | DV162: net metering | DW162: new construction | FP162: Y | FR162: Y | FU162: 2011-03-17
A163: John A Knybel | B163: Sun Run | C163: SIMP | F163: Completed | H163: 6A153-2011 | J163: R1 | K163: R | L163: 54333502052 | M163: 613741003 | N163: 892151852 | O163: 268252004 | P163: 17 | Q163: Fort Hill Rd | T163: Easthampton | U163: MA | V163: 01027 | W163: WMECO | X163: 15A | Y163: 15A5 | Z163: PTF | AB163: Photovoltaic | AC163: Inverter | AD163: No Cap | AE163: n/a | AG163: 2011-02-18 | AH163: 7.104 | AI163: 7.104 | AJ163: 8.88 | AK163: Class 1 (Solar / Wind) | AM163: 7.5 | AN163: 7.5 | AO163: 7.5 | AP163: Solar | AQ163: 2011 | AR163: 2011-02-18 | AS163: 2011-02-18 | AT163: 1 | AU163: n.r. | AV163: n/a | BL163: 2011-02-22 | BM163: 3 | BO163: 2011-03-01 | BQ163: 0 | BR163: n/a | BV163: 2011-04-01 | BY163: 2011-04-21 | DP163: 2011 | DV163: net metering | FP163: Y | FR163: Y | FU163: 2011-02-22
A164: Marcia Hendrick | C164: SIMP | F164: Completed | H164: 6A154-2011 | J164: R1 | K164: R | L164: 54418781068 | M164: 492631009 | N164: 892152072 | O164: 203432005 | P164: 8 | Q164: Old Main Rd | T164: Montgomery | U164: MA | V164: 01085 | W164: WMECO | X164: 19J | Y164: 19J1 | Z164: PTF | AB164: Photovoltaic | AC164: Inverter | AD164: No Cap | AE164: n/a | AG164: 2011-02-22 | AH164: 5.016 | AI164: 5.016 | AJ164: 6.27 | AK164: Class 1 (Solar / Wind) | AM164: 7 | AN164: 7 | AO164: 7 | AP164: Solar | AQ164: 2011 | AR164: 2011-02-22 | AS164: 2011-02-22 | AT164: 1 | AU164: n.r. | AV164: n/a | BL164: 2011-03-07 | BM164: 10 | BQ164: 0 | BR164: n/a | BV164: 2011-04-28 | BY164: 2011-03-01 | DP164: 2011 | DV164: net metering | FP164: Y | FR164: Y | FU164: 2011-03-07
A165: John McCarran see WMECO Pilot 5 | C165: SIMP | F165: Completed | H165: 6A155-2011 | J165: R1 | K165: R | L165: 54469081061 | M165: 726131002 | N165: 888508182 | O165: 264622005 | P165: 42 | Q165: Carriage Ln | T165: Amherst | U165: MA | V165: 01301 | W165: WMECO | X165: 17K | Y165: 17K8 | AA165: non-PTF | AB165: Photovoltaic | AC165: Inverter | AD165: No Cap | AE165: n/a | AG165: 2011-02-22 | AH165: 6.48 | AI165: 6.48 | AJ165: 8.1 | AK165: Class 1 (Solar / Wind) | AM165: 8.34 | AN165: 7.8 | AO165: 7.8 kW add (8.34 kW total) | AP165: Solar | AQ165: 2011 | AR165: 2011-02-22 | AS165: 2011-02-23 | AT165: 2 | AU165: n.r. | AV165: n/a | BL165: 2011-03-07 | BM165: 10 | BQ165: 0 | BR165: n/a | BV165: 2011-05-05 | BY165: 2011-03-01 | DP165: 2011 | DV165: net metering | FR165: N.R. | FT165: cancelled - new application submitted | FU165: n/a
A166: AGreen Energy, LLC (new 6A209-2011) | C166: STD | E166: Erik | F166: Cancelled | G166: 2011-09-21 | H166: 6A156-2011 | P166: 14 | Q166: Barstow Ln | T166: Hadley | U166: MA | V166: 01035 | W166: WMECO | X166: 19B | Y166: 19B15 | Z166: PTF | AB166: Reciprocating Engines | AC166: cogeneration facility | AD166: n/a | AG166: n/a | AK166: N/A | AM166: 450 | AN166: 450 | AO166: 450 | AP166: Biogas | AQ166: 2011 | AR166: 2011-02-23 | AS166: 2011-02-23 | AT166: 1 | AV166: canc | BM166: canc | BN166: needed | BQ166: n/a | BR166: n/a | BS166: Yes | BY166: 2011-07-01 | CA166: WDGCG101 | CB166: 1350 | CO166: WDCGA101 | CQ166: 254.23 | DO166: Cancelled by Cust. Cust submitted new application for larger unit. | DP166: Cancelled | DQ166: n/a | DR166: n/a | DV166: net metering | DW166: new construction | FR166: N.R. | FT166: cancelled - new application submitted
A167: EH Home Ownership, LLC (new 6A158-2011) | C167: SIMP | F167: Cancelled | H167: 6A157-2011 | P167: 3 | Q167: River Valley Way | T167: Easthampton | U167: MA | V167: 01024 | W167: WMECO | AB167: Photovoltaic | AC167: Inverter | AD167: n/a | AG167: n/a | AK167: N/A | AO167: 7 | AP167: Solar | AQ167: 2011 | AR167: 2011-02-24 | AS167: 2011-02-24 | AT167: 1 | AU167: n.r. | AV167: canc | BM167: canc | BN167: n/a | BQ167: 0 | BR167: n/a | BY167: 2011-02-28 | DP167: Cancelled | DV167: net metering | FR167: N.R. | FS167: N | FT167: cancelled - new application submitted
A168: Northampton Cooperative Action Association (new 6AF160-2010) | C168: EXP | E168: Cindy | F168: Cancelled | H168: 6AF157-2010 | J168: G0 | L168: 54505171025 | M168: 803721006 | N168: 891538792 | O168: 433712009 | P168: 353 | Q168: Long Plain Rd | T168: Whately | U168: MA | V168: 01093 | W168: WMECO | X168: 18G | Y168: 18G8 | AA168: non-PTF | AB168: Photovoltaic | AC168: Inverter | AD168: n/a | AG168: n/a | AK168: N/A | AM168: 20 | AN168: 20 | AO168: 20 | AP168: Solar | AQ168: 2010 | AR168: 2010-04-21 | AV168: canc | BM168: canc | BN168: n/a | BQ168: n/a | BR168: n/a | BS168: TBD | BY168: 7/2010 | CA168: WDGSL008 | DO168: Cancelled by Cust. Cust changed design, reapplied. | DP168: Cancelled | DQ168: n/a | DR168: n/a | DV168: net metering | DW168: cancld 6/1/10 changed inverters (new 6AF160-2010) | FP168: Y | FR168: Y
A169: Gyuri Kepes (was EH Home Ownership, LLC) | B169: RePower Partners | C169: SIMP | F169: Completed | H169: 6A158-2011 | J169: R1 | K169: R | L169: 54632026027 | M169: 258713008 | N169: 892152092 | O169: 478736001 | P169: 3 | Q169: River Valley Way | T169: Easthampton | U169: MA | V169: 01027 | W169: WMECO | X169: 15A | Y169: 15A3 | Z169: PTF | AB169: Photovoltaic | AC169: Inverter | AD169: No Cap | AE169: n/a | AG169: 2013-04-01 | AH169: 6.048 | AI169: =AJ169*0.8 -> 6.048 | AJ169: 7.56 | AK169: Class 1 (Solar / Wind) | AM169: 7 | AN169: 7 | AO169: 7 | AP169: Solar | AQ169: 2011 | AR169: 2011-02-28 | AS169: 2011-03-01 | AT169: =IF(AS169=0,NETWORKDAYS(AR169,$A$4),NETWORKDAYS(AR169,AS169)) -> 2 | AU169: n.r. | AV169: n/a | BL169: 2011-03-08 | BM169: =IF(BL169=0,NETWORKDAYS(AR169,$A$4),NETWORKDAYS(AR169,BL169)) -> 7 | BO169: 2011-03-14 | BQ169: 0 | BR169: n/a | BV169: 2011-03-21 | BY169: 2011-03-07 | BZ169: 12/18/2012 Exhibit G | DP169: 2011 | DV169: net metering | DW169: 1, 3, 5, 8 River Valley fed from 50 kVA xfr pad 335/2P | FR169: N.R. | FT169: cancelled - new application submitted | FU169: 2011-03-08
A170: Hatfield Market (new 6A160-2011) | C170: SIMP | F170: Cancelled | H170: 6A159-2011 | P170: 72 | Q170: School St | T170: Hatfield | U170: MA | V170: 01038 | W170: WMECO | AB170: Photovoltaic | AC170: Inverter | AD170: n/a | AG170: n/a | AK170: N/A | AO170: 5 | AP170: Solar | AQ170: 2011 | AR170: 2011-03-08 | AS170: 2011-03-09 | AT170: =IF(AS170=0,NETWORKDAYS(AR170,$A$4),NETWORKDAYS(AR170,AS170)) -> 2 | AU170: n.r. | AV170: canc | BM170: canc | BN170: n/a | BQ170: 0 | BR170: n/a | BY170: 2011-05-15 | DP170: Cancelled | DV170: net metering | FR170: N.R. | FT170: cancelled - new application submitted
A171: Hatfield Properties and Storage (new 6A175-2011) | C171: SIMP | F171: Cancelled | H171: 6A160-2011 | J171: G0 | L171: 54836391060 | M171: 847931009 | N171: 889145312 | O171: 897932005 | P171: 72 | Q171: School St | T171: Hatfield | U171: MA | V171: 01038 | W171: WMECO | AB171: Photovoltaic | AC171: Inverter | AD171: n/a | AG171: n/a | AK171: N/A | AO171: 2.66 | AP171: Solar | AQ171: 2011 | AR171: 2011-03-15 | AS171: 2011-03-15 | AT171: =IF(AS171=0,NETWORKDAYS(AR171,$A$4),NETWORKDAYS(AR171,AS171)) -> 1 | AU171: n.r. | AV171: canc | BL171: 2011-03-29 | BM171: =IF(BL171=0,NETWORKDAYS(AR171,$A$4),NETWORKDAYS(AR171,BL171)) -> 11 | BN171: n/a | BQ171: 0 | BR171: n/a | BY171: 2011-05-15 | DP171: Cancelled | DV171: net metering | FP171: Y | FR171: Y | FS171: N | FU171: 2011-03-29
A172: Northampton Cooperative Auction Association, Inc. | C172: EXP | E172: Cindy | F172: Completed | H172: 6AF160-2010 | J172: G0 | K172: C | L172: 54505171025 | M172: 803721006 | N172: 891880442 | O172: 433712009 | P172: 353 | Q172: Long Plain Rd | T172: Whately | U172: MA | V172: 01093 | W172: WMECO | X172: 18G | Y172: 18G8 | AA172: non-PTF | AB172: Photovoltaic | AC172: Inverter | AD172: Private | AG172: 2010-05-14 | AH172: 14.784 | AI172: =AJ172*0.8 -> 14.784 | AJ172: 18.48 | AK172: Class 1 (Solar / Wind) | AM172: 15.6 | AN172: 15.6 | AO172: 15.6 | AP172: Solar | AQ172: 2010 | AR172: 2010-06-01 | AU172: 2010-06-18 | BL172: 2010-06-28 | BN172: 2010-07-06 | BQ172: 0 | BR172: n/a | BS172: Yes | BV172: 2010-07-09 | BY172: 7/2010 | CA172: WDGSL008 | CB172: 300 | DC172: 1587.04 | DD172: 1269.63 | DE172: 317.41 | DN172: 152.64 | DO172: On line. | DP172: 2010 | DQ172: ?? | DR172: ?? | DV172: net metering | EC172: Attn: Kim Reardon | ED172: PO Box 203 | EE172: So. Deerfield | EF172: MA | EG172: 01373 | EH172: 4136284784 | EI172: 4136283872 | FP172: Y | FR172: Y | FU172: 2010-06-17
A173: Lori Shollenberger | B173: Sun Run | C173: SIMP | F173: Completed | H173: 6A161-2011 | J173: R1 | K173: R | L173: 54178855094 | M173: 524813001 | N173: 892341932 | O173: 297146007 | P173: 14 | Q173: Johnson Ave | T173: Easthampton | U173: MA | V173: 01027 | W173: WMECO | X173: 15A | Y173: 15A5 | Z173: PTF | AB173: Photovoltaic | AC173: Inverter | AD173: No Cap | AE173: n/a | AG173: 2011-05-13 | AH173: 3.936 | AI173: =AJ173*0.8 -> 3.936 | AJ173: 4.92 | AK173: Class 1 (Solar / Wind) | AM173: 4.9 | AN173: 4.9 | AO173: 4.9 | AP173: Solar | AQ173: 2011 | AR173: 2011-03-21 | AS173: 2011-03-22 | AT173: =IF(AS173=0,NETWORKDAYS(AR173,$A$4),NETWORKDAYS(AR173,AS173)) -> 2 | AU173: n.r. | AV173: n/a | BL173: 2011-04-13 | BM173: =IF(BL173=0,NETWORKDAYS(AR173,$A$4),NETWORKDAYS(AR173,BL173)) -> 18 | BO173: 2011-04-26 | BQ173: 0 | BR173: n/a | BV173: 2011-05-20 | BY173: 2011-05-05 | DP173: 2011 | DV173: net metering | FP173: Y | FR173: Y | FU173: 2011-04-13
A174: Ray Mann | C174: SIMP | F174: Completed | H174: 6A162-2011 | J174: R1 | K174: R | L174: 54997535083 | M174: 182213007 | N174: 892152302 | O174: 144606006 | P174: 982 | Q174: East Pleasant St | T174: Amherst | U174: MA | V174: 01002 | W174: WMECO | X174: 18G | Y174: 18G7 | AA174: non-PTF | AB174: Photovoltaic | AC174: Inverter | AD174: No Cap | AE174: n/a | AG174: 2011-03-22 | AH174: 6.624 | AI174: =AJ174*0.8 -> 6.624 | AJ174: 8.28 | AK174: Class 1 (Solar / Wind) | AM174: 7.56 | AN174: 7.5 | AO174: 7.56 | AP174: Solar | AQ174: 2011 | AR174: 2011-03-22 | AS174: 2011-03-22 | AT174: 1 | AU174: n.r. | AV174: n/a | BL174: 2011-04-04 | BM174: =IF(BL174=0,NETWORKDAYS(AR174,$A$4),NETWORKDAYS(AR174,BL174)) -> 10 | BQ174: 0 | BR174: n/a | BV174: 2011-09-15 | BY174: 2011-04-01 | DP174: 2011 | DV174: net metering | FP174: Y | FR174: Y | FU174: 2011-04-04
A175: Andrew Starkweather (see 6A245-2011) | C175: SIMP | F175: Completed | H175: 6A163-2011 | J175: R1 | K175: R | L175: 54971715008 | M175: 243703008 | N175: 892341942 | O175: 807975008 | P175: 18 | Q175: Hannabrooke Dr | T175: Leverett | U175: MA | V175: 01054 | W175: WMECO | X175: 21C | Y175: 21C7 | Z175: PTF | AB175: Photovoltaic | AC175: Inverter | AD175: No Cap | AE175: n/a | AG175: 2011-03-23 | AH175: 2.016 | AI175: =AJ175*0.8 -> 2.016 | AJ175: 2.52 | AK175: Class 1 (Solar / Wind) | AM175: 6 | AN175: 6 | AO175: 6 | AP175: Solar | AQ175: 2011 | AR175: 2011-03-23 | AS175: 2011-03-25 | AT175: 3 | AU175: n.r. | AV175: n/a | BL175: 2011-04-12 | BM175: =IF(BL175=0,NETWORKDAYS(AR175,$A$4),NETWORKDAYS(AR175,BL175)) -> 15 | BQ175: 0 | BR175: n/a | BV175: 2011-04-28 | BY175: 2010-10-01 | DP175: 2011 | DV175: net metering | FR175: N.R. | FT175: cancelled - new application submitted | FU175: 2011-04-12
A176: John S. Lane & Son (new 6A168-2011) | C176: STD | E176: Erik | F176: Cancelled | G176: 2011-05-17 | H176: 6A164-2011 | P176: 931 | Q176: Pochassic Rd | T176: Westfield | U176: MA | V176: 01085 | W176: WMECO | X176: 19J | Y176: 19J2 | Z176: PTF | AB176: Photovoltaic | AC176: Inverter | AD176: n/a | AG176: n/a | AK176: N/A | AM176: 250 | AN176: 250 | AO176: 250 | AP176: Solar | AQ176: 2011 | AR176: 2011-04-07 | AS176: 2011-04-08 | AT176: 2 | AV176: canc | BM176: canc | BN176: n/a | BQ176: n/a | BR176: n/a | BS176: TBD | BY176: 2011-07-31 | DO176: Cancelled by Cust. Wrong application submitted. 3rd party info incorrect. Cust submited new application. | DP176: Cancelled | DQ176: n/a | DR176: n/a | DV176: net metering | FP176: Y | FR176: Y
A177: Raymond Babb | B177: Sun Run | C177: SIMP | F177: Completed | H177: 6A165-2011 | J177: R1 | K177: R | L177: 54724615091 | M177: 542703008 | N177: 892342082 | O177: 975975006 | P177: 81 | Q177: North Maple St | T177: Hadley | U177: MA | V177: 01035 | W177: WMECO | X177: 17K | Y177: 17K5 | AA177: non-PTF | AB177: Photovoltaic | AC177: Inverter | AD177: No Cap | AE177: n/a | AG177: 2011-04-26 | AH177: 4.912 | AI177: =AJ177*0.8 -> 4.912 | AJ177: 6.14 | AK177: Class 1 (Solar / Wind) | AM177: 5.3 | AN177: 5.3 | AO177: 5.3 | AP177: Solar | AQ177: 2011 | AR177: 2011-04-26 | AS177: 2011-04-26 | AT177: 1 | AU177: n.r. | AV177: n/a | BL177: 2011-05-11 | BM177: =IF(BL177=0,NETWORKDAYS(AR177,$A$4),NETWORKDAYS(AR177,BL177)) -> 12 | BO177: 2011-05-19 | BQ177: 0 | BR177: n/a | BV177: 2011-06-09 | BY177: 2011-05-29 | DP177: 2011 | DV177: net metering | FP177: Y | FR177: Y | FU177: 2011-05-11
A178: Jonathan Child (was Elizabeth Rosenberg) (addition to 6A51-2008) | C178: SIMP | F178: Completed | H178: 6A166-2011 | J178: R1 | K178: R | L178: 54404976011 | M178: 664753006 | N178: 891408342 | O178: 443332000 | P178: 135 | Q178: East St | T178: Hadley | U178: MA | V178: 01035 | W178: WMECO | X178: 17K | Y178: 17K5 | AA178: non-PTF | AB178: Photovoltaic | AC178: Inverter | AD178: No Cap | AE178: n/a | AG178: 2014-04-22 | AH178: 4.608 | AI178: 4.608 | AJ178: 5.76 | AK178: Class 1 (Solar / Wind) | AM178: 10 | AN178: 6 | AO178: 6 kW add (10 kW total) | AP178: Solar | AQ178: 2011 | AR178: 2011-04-28 | AS178: 2011-04-28 | AT178: 1 | AU178: n.r. | AV178: n/a | BL178: 2011-05-12 | BM178: =IF(BL178=0,NETWORKDAYS(AR178,$A$4),NETWORKDAYS(AR178,BL178)) -> 11 | BQ178: 0 | BR178: n/a | BV178: 2011-06-13 | BY178: 2011-05-01 | BZ178: 2014-04-22 | DP178: 2011 | DV178: net metering | FP178: Y | FR178: Y
A179: Michael Zeoli | B179: Sun Run | C179: SIMP | F179: Completed | H179: 6A167-2011 | J179: R1 | K179: R | L179: 54044602043 | M179: 911741004 | N179: 892151312 | O179: 635552003 | P179: 48 | Q179: Claybrook Rd | T179: Sunderland | U179: MA | V179: 01375 | W179: WMECO | X179: 18G | Y179: 18G3 | AA179: non-PTF | AB179: Photovoltaic | AC179: Inverter | AD179: No Cap | AE179: n/a | AG179: 2011-05-02 | AH179: 6.048 | AI179: 6.048 | AJ179: 7.56 | AK179: Class 1 (Solar / Wind) | AM179: 7 | AN179: 7 | AO179: 7 | AP179: Solar | AQ179: 2011 | AR179: 2011-05-02 | AS179: 2011-05-02 | AT179: 1 | AU179: n.r. | AV179: n/a | BL179: 2011-05-09 | BM179: =IF(BL179=0,NETWORKDAYS(AR179,$A$4),NETWORKDAYS(AR179,BL179)) -> 6 | BO179: 2011-05-19 | BQ179: 0 | BR179: n/a | BV179: 2011-05-24 | BY179: 2011-05-13 | DP179: 2011 | DV179: net metering | FO179: needed ? | FR179: Future | FT179: cancelled | FU179: 2011-05-09
A180: John S. Lane & Son | B180: Echo Sierra Two, LLC) | C180: STD | E180: Erik | F180: Cancelled | G180: 2013-02-06 | H180: 6A168-2011 | J180: G0 | L180: 54348571001 | M180: 952821002 | N180: 891611912 | O180: 319122006 | P180: 931 | Q180: Pochassic Rd | T180: Westfield | U180: MA | V180: 01085 | W180: WMECO | X180: 19J | Y180: 19J2 | Z180: PTF | AB180: Photovoltaic | AC180: Inverter | AD180: n/a | AG180: n/a | AI180: 898.56 | AJ180: 1123.2 | AK180: N/A | AM180: 1000 | AN180: 1000 | AO180: 250 kW or 1000 kW | AP180: Solar | AQ180: 2011 | AR180: 2011-05-17 | AS180: not sure | AT180: not sure | AU180: 2011-07-20 | AV180: =IF(AU180=0,NETWORKDAYS(AR180,$A$4),NETWORKDAYS(AR180,AU180)) -> 47 | BM180: canc | BN180: needed | BO180: needed | BQ180: cancld | BR180: cancld | BS180: Yes | BT180: Yes | BY180: 2011-09-30 | CA180: WDGSL109 | CB180: 2500 | CC180: 1995.84 | CD180: =CC180-CB180 -> -504.16 | CO180: WDSLA109 | CQ180: 195.97 | DO180: Cancelled by Int Cust. Third party owned. Essentially stand alone generation. New construction. Application has two options 250 kW or 1,000 kW. Highest option listed in Design Capacity. | DP180: Cancelled | DQ180: needed | DR180: needed | DV180: net metering | DW180: Cancelled per customer request | EJ180: N | EK180: cancelled by customer | EL180: N/A | EM180: cancelled | EN180: No | ES180: 23 KV or secondary | EU180: future | EV180: future | EW180: future | EX180: N | EY180: Very Low | EZ180: on hold per cust, TRC | FA180: no | FB180: no | FC180: Jack Szpila | FD180: TBD | FE180: TBD | FF180: TBD | FG180: TBD - new 23 kV primary metered service or secondary service upgrade | FN180: on hold per customer | FP180: Y | FR180: Y
A181: Nat Larson | C181: SIMP | F181: Completed | H181: 6A169-2011 | J181: R1 | K181: R | L181: 54381702034 | M181: 162841005 | N181: 892342402 | O181: 228452002 | P181: 35 | Q181: Summerfield Rd | R181: Lot | S181: 31 | T181: Amherst | U181: MA | V181: 01002 | W181: WMECO | X181: 17K | Y181: 17K2 | AA181: non-PTF | AB181: Photovoltaic | AC181: Inverter | AD181: No Cap | AE181: n/a | AG181: 2011-05-18 | AH181: 5.264 | AI181: 5.264 | AJ181: 6.58 | AK181: Class 1 (Solar / Wind) | AM181: 5.32 | AN181: 5.32 | AO181: 5.32 | AP181: Solar | AQ181: 2011 | AR181: 2011-05-18 | AS181: 2011-05-18 | AT181: =IF(AS181=0,NETWORKDAYS(AR181,$A$4),NETWORKDAYS(AR181,AS181)) -> 1 | AU181: n.r. | AV181: n/a | BL181: 2011-06-01 | BM181: =IF(BL181=0,NETWORKDAYS(AR181,$A$4),NETWORKDAYS(AR181,BL181)) -> 11 | BQ181: 0 | BR181: n/a | BV181: 2011-06-20 | BY181: 2011-05-25 | DP181: 2011 | DV181: net metering | FO181: approved | FP181: Y | FR181: Future | FU181: 2011-06-01
A182: Franklin County Sheriff's Office | B182: Whately Solar LLC | C182: STD | E182: Carla | F182: Completed | H182: 6A170-2011 | J182: G0 | K182: C | L182: 54067895078 | M182: 670823005 | N182: 000003668 | O182: 833017007 | P182: 228 | Q182: State Rd | T182: Whately | U182: MA | V182: 01373 | W182: WMECO | X182: 18G | Y182: 18G8 | AA182: non-PTF | AB182: Photovoltaic | AC182: Inverter | AD182: Public | AF182: Other Governmental Entity | AG182: 2011-07-13 | AH182: 1440 | AI182: 1440 | AJ182: 1800 | AK182: Class 2 | AM182: 1500 | AN182: 1500 | AO182: 1500 | AP182: Solar | AQ182: 2011 | AR182: 2011-05-19 | AS182: 2011-05-19 | AT182: 1 | AU182: 2011-07-21 | AV182: =IF(AU182=0,NETWORKDAYS(AR182,$A$4),NETWORKDAYS(AR182,AU182)) -> 46 | BL182: 2012-04-03 | BM182: =IF(BL182=0,NETWORKDAYS(AR182,$A$4),NETWORKDAYS(AR182,BL182)) -> 229 | BN182: 2012-04-17 | BO182: 2012-04-13 | BQ182: $2M / $5M | BR182: 2015-05-11 | BS182: Yes | BT182: Yes | BV182: 2013-03-11 | BY182: 2011-09-01 | CA182: WDGSL110 | CB182: 2500 | CC182: 4166.02 | CD182: =CC182-CB182 -> 1666.02 | CO182: WDSLA110 | CP182: 37975 | CQ182: 33620.41 | CR182: 2011-07-01 | CS182: 2011-07-08 | CT182: 2011-12-28 | CV182: WDSLD110 | CW182: 43000 | CX182: 21030.76 | CY182: 2011-12-13 | CZ182: 2011-12-21 | DC182: 335610 | DD182: 297000 | DE182: 38610 | DF182: 167474.99 | DL182: 2013-01-29 | DM182: 2013-02-01 | DN182: 661.66 | DO182: On line. Third party owned. Stand alone generation. New construction. | DP182: 2013 | DQ182: needed | DR182: needed | DV182: net metering | DX182: Attn: Paul Gervais | DY182: 160 Elm Street | DZ182: Greenfield | EA182: 1301 | EB182: MA | EC182: Whately Solar, LLC Attn: Brian Morrissey | ED182: 88 Black Falcon Avenue, Suite 342 | EE182: Boston | EF182: MA | EG182: 02210 | EH182: 6179510405 | EJ182: C | EK182: 2012-03-05 | EL182: 2012-10-15 | EM182: Complete | EN182: meter installed | EO182: yes | EQ182: 8400 : 120 | ES182: 13.8 KV | ET182: ION 8600 | EU182: 413-665-7686 | EV182: DWN12009, 4D 621 6A120475 DXO | EW182: WR1806730 1721266, 120V 228 State Rd= 2092542, 120V 0 Christian Ln = 2092554 | EX182: C | EY182: Constructed | EZ182: completed by RLC | FA182: yes | FB182: yes, 1 recloser, 2 controls | FC182: Dave Silloway | FD182: 2012-09-01 | FE182: 2012-10-15 | FF182: on line | FG182: new 13.8 kV primary metered service with DSCADA recloser and recloser control replacement, DTT | FH182: 297000 | FI182: x | FJ182: x | FM182: x | FN182: 120 V services for DTT installed and phone lines installed. DTT needs to be commissioned ASAP. | FP182: Y | FR182: Y | FU182: Y
A183: Andrea Cooper (was Melanie DeSilva) | B183: Sun Run | C183: SIMP | F183: Completed | H183: 6A171-2011 | J183: R1 | K183: R | L183: 54264756057 | M183: 137641009 | N183: 892342342 | O183: 740452001 | P183: 161 | Q183: Pine St | R183: Apt | S183: C | T183: Amherst | U183: MA | V183: 01002 | W183: WMECO | X183: 18G | Y183: 18G7 | AA183: non-PTF | AB183: Photovoltaic | AC183: Inverter | AD183: No Cap | AE183: n/a | AG183: 2013-09-12 | AH183: 2.368 | AI183: 2.368 | AJ183: 2.96 | AK183: Class 1 (Solar / Wind) | AM183: 2.9 | AN183: 2.9 | AO183: 2.9 | AP183: Solar | AQ183: 2011 | AR183: 2011-05-31 | AS183: 2011-05-31 | AT183: 1 | AU183: n.r. | AV183: n/a | BL183: 2011-06-07 | BM183: =IF(BL183=0,NETWORKDAYS(AR183,$A$4),NETWORKDAYS(AR183,BL183)) -> 6 | BO183: 2013-09-12 | BQ183: 0 | BR183: n/a | BV183: 2011-07-29 | BY183: 2011-07-17 | BZ183: 2013-09-12 | DP183: 2011 | DV183: net metering | FR183: N.R. | FT183: cancelled - new application submitted | FU183: 2011-06-07
A184: Jeffery Thelen (new 6A182-2011) | C184: SIMP | F184: Cancelled | H184: 6A172-2011 | J184: R1 | K184: R | L184: 54619302011 | M184: 304541002 | N184: 868271492 | O184: 396152000 | P184: 14 | Q184: Grand Oak Farm Rd | T184: Hadley | U184: MA | V184: 01035 | W184: WMECO | AB184: Photovoltaic | AC184: Inverter | AD184: n/a | AG184: n/a | AK184: N/A | AO184: 4.9 | AP184: Solar | AQ184: 2011 | AR184: 2011-05-31 | AS184: 2011-05-31 | AT184: 1 | AU184: n.r. | AV184: canc | BM184: canc | BQ184: 0 | BR184: n/a | BY184: 2011-07-15 | DP184: Cancelled | DV184: net metering | FP184: Y | FR184: Y
A185: Biodynamic Farmland Conservation Inc. (addition to 6A10-2005) | C185: SIMP | F185: Completed | H185: 6A173-2011 | J185: G0 | K185: C | L185: 54548791094 | M185: 096241005 | N185: 890645322 | O185: 987542007 | P185: 24 | Q185: Hulst Rd | T185: Amherst | U185: MA | V185: 01004 | W185: WMECO | X185: 17K | Y185: 17K8 | AA185: non-PTF | AB185: Photovoltaic | AC185: Inverter | AD185: No Cap | AE185: n/a | AG185: 2011-06-20 | AH185: 3.52 | AI185: =AJ185*0.8 -> 3.52 | AJ185: 4.4 | AK185: Class 1 (Solar / Wind) | AM185: 8.78 | AN185: 5 | AO185: 5 kW add (8.78 kW total) | AP185: Solar | AQ185: 2011 | AR185: 2011-06-06 | AS185: 2011-06-07 | AT185: 2 | AU185: n.r. | AV185: n/a | BL185: 2011-06-28 | BM185: =IF(BL185=0,NETWORKDAYS(AR185,$A$4),NETWORKDAYS(AR185,BL185)) -> 17 | BQ185: 0 | BR185: n/a | BV185: 2011-07-08 | BY185: 2011-07-15 | DP185: 2011 | DV185: net metering | DW185: < 10 kW single phase. NO CAP | FP185: Y | FR185: Y
A186: Robert Libon | B186: Sun Run | C186: SIMP | F186: Completed | H186: 6A174-2011 | J186: R1 | K186: R | L186: 54795102078 | M186: 443441009 | N186: 892342582 | O186: 043942005 | P186: 32 | Q186: Laurel Mt Rd | T186: Whately | U186: MA | V186: 01093 | W186: WMECO | X186: 18G | Y186: 18G8 | AA186: non-PTF | AB186: Photovoltaic | AC186: Inverter | AD186: No Cap | AE186: n/a | AG186: 2011-06-14 | AH186: 4.264 | AI186: 4.264 | AJ186: 5.33 | AK186: Class 1 (Solar / Wind) | AM186: 4.9 | AN186: 4.9 | AO186: 4.9 | AP186: Solar | AQ186: 2011 | AR186: 2011-06-14 | AS186: 2011-06-14 | AT186: 1 | AU186: n.r. | AV186: n/a | BL186: 2011-07-06 | BM186: 17 | BO186: 2011-07-14 | BQ186: 0 | BR186: n/a | BV186: 2011-07-18 | BY186: 2011-07-09 | DP186: 2011 | DV186: net metering | DW186: On same XFR as 37 Laurel Mt Rd 6A62-2008 | FP186: Y | FR186: Y | FU186: 2011-07-06
A187: William Skorupski, Jr (was Hatfield Properties & Storage) | C187: SIMP | F187: Completed | H187: 6A175-2011 | J187: G0 | K187: C | L187: 54030947071 | M187: 923931008 | N187: 892244052 | O187: 897932005 | P187: 72 | Q187: School St | R187: Floor | S187: 1 | T187: Hatfield | U187: MA | V187: 01038 | W187: WMECO | X187: 18G | Y187: 18G5 | AA187: non-PTF | AB187: Photovoltaic | AC187: Inverter | AD187: No Cap | AE187: n/a | AG187: MIMO - needed | AH187: 2.632 | AI187: 2.632 | AJ187: 3.29 | AK187: Class 1 (Solar / Wind) | AM187: 2.66 | AN187: 2.66 | AO187: 2.66 | AP187: Solar | AQ187: 2011 | AR187: 2011-06-21 | AS187: 2011-06-21 | AT187: 1 | AU187: n.r. | AV187: n/a | BL187: 2011-06-27 | BM187: 5 | BQ187: 0 | BR187: n/a | BV187: 2011-07-08 | BY187: 2011-06-20 | BZ187: MIMO - needed | DP187: 2011 | DV187: net metering | DW187: three phase system with microinverters, < 25 kW. NO CAP | FP187: Y | FR187: Y | FU187: 2011-06-29
A188: Miles Morrissey | B188: Sun Run | C188: SIMP | F188: Completed | H188: 6A176-2011 | J188: R1 | K188: R | L188: 54927961045 | M188: 759521006 | N188: 892342672 | O188: 658512003 | P188: 39 | Q188: Taft Ave | T188: Easthampton | U188: MA | V188: 01027 | W188: WMECO | X188: 15A | Y188: 15A3 | Z188: PTF | AB188: Photovoltaic | AC188: Inverter | AD188: No Cap | AE188: n/a | AG188: 2011-06-29 | AH188: 4.592 | AI188: 4.592 | AJ188: 5.74 | AK188: Class 1 (Solar / Wind) | AM188: 5.3 | AN188: 5.3 | AO188: 5.3 | AP188: Solar | AQ188: 2011 | AR188: 2011-06-29 | AS188: 2011-06-29 | AT188: 1 | AU188: n.r. | AV188: n/a | BL188: 2011-07-06 | BM188: 6 | BO188: 2011-07-14 | BQ188: 0 | BR188: n/a | BV188: 2011-07-14 | BY188: 2011-07-01 | DP188: 2011 | DV188: net metering | FP188: Y | FR188: Y | FU188: 2011-07-06
A189: Thomas Hartman (addition to 6A20-2006) | C189: SIMP | F189: Completed | H189: 6A177-2011 | J189: R1 | K189: R | L189: 54452661010 | M189: 287321001 | N189: 890835412 | O189: 699112000 | P189: 4 | Q189: Amherst Rd | T189: Pelham | U189: MA | V189: 01002 | W189: WMECO | X189: 17K | Y189: 17K2 | AA189: non-PTF | AB189: Photovoltaic | AC189: Inverter | AD189: No Cap | AE189: n/a | AG189: 2011-07-06 | AH189: 2.208 | AI189: 2.208 | AJ189: 2.76 | AK189: Class 1 (Solar / Wind) | AM189: 4.52 | AN189: 2.52 | AO189: 2.52 kW add (4.52 kW total) | AP189: Solar | AQ189: 2011 | AR189: 2011-07-06 | AS189: 2011-07-06 | AT189: 1 | AU189: n.r. | AV189: n/a | BL189: 2011-07-13 | BM189: 6 | BQ189: 0 | BR189: n/a | BV189: 2011-08-12 | BY189: 2011-07-01 | DP189: 2011 | DV189: net metering | FP189: Y | FR189: Y
A190: Kathleen Lugosch | C190: SIMP | F190: Completed | H190: 6A178-2011 | J190: R1 | K190: R | L190: 54366402097 | M190: 231641008 | N190: 891140462 | O190: 664452007 | P190: 15 | Q190: Hawks View Rd | T190: Shutesbury | U190: MA | V190: 01072 | W190: WMECO | X190: 18G | Y190: 18G7 | AA190: non-PTF | AB190: Photovoltaic | AC190: Inverter | AD190: No Cap | AE190: n/a | AG190: 2011-07-08 | AH190: 7.68 | AI190: 7.68 | AJ190: 9.6 | AK190: Class 1 (Solar / Wind) | AM190: 9.995 | AN190: 9.995 | AO190: 9.995 | AP190: Solar | AQ190: 2011 | AR190: 2011-07-08 | AS190: 2011-07-11 | AT190: 2 | AU190: n.r. | AV190: n/a | BL190: 2011-07-21 | BM190: 10 | BQ190: 0 | BR190: n/a | BV190: 2011-09-28 | BY190: 2011-08-20 | DP190: 2011 | DV190: net metering | FP190: Y | FR190: Y | FU190: 2011-07-21
A191: Warren Goldstein | B191: Sun Run | C191: SIMP | F191: Completed | H191: 6A179-2011 | J191: G0 | K191: C | L191: 54177745080 | M191: 173992001 | N191: 890684212 | O191: 320735001 | P191: 165B | Q191: West St | R191: Unit | S191: Owners | T191: Amherst | U191: MA | V191: 01002 | W191: WMECO | X191: 17K | Y191: 17K8 | AA191: non-PTF | AB191: Photovoltaic | AC191: Inverter | AD191: No Cap | AE191: n/a | AG191: 2011-07-13 | AH191: 6.888 | AI191: 6.888 | AJ191: 8.61 | AK191: Class 1 (Solar / Wind) | AM191: 8 | AN191: 8 | AO191: 8 | AP191: Solar | AQ191: 2011 | AR191: 2011-07-13 | AS191: 2011-07-13 | AT191: 1 | AU191: n.r. | AV191: n/a | BL191: 2011-09-06 | BM191: 40 | BO191: 2011-09-16 | BQ191: 0 | BR191: n/a | BV191: 2011-09-27 | BY191: 2011-09-09 | DP191: 2011 | DV191: net metering | FR191: N.R. | FT191: cancelled - new application submitted | FU191: 2011-09-06
A192: Ronald Howey (new 6A186-2011) | B192: Sun Run | C192: SIMP | F192: Cancelled | H192: 6A180-2011 | J192: R1 | K192: R | L192: 54796691095 | M192: 864241006 | N192: 883998242 | O192: 525342008 | P192: 90 | Q192: Russell St | T192: Sunderland | U192: MA | V192: 01375 | W192: WMECO | X192: 18G | Y192: 18G8 | AA192: non-PTF | AB192: Photovoltaic | AC192: Inverter | AD192: n/a | AG192: n/a | AK192: N/A | AO192: 4.9 | AP192: Solar | AQ192: 2011 | AR192: 2011-07-13 | AS192: 2011-07-13 | AT192: 1 | AU192: n.r. | AV192: canc | BM192: canc | BO192: needed | BQ192: 0 | BR192: n/a | BY192: 2011-09-12 | DP192: Cancelled | DV192: net metering | FP192: Y | FR192: Y
A193: Allen Banas | B193: Sun Run | C193: SIMP | F193: Completed | H193: 6A181-2011 | J193: R1 | K193: R | L193: 54699391033 | M193: 904931004 | N193: 890835612 | O193: 317832002 | P193: 32 | Q193: Broad St | T193: Easthampton | U193: MA | V193: 01027 | W193: WMECO | X193: 15A | Y193: 15A5 | Z193: PTF | AB193: Photovoltaic | AC193: Inverter | AD193: No Cap | AE193: n/a | AG193: 2011-07-13 | AH193: 4.2 | AI193: =AJ193*0.8 -> 4.2 | AJ193: 5.25 | AK193: Class 1 (Solar / Wind) | AM193: 4.9 | AN193: 4.9 | AO193: 4.9 | AP193: Solar | AQ193: 2011 | AR193: 2011-07-13 | AS193: 2011-07-13 | AT193: 1 | AU193: n.r. | AV193: n/a | BL193: 2011-07-18 | BM193: =IF(BL193=0,NETWORKDAYS(AR193,$A$4),NETWORKDAYS(AR193,BL193)) -> 4 | BO193: 2011-07-27 | BQ193: 0 | BR193: n/a | BV193: 2011-09-13 | BY193: 2011-09-18 | DP193: 2011 | DV193: net metering | FP193: Y | FR193: Y | FU193: 2011-07-18
A194: Jeffery Thelen | C194: SIMP | F194: Completed | H194: 6A182-2011 | J194: R1 | K194: R | L194: 54619302011 | M194: 304541002 | N194: 892342362 | O194: 396152000 | P194: 14 | Q194: Grand Oak Farm Rd | T194: Hadley | U194: MA | V194: 01035 | W194: WMECO | X194: 19B | Y194: 19B15 | Z194: PTF | AB194: Photovoltaic | AC194: Inverter | AD194: No Cap | AE194: n/a | AG194: 2011-06-02 | AH194: 4.608 | AI194: 4.608 | AJ194: 5.76 | AK194: Class 1 (Solar / Wind) | AM194: 5.3 | AN194: 5.3 | AO194: 5.3 | AP194: Solar | AQ194: 2011 | AR194: 2011-07-14 | AS194: 2011-07-15 | AT194: 2 | AU194: n.r. | AV194: n/a | BL194: 2011-07-21 | BM194: =IF(BL194=0,NETWORKDAYS(AR194,$A$4),NETWORKDAYS(AR194,BL194)) -> 6 | BQ194: 0 | BR194: n/a | BV194: 2011-08-26 | BY194: 2011-08-01 | DP194: 2011 | DV194: net metering | FP194: Y | FR194: Y
A195: Atkins Fruit Bowl | C195: EXP | E195: Carla | F195: Completed | H195: 6A183-2011 | J195: G2 | K195: C | L195: 54416181089 | M195: 076723008 | N195: 891794962 | O195: 133722006 | P195: 1151 | Q195: West St | T195: Amherst | U195: MA | V195: 01002 | W195: WMECO | X195: 19B | Y195: 19B16 | Z195: PTF | AB195: Photovoltaic | AC195: Inverter | AD195: Private | AG195: 2011-08-30 | AH195: 36.8 | AI195: 36.8 | AJ195: 46 | AK195: Class 1 (Solar / Wind) | AM195: 60 | AN195: 60 | AO195: 60 | AP195: Solar | AQ195: 2011 | AR195: 2011-07-28 | AS195: 2011-07-28 | AT195: 1 | AU195: 2011-09-22 | AV195: =IF(AU195=0,NETWORKDAYS(AR195,$A$4),NETWORKDAYS(AR195,AU195)) -> 41 | BL195: 2011-10-17 | BM195: =IF(BL195=0,NETWORKDAYS(AR195,$A$4),NETWORKDAYS(AR195,BL195)) -> 58 | BN195: 2011-10-17 | BQ195: 0 | BR195: n/a | BS195: No | BT195: No | BV195: 2011-11-18 | BY195: 2011-11-01 | CA195: WDGSL114 | DO195: On line. | DP195: 2011 | DQ195: n/a | DR195: n/a | DU195: n/a | DV195: net metering | EC195: Atikins fruit Bowl | ED195: 1150 West Street | EE195: Amherst | EF195: MA | EG195: 01002 | EH195: (413) 253-9528 | EI195: (413) 256-3117 | FP195: Y | FR195: Y | FU195: N/N
A196: Barry Elbaum | C196: SIMP | F196: Completed | H196: 6A184-2011 | J196: R1 | K196: R | L196: 54461661043 | M196: 760321004 | N196: 892342842 | O196: 375212003 | P196: 25 | Q196: Prospect St | T196: Hatfield | U196: MA | V196: 01038 | W196: WMECO | X196: 18G | Y196: 18G5 | AA196: non-PTF | AB196: Photovoltaic | AC196: Inverter | AD196: No Cap | AE196: n/a | AG196: 2011-08-01 | AH196: 4 | AI196: 4 | AJ196: 5 | AK196: Class 1 (Solar / Wind) | AM196: 4.9 | AN196: 4.9 | AO196: 4.9 | AP196: Solar | AQ196: 2011 | AR196: 2011-08-01 | AS196: 2011-08-02 | AT196: 2 | AU196: n.r. | AV196: n/a | BL196: 2011-08-12 | BM196: =IF(BL196=0,NETWORKDAYS(AR196,$A$4),NETWORKDAYS(AR196,BL196)) -> 10 | BQ196: 0 | BR196: n/a | BV196: 2011-09-02 | BY196: 2011-08-19 | DP196: 2011 | DV196: net metering | FR196: N.R. | FT196: cancelled - new application submitted | FU196: 2011-08-12
A197: Mark Monska (new 6A187-2011) | C197: SIMP | F197: Cancelled | H197: 6A185-2011 | P197: 42 | Q197: Clapp St | T197: Easthampton | U197: MA | V197: 01027 | W197: WMECO | AB197: Photovoltaic | AC197: Inverter | AD197: n/a | AG197: n/a | AI197: 3.68 | AJ197: 4.6 | AK197: N/A | AO197: 4 | AP197: Solar | AQ197: 2011 | AR197: 2011-08-01 | AS197: 2011-08-02 | AT197: 2 | AU197: n.r. | AV197: canc | BM197: canc | BQ197: 0 | BR197: n/a | BY197: 2011-09-22 | DP197: Cancelled | DV197: net metering | FP197: Y | FR197: Y
A198: Barbara Howey | B198: Sun Run | C198: SIMP | F198: Completed | H198: 6A186-2011 | J198: R1 | K198: R | L198: 54796691095 | M198: 864241006 | N198: 892342822 | O198: 525342008 | P198: 90 | Q198: Russell St | T198: Sunderland | U198: MA | V198: 01375 | W198: WMECO | X198: =LEFT(Y198,3) -> 18G | Y198: 18G8 | AA198: non-PTF | AB198: Photovoltaic | AC198: Inverter | AD198: No Cap | AE198: n/a | AG198: 2011-08-08 | AH198: 6.12 | AI198: 6.12 | AJ198: 7.65 | AK198: Class 1 (Solar / Wind) | AM198: 7.4 | AN198: 7.4 | AO198: 7.4 | AP198: Solar | AQ198: 2011 | AR198: 2011-08-08 | AS198: 2011-08-08 | AT198: 1 | AU198: n.r. | AV198: n/a | BL198: 2011-08-18 | BM198: =IF(BL198=0,NETWORKDAYS(AR198,$A$4),NETWORKDAYS(AR198,BL198)) -> 9 | BO198: 2011-08-31 | BQ198: 0 | BR198: n/a | BV198: 2011-09-15 | BY198: 2011-09-12 | DP198: 2011 | DV198: net metering | FR198: N.R. | FT198: cancelled - new application submitted | FU198: 2011-08-18
A199: Mark Monska (new 6A203-2011) | C199: SIMP | F199: Cancelled | H199: 6A187-2011 | J199: R1 | K199: R | L199: 54227502036 | M199: 659641007 | N199: 887311282 | O199: 578252002 | P199: 42 | Q199: Clapp St | T199: Easthampton | U199: MA | V199: 01027 | W199: WMECO | X199: 15A | Y199: 15A5 | Z199: PTF | AB199: Photovoltaic | AC199: Inverter | AD199: n/a | AG199: n/a | AI199: 3.68 | AJ199: 4.6 | AK199: N/A | AO199: 4 | AP199: Solar | AQ199: 2011 | AR199: 2011-08-09 | AS199: 2011-08-09 | AT199: 1 | AU199: n.r. | AV199: canc | BL199: 2011-08-10 | BM199: 2 | BQ199: 0 | BR199: n/a | BY199: 2011-09-22 | DP199: Cancelled | DV199: net metering | FP199: Y | FR199: Y | FU199: 2011-08-10
A200: Kazutaka Hirata | C200: SIMP | F200: Completed | H200: 6A188-2011 | J200: R3 | K200: R | L200: 54941594038 | M200: 690641006 | N200: 892340802 | O200: 458152008 | P200: 37 | Q200: Jenks St | R200: Lot | S200: 15 | T200: Amherst | U200: MA | V200: 01002 | W200: WMECO | X200: 17K | Y200: 17K2 | AA200: non-PTF | AB200: Photovoltaic | AC200: Inverter | AD200: No Cap | AE200: n/a | AG200: 2011-08-12 | AH200: 5.336 | AI200: 5.336 | AJ200: 6.67 | AK200: Class 1 (Solar / Wind) | AM200: 6.02 | AN200: 6.02 | AO200: 6.02 | AP200: Solar | AQ200: 2011 | AR200: 2011-08-12 | AS200: 2011-08-12 | AT200: 1 | AU200: n.r. | AV200: n/a | BL200: 2011-09-09 | BM200: 21 | BQ200: 0 | BR200: n/a | BV200: 2011-11-23 | BY200: 2011-09-30 | DP200: 2011 | DV200: net metering | FP200: Y | FR200: Y | FU200: 2011-09-09
... 362 more rows

Sheet WMDG List
B1: Company Name | C1: City/Town | D1: Facility ID (if any) | E1: ZIP Code | F1: Design Capacity (kW) | G1: Fuel Type (Solar, Wind, etc) | H1: Circuit Name | I1: Date Application Received | J1: Date Application Deemed Complete | K1: Total Time Lapsed (Workdays) calculated value | L1: Customer Time Lapsed (Workdays) enter workdays of "clock" stoppage by Customer | M1: Utility Time Lapsed (Workdays) enter workdays without "clock" stoppage | N1: Date Review of Screens Study Begun | O1: Date Review of Screens Study Completed | P1: Total Time Lapsed (Workdays) calculated value | Q1: Customer Time Lapsed (Workdays) enter workdays of "clock" stoppage by Customer | R1: Utility Time Lapsed (Workdays) enter workdays without "clock" stoppage | S1: Date Supplemental Review Begun | T1: Date Supplemental Review Complete | U1: Total Time Lapsed (Workdays) calculated value | V1: Customer Time Lapsed (Workdays) enter workdays of "clock" stoppage by Customer | W1: Utility Time Lapsed (Workdays) enter workdays without "clock" stoppage | X1: Date Standard Process Initial Review Begun | Y1: Date Standard Process Initial Review Complete | Z1: Total Time Lapsed (Workdays) calculated value | AA1: Customer Time Lapsed (Workdays) enter workdays of "clock" stoppage by Customer | AB1: Utility Time Lapsed (Workdays) enter workdays without "clock" stoppage | AC1: Date Impact Study Begun | AD1: Date Impact Study Sent | AE1: Total Time Lapsed (Workdays) calculated value | AF1: Customer Time Lapsed (Workdays) enter workdays of "clock" stoppage by Customer | AG1: Utility Time Lapsed (Workdays) enter workdays without "clock" stoppage | AH1: Date Detailed Study Begun | AI1: Date Detailed Study Sent | AJ1: Total Time Lapsed (Workdays) calculated value | AK1: Customer Time Lapsed (Workdays) enter workdays of "clock" stoppage by Customer | AL1: Utility Time Lapsed (Workdays) enter workdays without "clock" stoppage | AM1: Date Interconnection Agreement Sent | AN1: Date ISA & Payment Received | AO1: Estimated In-Service Date | AP1: System Modification Required | AQ1: Expedited/ Standard / Complex Project | AR1: Construction Timeline Commitment (Workdays) | AS1: Date Construction Begun | AT1: Date Construction Completed | AU1: Total Time Lapsed (Workdays) calculated value | AV1: Customer Time Lapsed (Workdays) enter workdays of "clock" stoppage by Customer | AW1: Utility Time Lapsed (Workdays) enter workdays without "clock" stoppage | AX1: Date Witness Test Scheduled | AY1: Date Witness Test Completed | AZ1: Authorization to Interconnect | BA1: NOTES | BB1: Impact_Group_Study_Name | BC1: Group_Name | BD1: ASO_Group_Name | BE1: Limiting Export Max Size kW | BF1: Substation_Name
B2: WMECO | C2: Springfield | D2: 6S21-2009 | E2: 01105 | F2: 75 | G2: Solar | H2: 8C14 | I2: 2009-03-30 | J2: 2009-04-13 | K2: =NETWORKDAYS(I2,J2,MALegalHolidays) -> 11 | M2: =IF(K2>0,K2-L2," ") -> 11 | R2: =IF(P2>0,P2-Q2," ") ->  | W2: =IF(U2>0,U2-V2," ") ->  | AB2: =IF(Z2>0,Z2-AA2," ") ->  | AG2: =IF(AE2>0,AE2-AF2," ") ->  | AL2: =IF(AJ2>0,AJ2-AK2," ") ->  | AM2: 2009-04-24 | AO2: 07/2009 | AP2: No | AQ2: EXP | AW2: =IF(AU2>0,AU2-AV2," ") ->  | AZ2: 2009-07-23 | BA2: on line
B3: WMECO | C3: Savoy | D3: 6B44-2009 | E3: 01256 | F3: 10000 | G3: Wind | H3: 18C1 | I3: 2009-06-26 | AO3: 2010-07-01 | AP3: Yes | AQ3: STD | BA3: Was on hold by Cust. Cancelled. Cust can't confirm design. Need design for Impact Study. Stand alone generation. New construction. Application has two options 8,000 kW or 10,000 kW. Highest option listed in Design Capacity.
B4: WMECO | C4: Amherst | D4: 6A82-2009 | E4: 01002 | F4: 39 | G4: Solar | H4: 17K2 | I4: 2009-06-29 | J4: 2009-07-24 | K4: =NETWORKDAYS(I4,J4,MALegalHolidays) -> 20 | M4: 20 | AM4: 2009-07-30 | AO4: 08/2009 | AP4: No | AQ4: EXP | AZ4: 2009-08-10 | BA4: On line. New construction.
B5: WMECO | C5: Leverett | D5: 6A91-2009 | E5: 01054 | F5: 13.8 | G5: Solar | H5: 18G7 | I5: 2009-07-28 | J5: 2009-09-14 | K5: =NETWORKDAYS(I5,J5,MALegalHolidays) -> 35 | M5: 35 | AM5: 2009-09-17 | AO5: 08/2009 or 09/2009 | AP5: Yes | AQ5: EXP | BA5: Cancelled by Cust. Cust changed design, reapplied.
B6: WMECO | C6: Pittsfield | D6: 6B46-2009 | E6: 01201 | F6: 86 | G6: Solar | H6: 15E3 | I6: 2009-07-29 | J6: 2009-09-29 | K6: =NETWORKDAYS(I6,J6,MALegalHolidays) -> 45 | M6: 45 | AM6: 2009-09-30 | AO6: 11/2009 | AP6: No | AQ6: EXP | AZ6: 2010-01-14 | BA6: on line
B7: WMECO | C7: Pittsfield | D7: 6B47-2009 | E7: 01201 | F7: 95 | G7: Solar | H7: 19A5 | I7: 2009-07-29 | J7: 2009-09-15 | K7: =NETWORKDAYS(I7,J7,MALegalHolidays) -> 35 | M7: 35 | AM7: 2009-09-16 | AO7: 11/2009 | AP7: No | AQ7: EXP | AZ7: 2009-11-10 | BA7: on line
B8: WMECO | C8: Lee | D8: 6B55-2009 | E8: 01238 | F8: 125 | G8: Solar | H8: 16B5 | I8: 2009-11-05 | AO8: 2009-11-15 | AP8: TBD | AQ8: EXP | BA8: Cancelled by Cust. Application not complete and incorrect, reapplied.
B9: WMECO | C9: Springfield | D9: 6S34-2009 | E9: 01104 | F9: 50 | G9: Solar | H9: 5J13 | I9: 2009-11-13 | AO9: 2009-11-15 | AP9: TBD | AQ9: EXP | BA9: Cancelled by Cust. Application not complete. Cust changed size, reapplied.
B10: WMECO | C10: Pittsfield | D10: 6B59-2009 | E10: 01201 | F10: 126.9 | G10: Solar | H10: 19A2 | I10: 2009-12-01 | AO10: 2009-12-31 | AP10: TBD | AQ10: EXP | BA10: Cancelled by Cust. Application not complete, reapplied.
B11: WMECO | C11: Springfield | D11: 6S35-2009 | E11: 01105 | F11: 30 | G11: Solar | H11: 8C26 | I11: 2009-12-01 | J11: 2009-12-30 | K11: =NETWORKDAYS(I11,J11,MALegalHolidays) -> 22 | M11: 22 | AM11: 2010-01-11 | AO11: 2009-12-30 | AP11: No | AQ11: EXP | AZ11: 2010-02-12 | BA11: On line. Third party owned.
B12: WMECO | C12: Lee | D12: 6B60-2009 | E12: 01238 | F12: 125 | G12: Solar | H12: 16B5 | I12: 2009-12-09 | J12: 2009-12-16 | K12: =NETWORKDAYS(I12,J12,MALegalHolidays) -> 6 | M12: 6 | AM12: 2009-12-24 | AO12: 2009-12-31 | AP12: No | AQ12: EXP | AZ12: 2009-12-30 | BA12: on line
B13: WMECO | C13: Springfield | D13: 6S36-2009 | E13: 01111 | F13: 87 | G13: Solar | H13: 5J14 | I13: 2009-12-24 | J13: 2010-01-29 | K13: =NETWORKDAYS(I13,J13,MALegalHolidays) -> 27 | M13: 27 | AM13: 2010-02-08 | AO13: 2010-03-26 | AP13: No | AQ13: EXP | AZ13: 2010-08-11 | BA13: On line. Will not export.
B14: WMECO | C14: Hancock | D14: 6B62-2009 | E14: 01237 | F14: 81.2 | G14: Solar | H14: 30B7 | I14: 2009-12-28 | AO14: 2009-12-31 | AP14: TBD | AQ14: EXP | BA14: Cancelled by Cust. Application not correct, reapplied.
B15: WMECO | C15: Springfield | D15: 6S37-2009 | E15: 01104 | F15: 95 | G15: Solar | H15: 5J14 | I15: 2009-12-28 | AO15: not supplied | AP15: TBD | AQ15: EXP | BA15: Cancelled by Cust. Wrong application, not complete, reapplied.
B16: WMECO | C16: Hadley | D16: 6A104-2009 | E16: 01002 | F16: 2000 | G16: Natural Gas / Fuel Oil | H16: 18G1 & 18G2 | I16: 2009-12-30 | J16: 2010-02-17 | K16: =NETWORKDAYS(I16,J16,MALegalHolidays) -> 36 | M16: 36 | AC16: 2010-07-19 | AE16: =NETWORKDAYS(AC16,AD16,MALegalHolidays) -> -28841 | AM16: 2011-02-22 | AO16: 09/2010 | AP16: Yes | AQ16: STD | AZ16: 2011-03-01 | BA16: On line. Removed.
B17: WMECO | C17: Springfield | D17: 6S38-2010 | E17: 01104 | F17: 38.07 | G17: Solar | H17: 5J13 | I17: 2010-01-05 | J17: 2010-01-29 | K17: =NETWORKDAYS(I17,J17,MALegalHolidays) -> 19 | M17: 19 | AM17: 2010-02-02 | AO17: 2010-01-15 | AP17: No | AQ17: EXP | AZ17: 2010-02-19 | BA17: on line
B18: WMECO | C18: Hancock | D18: 6B63-2010 | E18: 01237 | F18: 81.2 | G18: Solar | H18: 30B7 | I18: 2010-01-12 | J18: 2010-02-08 | K18: =NETWORKDAYS(I18,J18,MALegalHolidays) -> 20 | M18: 20 | AM18: 2010-02-19 | AO18: 2009-12-31 | AP18: No | AQ18: EXP | AZ18: 2010-03-09 | BA18: On line. Third party owned.
B19: WMECO | C19: Pittsfield | D19: 6B64-2010 | E19: 01201 | F19: 126.91 | G19: Solar | H19: 19A2 | I19: 2010-01-12 | J19: 2010-01-28 | K19: =NETWORKDAYS(I19,J19,MALegalHolidays) -> 13 | M19: 13 | AM19: 2010-02-09 | AO19: 2009-12-31 | AP19: No | AQ19: EXP | AZ19: 2010-02-25 | BA19: On line. Third party owned.
B20: WMECO | C20: Springfield | D20: 6S39-2010 | E20: 01104 | F20: 95 | G20: Solar | H20: 5J14 | I20: 2010-02-03 | J20: 2010-03-05 | K20: =NETWORKDAYS(I20,J20,MALegalHolidays) -> 23 | M20: 23 | AM20: 2010-04-05 | AO20: 2010-03-15 | AP20: No | AQ20: EXP | AZ20: 2010-10-13 | BA20: On line. Third party owned.
B21: WMECO | C21: Leverett | D21: 6A107-2010 | E21: 01054 | F21: =9.995+3.8 -> 13.795 | G21: Solar | H21: 18G7 | I21: 2010-02-05 | J21: 2010-02-11 | K21: =NETWORKDAYS(I21,J21,MALegalHolidays) -> 5 | M21: 5 | AM21: 2010-02-12 | AO21: 2010-02-01 | AP21: Yes | AQ21: EXP | AZ21: 2010-02-18 | BA21: On line. New construction.
B22: WMECO | C22: Amherst | D22: 6A110-2010 | E22: 01002 | F22: 14.7 | G22: Solar | H22: 17K3 | I22: 2010-04-01 | J22: 2010-04-12 | K22: =NETWORKDAYS(I22,J22,MALegalHolidays) -> 8 | M22: 8 | AM22: 2010-05-18 | AO22: 5/2010 | AP22: Yes | AQ22: EXP | AZ22: 2010-06-23 | BA22: On line. New construction.
B23: WMECO | C23: Shelburne | D23: 6F155-2010 | E23: 01370 | F23: 24.2 | G23: Solar | H23: 22B5 | I23: 2010-04-06 | J23: 2010-04-22 | K23: =NETWORKDAYS(I23,J23,MALegalHolidays) -> 13 | M23: 13 | AM23: 2010-04-27 | AO23: 5/2010 | AP23: Yes | AQ23: EXP | AZ23: 2010-05-21 | BA23: on line
B24: WMECO | C24: Whately | D24: 6AF157-2010 | E24: 01093 | F24: 20 | G24: Solar | H24: 18G8 | I24: 2010-04-21 | AO24: 7/2010 | AP24: TBD | AQ24: EXP | BA24: Cancelled by Cust. Cust changed design, reapplied.
B25: WMECO | C25: Northfield | D25: 6F158-2010 | E25: 01360 | F25: 65.4 | G25: Solar | H25: 21B8 | I25: 2010-04-21 | AO25: not supplied | AP25: TBD | AQ25: EXP | BA25: Cancelled by Cust. Cust will not make changes to existing system.
B26: WMECO | C26: Whately | D26: 6AF160-2010 | E26: 01093 | F26: 15.6 | G26: Solar | H26: 18G8 | I26: 2010-06-01 | J26: 2010-06-18 | K26: =NETWORKDAYS(I26,J26,MALegalHolidays) -> 14 | M26: 14 | AM26: 2010-06-28 | AO26: 7/2010 | AP26: Yes | AQ26: EXP | AZ26: 2010-07-09 | BA26: on line
B27: WMECO | C27: Pittsfield | D27: 6B71-2010 | E27: 01201 | F27: 36 | G27: Solar | H27: 30B4 | I27: 2010-06-01 | J27: 2010-08-23 | K27: =NETWORKDAYS(I27,J27,MALegalHolidays) -> 60 | M27: 60 | AM27: 2010-10-04 | AO27: 2010-09-13 | AP27: No | AQ27: EXP | AZ27: 2010-12-22 | BA27: On line. New construction service.
B28: WMECO | C28: Greenfield | D28: 6F161-2010 | E28: 01301 | F28: 2000 | G28: Solar | H28: 22B3 | I28: 2010-06-03 | J28: 2011-01-05 | K28: =NETWORKDAYS(I28,J28,MALegalHolidays) -> 155 | M28: 155 | AC28: 2010-07-20 | AD28: 2011-01-28 | AE28: =NETWORKDAYS(AC28,AD28,MALegalHolidays) -> 139 | AG28: 139 | AM28: 2011-01-28 | AO28: 2011-03-04 | AP28: Yes | AQ28: STD | AZ28: 2012-06-20 | BA28: On line. Draft Impact Study sent to cust 10/8/11. They changed inverters & design so study was redone. Third party owned. Stand alone generation. New constr.
B29: WMECO | C29: Pittsfield | D29: 6B72-2010 | E29: 01201 | F29: 1800 | G29: Solar | H29: 30B3 | I29: 2010-06-11 | AO29: 11/2010 | AP29: Yes | AQ29: STD | BA29: Cancelled by Cust. Application not correct, reapplied.
B30: WMECO | C30: Pittsfield | D30: 6B74-2010 | E30: 01201 | F30: 1800 | G30: Solar | H30: 30B3 N.C. / 30B2 N.O. * | I30: 2010-06-24 | AO30: 11/2010 | AP30: Yes | AQ30: STD | BA30: Cancelled by Cust. Cust changed design, reapplied.
B31: WMECO | C31: Pittsfield | D31: 6B75-2010 | E31: 01201 | F31: 62 | G31: Hydro | H31: 19A7 | I31: 2010-07-01 | J31: 2011-02-14 | K31: =NETWORKDAYS(I31,J31,MALegalHolidays) -> 163 | M31: 163 | AC31: 2010-09-30 | AE31: =NETWORKDAYS(AC31,AD31,MALegalHolidays) -> -28894 | AM31: 2011-04-07 | AO31: 2010-11-15 | AP31: No | AQ31: STD | AZ31: 2011-06-16 | BA31: On line. New construction service.
B32: WMECO | C32: Pittsfield | D32: 6B77-2010 | E32: 01201 | F32: 1500 | G32: Solar | H32: 30B3 | I32: 2010-07-30 | J32: 2011-02-02 | K32: =NETWORKDAYS(I32,J32,MALegalHolidays) -> 134 | M32: 134 | AC32: 2010-08-20 | AE32: =NETWORKDAYS(AC32,AD32,MALegalHolidays) -> -28865 | AM32: 2011-03-24 | AO32: 2010-12-10 | AP32: Yes | AQ32: STD | AY32: 2012-02-01 | AZ32: 2012-02-01 | BA32: On line. Stand alone generation. New construction.
B33: WMECO | C33: Greenfield | D33: 6F171-2010 | E33: 01301 | F33: 50 | G33: Solar | H33: 22B7 | I33: 2010-08-03 | J33: 2011-01-11 | K33: =NETWORKDAYS(I33,J33,MALegalHolidays) -> 116 | M33: 116 | AM33: 2011-01-12 | AO33: 2010-10-20 | AP33: No | AQ33: EXP | AZ33: 2011-02-10 | BA33: On line. Customer upgraded service.
B34: WMECO | C34: Springfield | D34: 6S46-2010 | E34: 01118 | F34: 26.4 | G34: Solar | H34: 22H16 | I34: 2010-08-03 | J34: 2010-09-18 | K34: =NETWORKDAYS(I34,J34,MALegalHolidays) -> 34 | M34: 34 | AM34: 2010-10-20 | AO34: 2010-09-01 | AP34: No | AQ34: EXP | AZ34: 2010-11-03 | BA34: On line. New construction.
B35: WMECO | C35: Hadley | D35: 6A134-2010 | E35: 01035 | F35: 30.3 | G35: Solar | H35: 17K5 | I35: 2010-08-20 | J35: 2010-09-03 | K35: =NETWORKDAYS(I35,J35,MALegalHolidays) -> 11 | M35: 11 | AM35: 2010-09-21 | AO35: 2010-09-20 | AP35: Yes | AQ35: EXP | AZ35: 2010-11-10 | BA35: on line
B36: WMECO | C36: Amherst | D36: 6A136-2010 | E36: 01002 | F36: 39.6 | G36: Solar | H36: 19B15 | I36: 2010-08-30 | J36: 2010-09-10 | K36: =NETWORKDAYS(I36,J36,MALegalHolidays) -> 10 | M36: 10 | AM36: 2010-10-01 | AO36: 2010-09-01 | AP36: No | AQ36: EXP | AZ36: 2010-10-15 | BA36: on line
B37: WMECO | C37: Deerfield | D37: 6F175-2010 | E37: 01343 | F37: 50 | G37: Solar | H37: 22B3 | I37: 2010-08-30 | J37: 2010-09-10 | K37: =NETWORKDAYS(I37,J37,MALegalHolidays) -> 10 | M37: 10 | AM37: 2010-10-26 | AO37: 2010-09-01 | AP37: No | AQ37: EXP | AZ37: 2010-12-17 | BA37: on line
B38: WMECO | C38: Lee | D38: 6B78S-2010 | E38: 01238 | F38: 30 | G38: Solar | H38: 17G3 | I38: 2010-09-17 | J38: 2011-03-01 | K38: =NETWORKDAYS(I38,J38,MALegalHolidays) -> 118 | M38: 118 | AM38: 2011-06-01 | AO38: 2010-10-01 | AP38: Yes | AQ38: EXP | AZ38: 2011-12-01 | BA38: On line. Cust has historic hydro.
B39: WMECO | C39: Hadley | D39: 6A138-2010 | E39: 01035 | F39: 25.5 | G39: Solar | H39: 18G5 | I39: 2010-09-21 | J39: 2010-10-22 | K39: =NETWORKDAYS(I39,J39,MALegalHolidays) -> 24 | M39: 24 | AM39: 2010-11-30 | AO39: 2010-11-01 | AP39: Yes | AQ39: EXP | AZ39: 2011-02-23 | BA39: On line. New construction.
B40: WMECO | C40: Ashfield | D40: 6F192-2010 | E40: 01330 | F40: 41.385 | G40: Solar | H40: 38A1 | I40: 2010-12-03 | J40: 2011-01-28 | K40: =NETWORKDAYS(I40,J40,MALegalHolidays) -> 41 | M40: 41 | AM40: 2011-01-28 | AO40: 2010-01-01 | AP40: Yes | AQ40: EXP | AZ40: 2011-04-19 | BA40: On line. Cust installed new service. Verizon pole set area.
B41: WMECO | C41: West Springfield | D41: 6S52-2010 | E41: 01089 | F41: 50 | G41: Solar | H41: 16C14 | I41: 2010-12-07 | J41: 2011-01-25 | K41: =NETWORKDAYS(I41,J41,MALegalHolidays) -> 36 | M41: 36 | AM41: 2011-03-02 | AO41: 2011-02-01 | AP41: No | AQ41: EXP | AZ41: 2011-03-29 | BA41: On line. Third party owned.
B42: WMECO | C42: Pittsfield | D42: 6B82-2010 | E42: 01201 | F42: 195 | G42: Digester Gas | H42: 30B3 | I42: 2010-12-09 | J42: 2011-08-18 | K42: =NETWORKDAYS(I42,J42,MALegalHolidays) -> 181 | M42: 181 | AM42: 2011-09-27 | AO42: 2011-01-01 | AP42: No | AQ42: STD | AZ42: 2012-02-10 | BA42: On line. Will not export.
B43: WMECO | C43: Pittsfield | D43: 6B86-2010 | E43: 01201 | F43: 387.2 | G43: Solar | H43: 30B7 | I43: 2010-12-15 | J43: 2011-06-17 | K43: =NETWORKDAYS(I43,J43,MALegalHolidays) -> 133 | M43: 133 | AM43: 2011-06-17 | AO43: 2011-01-01 | AP43: No | AQ43: EXP | AZ43: 2011-07-27 | BA43: on line
B44: WMECO | C44: Hadley | D44: 6A149-2011 | E44: 01035 | F44: 450 | G44: Biogas | H44: 19B15 | I44: 2011-01-04 | AO44: 2011-07-01 | AP44: Yes | AQ44: STD | BA44: Cancelled by Cust. Cust name and design changed. Reapplied.
B45: WMECO | C45: Greenfield | D45: 6F194-2011 | E45: 01301 | F45: 83 | G45: Solar | H45: 22B7 | I45: 2011-01-04 | J45: 2011-07-08 | K45: =NETWORKDAYS(I45,J45,MALegalHolidays) -> 134 | M45: 134 | AM45: 2011-12-13 | AO45: 2011-03-01 | AP45: No | AQ45: EXP | AZ45: 2012-02-06 | BA45: On line. Cust installed phone line to meter.
B46: WMECO | C46: Deerfield | D46: 6F195-2011 | E46: 01342 | F46: 450 | G46: Biogas | H46: 22B1 | I46: 2011-01-04 | AO46: 2011-06-01 | AP46: Yes | AQ46: STD | BA46: Cancelled by Cust. Cust name and design change, reapplied.
B47: WMECO | C47: Easthampton | D47: 6A151-2011 | E47: 01027 | F47: 2000 | G47: Solar | H47: 15A3 | I47: 2011-01-27 | J47: 2011-03-16 | K47: =NETWORKDAYS(I47,J47,MALegalHolidays) -> 35 | M47: 35 | AC47: 2011-03-21 | AD47: 2011-06-29 | AE47: =NETWORKDAYS(AC47,AD47,MALegalHolidays) -> 73 | AG47: 73 | AH47: 2011-07-06 | AJ47: =NETWORKDAYS(AH47,AI47,MALegalHolidays) -> -29093 | AM47: 2011-10-21 | AO47: 2011-11-19 | AP47: Yes | AQ47: STD | AZ47: 2012-06-01 | BA47: On line. Int Cust worked with Verizon to get phone lines. Third party owned. Stand alone generation. New construction.
B48: WMECO | C48: Hadley | D48: 6A156-2011 | E48: 01035 | F48: 450 | G48: Biogas | H48: 19B15 | I48: 2011-02-23 | AO48: 2011-07-01 | AP48: Yes | AQ48: STD | BA48: Cancelled by Cust. Cust submitted new application for larger unit.
B49: WMECO | C49: Pittsfield | D49: 6B92-2011 | E49: 01201 | F49: 2000 | G49: Solar | H49: 19A3 | I49: 2011-02-23 | AC49: 2011-05-26 | AE49: =NETWORKDAYS(AC49,AD49,MALegalHolidays) -> -29064 | AO49: 2011-12-15 | AP49: Yes | AQ49: STD | BA49: Cancelled by Int Cust. Third party owned. Stand alone generation. New construction.
B50: WMECO | C50: Deerfield | D50: 6F201-2011 | E50: 01373 | F50: 450 | G50: Biogas | H50: 22B1 | I50: 2011-02-23 | AO50: 2011-07-01 | AP50: Yes | AQ50: STD | BA50: Cancelled by Cust. Cust submitted new application for larger unit.
B51: WMECO | C51: Sandisfield | D51: 6B93-2011 | E51: 01255 | F51: 14 | G51: Solar | H51: 19J4 | I51: 2011-03-03 | J51: 2011-03-28 | K51: =NETWORKDAYS(I51,J51,MALegalHolidays) -> 18 | M51: 18 | AM51: 2011-04-27 | AO51: 2011-06-01 | AP51: No | AQ51: EXP | AZ51: 2011-12-05 | BA51: on line
B52: WMECO | C52: Greenfield | D52: 6F203-2011 | E52: 01301 | F52: 100 | G52: Solar | H52: 22B4 | I52: 2011-03-04 | J52: 2011-12-07 | K52: =NETWORKDAYS(I52,J52,MALegalHolidays) -> 199 | M52: 199 | AM52: 2012-03-26 | AO52: 2011-07-01 | AP52: No | AQ52: EXP | AZ52: 2012-05-07 | BA52: On line. New construction service.
B53: WMECO | C53: Springfield | D53: 6S56-2011 | E53: 01107 | F53: 120.4 | G53: Solar | H53: 21S7 | I53: 2011-03-17 | J53: 2012-01-06 | K53: =NETWORKDAYS(I53,J53,MALegalHolidays) -> 211 | M53: 211 | AM53: 2012-01-30 | AO53: 2011-05-01 | AP53: No | AQ53: STD | AZ53: 2012-03-12 | BA53: on line
B54: WMECO | C54: Westfield | D54: 6A164-2011 | E54: 01085 | F54: 250 | G54: Solar | H54: 19J2 | I54: 2011-04-07 | AO54: 2011-07-31 | AP54: TBD | AQ54: STD | BA54: Cancelled by Cust. Wrong application submitted. 3rd party info incorrect. Cust submited new application.
B55: WMECO | C55: Northfield | D55: 6F215-2011 | E55: 01360 | F55: 2000 | G55: Solar | H55: 21B8 | I55: 2011-04-07 | J55: 2011-08-18 | K55: =NETWORKDAYS(I55,J55,MALegalHolidays) -> 96 | M55: 96 | AC55: 2011-07-13 | AD55: 2011-12-13 | AE55: =NETWORKDAYS(AC55,AD55,MALegalHolidays) -> 110 | AG55: 110 | AH55: 2011-11-28 | AJ55: =NETWORKDAYS(AH55,AI55,MALegalHolidays) -> -29196 | AM55: 2012-02-07 | AO55: 2011-08-01 | AP55: Yes | AQ55: STD | AZ55: 2012-03-30 | BA55: On line. Third party owned. Essentially stand alone generation.
B56: WMECO | C56: Agawam | D56: 6S57-2011 | E56: 01001 | F56: 1500 | G56: Solar | H56: 30A6 | I56: 2011-04-19 | J56: 2011-05-26 | K56: =NETWORKDAYS(I56,J56,MALegalHolidays) -> 28 | M56: 28 | AC56: 2011-06-09 | AD56: 2011-10-21 | AE56: =NETWORKDAYS(AC56,AD56,MALegalHolidays) -> 97 | AG56: 97 | AH56: 2011-11-14 | AJ56: =NETWORKDAYS(AH56,AI56,MALegalHolidays) -> -29186 | AM56: 2012-04-27 | AO56: 2011-09-01 | AP56: Yes | AQ56: STD | AX56: 2013-03-11 | AY56: 2013-03-13 | AZ56: 2013-03-13 | BA56: On line. Communication work with Verizon in progress. Third party owned. Stand alone generation. New construction.
B57: WMECO | C57: Westfield | D57: 6A168-2011 | E57: 01085 | F57: 1000 | G57: Solar | H57: 19J2 | I57: 2011-05-17 | J57: 2011-07-20 | K57: =NETWORKDAYS(I57,J57,MALegalHolidays) -> 47 | M57: 47 | AO57: 2011-09-30 | AP57: Yes | AQ57: STD | BA57: Cancelled by Int Cust. Third party owned. Essentially stand alone generation. New construction. Application has two options 250 kW or 1,000 kW. Highest option listed in Design Capacity.
B58: WMECO | C58: Whately | D58: 6A170-2011 | E58: 01373 | F58: 1500 | G58: Solar | H58: 18G8 | I58: 2011-05-19 | J58: 2011-07-21 | K58: =NETWORKDAYS(I58,J58,MALegalHolidays) -> 46 | M58: =IF(K58>0,K58-L58," ") -> 46 | R58: =IF(P58>0,P58-Q58," ") ->  | W58: =IF(U58>0,U58-V58," ") ->  | AB58: =IF(Z58>0,Z58-AA58," ") ->  | AC58: 2011-07-08 | AD58: 2011-12-28 | AE58: =NETWORKDAYS(AC58,AD58,MALegalHolidays) -> 124 | AG58: =IF(AE58>0,AE58-AF58," ") -> 124 | AH58: 2011-12-21 | AJ58: =NETWORKDAYS(AH58,AI58,MALegalHolidays) -> -29213 | AL58: =IF(AJ58>0,AJ58-AK58," ") ->  | AM58: 2012-04-03 | AO58: 2011-09-01 | AP58: Yes | AQ58: STD | AW58: =IF(AU58>0,AU58-AV58," ") ->  | AX58: 2013-01-29 | AY58: 2013-02-01 | AZ58: 2013-03-11 | BA58: On line. Third party owned. Stand alone generation. New construction.
B59: WMECO | C59: Greenfield | D59: 6F230-2011 | E59: 01301 | F59: 34.2 | G59: Solar | H59: 22B4 | I59: 2011-06-14 | AO59: not supplied | AP59: TBD | AQ59: EXP | BA59: Cancelled by Cust. Cust submitted new application.
B60: WMECO | C60: Dalton | D60: 6B105-2011 | E60: 01226 | F60: 224 | G60: Steam | H60: 19A6 | I60: 2011-06-20 | J60: 2012-01-11 | K60: =NETWORKDAYS(I60,J60,MALegalHolidays) -> 147 | M60: 147 | AC60: 2011-10-20 | AE60: =NETWORKDAYS(AC60,AD60,MALegalHolidays) -> -29169 | AM60: 2012-01-11 | AO60: 2011-11-11 | AP60: No | AQ60: STD | AZ60: 2012-01-24 | BA60: On line. Will not export.
B61: WMECO | C61: Dalton | D61: 6B106-2011 | E61: 01226 | F61: 250 | G61: Hydro | H61: 19A6 | I61: 2011-06-20 | J61: 2012-05-29 | K61: =NETWORKDAYS(I61,J61,MALegalHolidays) -> 242 | M61: 242 | AC61: 2012-07-16 | AD61: 2012-12-19 | AE61: =NETWORKDAYS(AC61,AD61,MALegalHolidays) -> 108 | AG61: 108 | AM61: 2013-04-30 | AO61: 2012-04-01 | AP61: Yes | AQ61: STD | AX61: 2013-09-27 | AY61: 2013-10-03 | AZ61: 2013-10-03 | BA61: on line 10/3/13
B62: WMECO | C62: Greenfield | D62: 6F235-2011 | E62: 01301 | F62: 34.2 | G62: Solar | H62: 22B4 | I62: 2011-06-24 | J62: 2011-07-15 | K62: =NETWORKDAYS(I62,J62,MALegalHolidays) -> 16 | M62: 16 | AM62: 2011-07-20 | AO62: 2011-07-21 | AP62: No | AQ62: EXP | AZ62: 2011-08-05 | BA62: on line
B63: WMECO | C63: Agawam | D63: 6S60-2011 | E63: 01001 | F63: 1500 | G63: Solar | H63: 16C16 | I63: 2011-07-07 | J63: 2011-08-03 | K63: =NETWORKDAYS(I63,J63,MALegalHolidays) -> 20 | M63: 20 | AC63: 2011-09-01 | AD63: 2011-12-29 | AE63: =NETWORKDAYS(AC63,AD63,MALegalHolidays) -> 86 | AG63: 86 | AH63: 2011-12-21 | AJ63: =NETWORKDAYS(AH63,AI63,MALegalHolidays) -> -29213 | AM63: 2012-04-13 | AO63: 2011-12-01 | AP63: Yes | AQ63: STD | AX63: 2013-02-06 | AY63: 2013-02-22 | AZ63: 2013-03-11 | BA63: On line. Communication work with Verizon in progress. Third party owned. Stand alone generation. New construction. On line.
B64: WMECO | C64: Chesterfield | D64: 6F243-2011 | E64: 01012 | F64: 12 | G64: Solar | H64: 18K3 | I64: 2011-07-25 | J64: 2011-08-22 | K64: =NETWORKDAYS(I64,J64,MALegalHolidays) -> 21 | M64: 21 | AM64: 2011-08-23 | AO64: 2011-08-01 | AP64: No | AQ64: EXP | AZ64: 2011-09-15 | BA64: on line
B65: WMECO | C65: Amherst | D65: 6A183-2011 | E65: 01002 | F65: 60 | G65: Solar | H65: 19B16 | I65: 2011-07-28 | J65: 2011-09-22 | K65: =NETWORKDAYS(I65,J65,MALegalHolidays) -> 41 | M65: 41 | AM65: 2011-10-17 | AO65: 2011-11-01 | AP65: No | AQ65: EXP | AZ65: 2011-11-18 | BA65: on line
B66: WMECO | C66: Conway | D66: 6F248-2011 | E66: 01341 | F66: 22.8 | G66: Solar | H66: 38A1 | I66: 2011-08-12 | J66: 2011-10-26 | K66: =NETWORKDAYS(I66,J66,MALegalHolidays) -> 54 | M66: 54 | AM66: 2011-11-17 | AO66: 2011-09-10 | AP66: Yes | AQ66: EXP | AZ66: 2012-02-27 | BA66: on line
B67: WMECO | C67: Whately | D67: 6F251-2011 | E67: 01373 | F67: 100 | G67: Solar | H67: 18G8 | I67: 2011-08-18 | J67: 2011-10-13 | K67: =NETWORKDAYS(I67,J67,MALegalHolidays) -> 41 | M67: 41 | AM67: 2011-10-18 | AO67: not supplied | AP67: No | AQ67: EXP | AZ67: 2011-12-28 | BA67: On line. New construction service.
B68: WMECO | C68: Hadley | D68: 6A196-2011 | E68: 01035 | F68: 95 | G68: Solar | H68: 18G4 | I68: 2011-09-01 | J68: 2011-10-25 | K68: =NETWORKDAYS(I68,J68,MALegalHolidays) -> 39 | M68: 39 | AM68: 2011-11-30 | AO68: 2011-11-01 | AP68: Yes | AQ68: EXP | AZ68: 2012-03-30 | BA68: On line. Stand alone generation. New construction.
B69: WMECO | C69: Pittsfield | D69: 6B111-2011 | E69: 01201 | F69: 300 | G69: Solar | H69: 30B4 | I69: 2011-09-02 | J69: 2011-10-05 | K69: =NETWORKDAYS(I69,J69,MALegalHolidays) -> 24 | M69: 24 | AM69: 2012-02-07 | AO69: 2011-10-01 | AP69: No | AQ69: EXP | AZ69: 2012-06-01 | BA69: On line. Cust changed their switchgear. Service upgrade.
B70: WMECO | C70: Springfield | D70: 6S68-2011 | E70: 01111 | F70: 208 | G70: Solar | H70: 5J14 | I70: 2011-09-12 | J70: 2011-11-17 | K70: =NETWORKDAYS(I70,J70,MALegalHolidays) -> 49 | M70: 49 | AM70: 2011-11-30 | AO70: 2011-10-15 | AP70: No | AQ70: EXP | AZ70: 2012-01-24 | BA70: On line. Will not export.
B71: WMECO | C71: Deerfield | D71: 6F264-2011 | E71: 01342 | F71: 30 | G71: Solar | H71: 22B7 | I71: 2011-09-16 | J71: 2011-10-19 | K71: =NETWORKDAYS(I71,J71,MALegalHolidays) -> 24 | M71: 24 | AM71: 2011-11-07 | AO71: 2011-10-31 | AP71: No | AQ71: EXP | AZ71: 2012-02-03 | BA71: on line
B72: WMECO | C72: Hadley | D72: 6A209-2011 | E72: 01035 | F72: 300 | G72: Biogas | H72: 19B15 | I72: 2011-09-21 | J72: 2013-10-18 | K72: =NETWORKDAYS(I72,J72,MALegalHolidays) -> 522 | M72: 522 | N72: 2013-10-21 | P72: =NETWORKDAYS(N72,O72,MALegalHolidays) -> -29670 | AM72: 2013-12-19 | AO72: 2012-04-01 | AP72: Yes | AQ72: STD | AZ72: 2013-12-31 | BA72: on line
B73: WMECO | C73: Deerfield | D73: 6F265-2011 | E73: 01372 | F73: 600 | G73: Biogas | H73: 22B1 | I73: 2011-09-21 | AO73: 2012-04-01 | AP73: Yes | AQ73: STD | BA73: Sent purge letter 5/20/13. Cust submitted new option 6/17/13. Gen-set nampeplate and application fee required. Stand alone generation. New construction. Design option 600 kW or 300 kW. Highest design listed. Reviewed new option for completeness. App not complete. Cust cancelled 9/10/13.
B74: WMECO | C74: Lee | D74: 6B116-2011 | E74: 01238 | F74: 295 | G74: Solar | H74: 16B5 | I74: 2011-10-21 | AO74: Q2 2012 | AP74: TBD | AQ74: EXP | BA74: Cancelled by Cust. Submitted new application.
B75: WMECO | C75: Colrain | D75: 6F274-2011 | E75: 01340 | F75: 15.36 | G75: Solar | H75: 29R2 | I75: 2011-10-24 | J75: 2012-01-12 | K75: =NETWORKDAYS(I75,J75,MALegalHolidays) -> 58 | M75: 58 | AM75: 2012-02-07 | AO75: 2011-11-30 | AP75: Yes | AQ75: EXP | AZ75: 2012-05-23 | BA75: On line. Essentially stand alone generation.
B76: WMECO | C76: Whately | D76: 6A225-2011 | E76: 01093 | F76: 260 | G76: Solar | H76: 18G8 | I76: 2011-11-07 | AO76: 2012-03-16 | AP76: TBD | AQ76: EXP | BA76: Cancelled by Cust. Cust changed design, submitted new application.
B77: WMECO | C77: Hadley | D77: 6A228-2011 | E77: 01035 | F77: 17.995 | G77: Solar | H77: 18G5 | I77: 2011-11-09 | J77: 2011-12-20 | K77: =NETWORKDAYS(I77,J77,MALegalHolidays) -> 30 | M77: 30 | AM77: 2011-12-21 | AO77: 2011-11-28 | AP77: No | AQ77: EXP | AZ77: 2012-01-19 | BA77: on line
B78: WMECO | C78: Pittsfield | D78: 6B117-2011 | E78: 01201 | F78: 100 | G78: Solar | H78: 30B3 | I78: 2011-11-09 | J78: 2012-01-18 | K78: =NETWORKDAYS(I78,J78,MALegalHolidays) -> 49 | M78: 49 | S78: 2011-12-12 | U78: =NETWORKDAYS(S78,T78,MALegalHolidays) -> -29206 | AM78: 2012-03-02 | AO78: 2011-12-15 | AP78: Yes | AQ78: EXP | AZ78: 2012-05-03 | BA78: On line. Generation significantly larger than load.
B79: WMECO | C79: Springfield | D79: 6S74-2011 | E79: 01104 | F79: 60 | G79: Solar | H79: 21S7 | I79: 2011-11-15 | J79: 2012-04-10 | K79: =NETWORKDAYS(I79,J79,MALegalHolidays) -> 103 | M79: 103 | AM79: 2012-04-10 | AO79: 2012-03-01 | AP79: No | AQ79: EXP | BA79: Purge letter sent 5/20/13. Waiting for Cust to return IA and completion documents to schedule Witness Test. Withdrawn
B80: WMECO | C80: Springfield | D80: 6S75-2011 | E80: 01104 | F80: 95 | G80: Solar | H80: 21S7 | I80: 2011-11-15 | J80: 2012-04-09 | K80: =NETWORKDAYS(I80,J80,MALegalHolidays) -> 102 | M80: 102 | N80: 2011-12-20 | P80: =NETWORKDAYS(N80,O80,MALegalHolidays) -> -29212 | AM80: 2012-04-19 | AO80: 2012-03-01 | AP80: No | AQ80: EXP | AX80: 2014-04-30 | AY80: 2014-05-05 | AZ80: 2014-05-05 | BA80: Waiting for Cust to return IA and completion documents to schedule Witness Test. Have heard nothing from cust as of 8/21/13. Waiting for Customer. Received most of the completion docs from Interconnecting Customer, waiting for revised drawing with inverter settings Received revised drawing, need inverter setting sheet, Int Customer will provide during Witness Test. Witness Test performed, Witness Test passed, Int Customer is on line.
B81: WMECO | C81: Dalton | D81: 6B120-2011 | E81: 01226 | F81: 13 | G81: Solar | H81: 19A2 | I81: 2011-11-23 | AO81: 2011-12-22 | AP81: TBD | AQ81: EXP | BA81: Cancelled by Cust. Application is incomplete and incorrect. Cust changed design and reapplied.
B82: WMECO | C82: Buckland | D82: 6F286-2011 | E82: 01338 | F82: 57 | G82: Solar | H82: 22B5 | I82: 2011-12-07 | J82: 2012-02-22 | K82: =NETWORKDAYS(I82,J82,MALegalHolidays) -> 53 | M82: 53 | AM82: 2012-03-12 | AO82: 2012-01-01 | AP82: Yes | AQ82: EXP | AZ82: 2012-05-01 | BA82: On line. Third party owned.
B83: WMECO | C83: Greenfield | D83: 6F290-2011 | E83: 01301 | F83: 14.7 | G83: Solar | H83: 21C4 | I83: 2011-12-14 | J83: 2012-01-26 | K83: =NETWORKDAYS(I83,J83,MALegalHolidays) -> 30 | M83: 30 | AM83: 2012-02-08 | AO83: 2012-01-01 | AP83: No | AQ83: EXP | AZ83: 2012-03-19 | BA83: on line
B84: WMECO | C84: Whately | D84: 6A239-2011 | E84: 01093 | F84: 260 | G84: Solar | H84: 18G8 | I84: 2011-12-16 | J84: 2012-04-13 | K84: =NETWORKDAYS(I84,J84,MALegalHolidays) -> 83 | M84: 83 | AM84: 2012-04-19 | AO84: 2012-03-16 | AP84: No | AQ84: EXP | AZ84: 2012-05-01 | BA84: on line
B85: WMECO | C85: Easthampton | D85: 6A241-2011 | E85: 01027 | F85: 3.3 | G85: Wind | H85: 15A5 | I85: 2011-12-22 | J85: 2012-01-04 | K85: =NETWORKDAYS(I85,J85,MALegalHolidays) -> 9 | M85: 9 | AM85: 2012-01-12 | AO85: not supplied | AP85: No | AQ85: EXP | AZ85: 2012-02-13 | BA85: On line. Third party owned. Single phase system on three phase service.
B86: WMECO | C86: Hadley | D86: 6A242-2011 | E86: 01035 | F86: 2000 | G86: Solar | H86: 18G4 | I86: 2011-12-27 | J86: 2012-02-16 | K86: =NETWORKDAYS(I86,J86,MALegalHolidays) -> 36 | M86: 36 | AC86: 2012-04-02 | AD86: 2013-07-09 | AE86: =NETWORKDAYS(AC86,AD86,MALegalHolidays) -> 316 | AF86: 0 | AG86: 316 | AH86: 2013-05-03 | AI86: 2013-09-12 | AJ86: =NETWORKDAYS(AH86,AI86,MALegalHolidays) -> 91 | AK86: 51 | AL86: 40 | AM86: 2013-10-04 | AO86: 2012-07-01 | AP86: Yes | AQ86: STD | BA86: Int Cust cancelled project. Int Cust changed inverters and name, (Impact Study 3/12/12 & IS Option 1 10/17/12) new Impact Study approved for option. ISO-NE notification approved. Third party owned. Stand alone generation. New construction. Detailed Study agreement and check returned to WMECO. Project in Detailed Study mode. Site visit 6/5/13 w/ cust, tech and Verizon, cust needs to decide where to interconnect on property, clock stopped for Detailed Study 6/5/13. Cust asked for an extenstion. Second site visit (8/19/13) interconnection poles laid out work order writing to commence. Work orders written need to put together estimate to include in IA. Draft IAs sent out for review 9/12/13, Customer wants breakdown of IA system upgrades. Cust sent comments on draft Exhibit G. waiting for comments on Draft Exhibit H. Sent IAs for signature. Waiting for signed agreements and money. Construction of project may be delayed due to a required Cultural Review at project site. Recvd signed Exhibits G & H, waiting for monies & insurance to schedule construction.
B87: WMECO | C87: Whately | D87: 6A247-2012 | E87: 01093 | F87: 1000 | G87: Solar | H87: 18G8 | I87: 2012-01-04 | AO87: 2012-07-01 | AP87: Yes | AQ87: STD | BA87: Cancelled by Cust. Cust submitted new application. Stand alone generation. New construction.
B88: WMECO | C88: Whately | D88: 6A250-2012 | E88: 01039 | F88: 1000 | G88: Solar | H88: 18G8 | I88: 2012-01-04 | AO88: 2012-07-01 | AP88: Yes | AQ88: STD | BA88: Cancelled by Cust. Cust submitted new application. Stand alone generation. New construction.
B89: WMECO | C89: Blandford | D89: 6BA253-2012 | E89: 01008 | F89: 1000 | G89: Solar | H89: 19J2 | I89: 2012-01-10 | AO89: 2012-09-18 | AP89: Yes | AQ89: STD | BA89: Cust cancelled project. Stand alone generation. New construction.
B90: WMECO | C90: Blandford | D90: 6BA254-2012 | E90: 01008 | F90: 1000 | G90: Solar | H90: 19J2 | I90: 2012-01-10 | AO90: 2012-09-18 | AP90: Yes | AQ90: STD | BA90: Cust cancelled project. Stand alone generation. New construction. Application has three options 500 kW or 750 kW or 1,000 kW. Highest option listed in Design Capacity.
B91: WMECO | C91: Turners Falls | D91: 6F295-2012 | E91: 01376 | F91: 370 | G91: Hydro | H91: 21C6 | I91: 2012-01-10 | J91: 2012-03-05 | K91: =NETWORKDAYS(I91,J91,MALegalHolidays) -> 38 | M91: 38 | AC91: 2012-03-20 | AE91: =NETWORKDAYS(AC91,AD91,MALegalHolidays) -> -29274 | AM91: 2013-03-27 | AO91: not supplied | AP91: No | AQ91: STD | BA91: cancelled
B92: WMECO | C92: Tolland | D92: 6B125-2012 | E92: 01634 | F92: 3500 | G92: Solar | H92: 19J4 | I92: 2012-01-25 | J92: 2013-01-31 | K92: =NETWORKDAYS(I92,J92,MALegalHolidays) -> 255 | L92: 0 | M92: 255 | AC92: 2012-06-18 | AD92: 2013-06-07 | AE92: =NETWORKDAYS(AC92,AD92,MALegalHolidays) -> 243 | AF92: 0 | AG92: 243 | AH92: 2013-07-31 | AI92: 2013-09-06 | AJ92: =NETWORKDAYS(AH92,AI92,MALegalHolidays) -> 27 | AL92: 27 | AM92: 2013-09-06 | AO92: 2012-09-25 | AP92: Yes | AQ92: COMP | AX92: 2014-09-25 | AY92: 2014-10-03 | AZ92: 2014-10-03 | BA92: Early ISA 6/7/13. Impact Study joint with 6B126-2012 and 6B127-2012. (6/5/12) Int Cust submitted new option, new study will continue when agreement executed (1/25/13). ISO-NE notification submitted and approved. Detailed Study required. Stand alone generation. New construction. Application has two options 2,000 kW or 3,500 kW. Selected option listed in Design Capacity. Customer requested early ISA. Detailed Study has not started yet. Early ISA exhibit G & H sent to cust for signature 6/7/13, rcvd signed Early Exhibit G from Int Cust 6/28/13, waiting for signed Early Exhibit H from Host Cst. rcvd detailed Study check 7/31/13. sent e-mail to cust to set up site visit. Site visit 8/8/13 work orders are being written. sent IA to Customer and Interconnecting Customer 9/6/13. Rcvd signed Exhibit H 9/18/13 Waiting for signed Exhibit G and payment for system upgrades. Payment for upgrades received. Easement for interconnection service has not been completed, waiting for the lawyers to finalize. The line recloser controls and tranfer trip equpment have been installed. ION meter has been installed. DTT is commissioned. waiting for revised completion info from Customer. Rcvd revised info, Witness Test scheduled, Witness test passed, Aproval to Operate sent to Interconnecting Customer and Customer, Project is on line.
B93: WMECO | C93: Tolland | D93: 6B126-2012 | E93: 01634 | F93: 1000 | G93: Solar | H93: 19J4 | I93: 2012-01-25 | AC93: 2012-06-18 | AE93: =NETWORKDAYS(AC93,AD93,MALegalHolidays) -> -29336 | AO93: 2012-09-25 | AP93: Yes | AQ93: STD | BA93: Int cust cancelled 6/12/13. Impact Study joint with 6B126-2012 and 6B127-2012. On hold by Cust. ISO-NE notification and Detailed Study required if project proceeds. Stand alone generation. New construction.
B94: WMECO | C94: Tolland | D94: 6B127-2012 | E94: 01634 | F94: 1000 | G94: Solar | H94: 19J4 | I94: 2012-01-25 | AC94: 2012-06-18 | AE94: =NETWORKDAYS(AC94,AD94,MALegalHolidays) -> -29336 | AO94: 2012-09-25 | AP94: Yes | AQ94: STD | BA94: Int Cust cancelled 6/12/13. Impact Study joint with 6B126-2012 and 6B127-2012. On hold by Cust. ISO-NE notification and Detailed Study required if project proceeds. Stand alone generation. New construction. Application has three options 500 kW or 750 kW or 1,000 kW. Highest option listed in Design Capacity.
B95: WMECO | C95: Tolland | D95: 6B128-2012 | E95: 01634 | F95: 1000 | G95: Solar | H95: 19J4 | I95: 2012-01-25 | AO95: 2012-09-25 | AP95: Yes | AQ95: STD | BA95: Cancelled by Cust after Scoping Meeting. Stand alone generation. New construction.
B96: WMECO | C96: West Springfield | D96: 6S90-2012 | E96: 01089 | F96: 110 | G96: Solar | H96: 21N5 | I96: 2012-02-01 | J96: 2012-03-02 | K96: =NETWORKDAYS(I96,J96,MALegalHolidays) -> 22 | M96: 22 | S96: 2012-02-29 | U96: =NETWORKDAYS(S96,T96,MALegalHolidays) -> -29260 | AM96: 2012-05-24 | AO96: not supplied | AP96: No | AQ96: EXP | AZ96: 2012-07-12 | BA96: On Line. Cust upgraded service.
B97: WMECO | C97: Pittsfield | D97: 6B130-2012 | E97: 01201 | F97: 2000 | G97: Solar | H97: 15E2 | I97: 2012-02-02 | AO97: 2012-10-02 | AP97: Yes | AQ97: STD | BA97: Cancelled by Cust after being on hold by Cust. Impact Study Agreement sent to Cust for joint study with 6B131-2012 who did not execute it. Stand alone generation. New construction.
B98: WMECO | C98: Pittsfield | D98: 6B131-2012 | E98: 01201 | F98: 3000 | G98: Solar | H98: 15E2 | I98: 2012-02-02 | AO98: 2012-10-02 | AP98: Yes | AQ98: STD | BA98: Talked with Customer 9/16/13 re: status of project moving forward, Customer will talk with investors, WMECO to send e-mail with request to Customer of project status. Cust submitted 3 MW option 4/24/13 for separate Impact Study. Impact Study Agreement sent to Cust for joint study with 6B130-2012 who did not execute it. Stand alone generation. New construction. Application has options 500 kW or 750 kW or 1,000 kW or 3,000. Current 3 MW option listed in Design Capacity. withdrawn
B99: WMECO | C99: Ludlow | D99: 6S91-2012 | E99: 01056 | F99: 3000 | G99: Solar | H99: 19S3 | I99: 2012-02-03 | AO99: 2012-09-30 | AP99: Yes | AQ99: STD | BA99: Cancelled by Int Cust who submitted new applications. Stand alone generation. New construction.
B100: WMECO | C100: Hatfield | D100: 6A262-2012 | E100: 01038 | F100: 45.6 | G100: Solar | H100: 18G5 | I100: 2012-02-06 | J100: 2012-04-11 | K100: =NETWORKDAYS(I100,J100,MALegalHolidays) -> 47 | M100: 47 | AM100: 2012-05-02 | AO100: not supplied | AP100: Yes | AQ100: EXP | AX100: 2012-08-24 | AY100: 2012-08-28 | AZ100: 2012-08-28 | BA100: on line
B101: WMECO | C101: Shutesbury | D101: 6A263-2012 | E101: 01072 | F101: 11.4 | G101: Solar | H101: 18G7 | I101: 2012-02-07 | J101: 2012-05-01 | K101: =NETWORKDAYS(I101,J101,MALegalHolidays) -> 59 | M101: 59 | AM101: 2012-05-25 | AO101: 2/2012 | AP101: No | AQ101: EXP | AZ101: 2012-06-13 | BA101: on line
B102: WMECO | C102: Deerfield | D102: 6F303-2012 | E102: 01342 | F102: 22.8 | G102: Solar | H102: 22B4 | I102: 2012-02-07 | J102: 2012-05-07 | K102: =NETWORKDAYS(I102,J102,MALegalHolidays) -> 63 | M102: 63 | S102: 2012-04-17 | U102: =NETWORKDAYS(S102,T102,MALegalHolidays) -> -29293 | AM102: 2012-05-10 | AO102: 2012-04-01 | AP102: Yes | AQ102: EXP | AZ102: 2012-09-12 | BA102: on line
B103: WMECO | C103: Southampton | D103: 6A266-2012 | E103: 01073 | F103: 11.18 | G103: Solar | H103: 15A1 | I103: 2012-02-17 | J103: 2012-04-04 | K103: =NETWORKDAYS(I103,J103,MALegalHolidays) -> 33 | M103: 33 | AM103: 2012-06-18 | AO103: 2012-04-25 | AP103: No | AQ103: EXP | AZ103: 2012-08-06 | BA103: on line
B104: WMECO | C104: Whately | D104: 6A267-2012 | E104: 01373 | F104: 2000 | G104: Solar | H104: 18G8 | I104: 2012-02-17 | J104: 2012-04-10 | K104: =NETWORKDAYS(I104,J104,MALegalHolidays) -> 37 | M104: 37 | AC104: 2012-05-17 | AD104: 2012-11-07 | AE104: =NETWORKDAYS(AC104,AD104,MALegalHolidays) -> 121 | AF104: 0 | AG104: 121 | AH104: 2012-09-12 | AI104: 2013-01-22 | AJ104: =NETWORKDAYS(AH104,AI104,MALegalHolidays) -> 88 | AK104: 0 | AL104: 88 | AM104: 2013-02-26 | AO104: 2012-09-01 | AP104: Yes | AQ104: STD | AX104: 2014-06-09 | AY104: 2014-06-16 | AZ104: 2014-06-25 | BA104: Int Cust changed their name. Now 3rd party owned. ISO-NE notification approved. Stand alone generation. New construction. Application has three options 1,000 kW or 1,500 kW or 2,000 kW. Option selected listed in Design Capacity. Waiting for Customer to return signed IA. Cust Exhibit G rcvd 3/6/13. Purge letter sent to Int Cust 5/20/13. Sent new tariff IA form sent to cust & Int Cust for signature 6/6/13. Rcvd new tariff IA from Int Cust 6/11/13. Need payments to schedule construction. Call w/ Cust ISD by early December providing all upgrade monies & insurance recvd by WMECO by 9/3/13. System upgrade monies received, construction scheduled. Construction of interconnection service completed, Customer is energized for testing purposes only, Communication to primary meter is required before ION meter set can be scheduled. POTS line to primary meter delayed by Verizon, WMECO investigated using alternate mode of communicatio, after testing device provided by Customer, the device does not communicate with the ION meter, need Verizon POTS line in service before ION meter is installed. Completion docs have been received and reviewed. ION meter has been set. Witness Test scheduled. Witness Test passed. Approval to operate given. Solar facility is on line.
B105: WMECO | C105: Blandford | D105: 6B133-2012 | E105: 01008 | F105: 2000 | G105: Solar | H105: 19J4 | I105: 2012-02-17 | AO105: 2012-10-30 | AP105: Yes | AQ105: STD | BA105: Cancelled by Cust, had been on hold by Cust. Impact Study Agreement for joint study with 6B135-2012 and 6B136-2012 sent to Cust not executed. Stand alone generation. New construction.
B106: WMECO | C106: Blandford | D106: 6B134-2012 | E106: 01008 | F106: 1000 | G106: Solar | H106: 19J4 | I106: 2012-02-17 | AO106: 2012-10-30 | AP106: Yes | AQ106: STD | BA106: Cancelled by Cust. Not included in joint Impact Study with associated applications. Stand alone generation. New construction.
B107: WMECO | C107: Blandford | D107: 6B135-2012 | E107: 01008 | F107: 1000 | G107: Solar | H107: 19J4 | I107: 2012-02-17 | AO107: 2012-10-30 | AP107: Yes | AQ107: STD | BA107: Cancelled by Cust, had been on hold by Cust. Impact Study Agreement for joint study with 6B133-2012 and 6B136-2012 sent to Cust not executed. Stand alone generation. New construction.
B108: WMECO | C108: Blandford | D108: 6B136-2012 | E108: 01008 | F108: 4000 | G108: Solar | H108: 19J4 | I108: 2012-02-17 | AO108: 2012-10-30 | AP108: Yes | AQ108: STD | BA108: Talked with Customer 9/16/13 re: status of project moving forward, Customer will talk with investors, WMECO to send e-mail with request to Customer of project status. Cust submitted 3 MW and 4 MW options 4/24/13 for separate Impact Study. Impact Study Agreement for joint study with 6B133-2012 and 6B135-2012 sent to Cust not executed. Stand alone generation. New construction. Application has options 1,000 kW or 3,000 kW or 4,000 kW. Highest option listed in Design Capacity. withdrawn
B109: WMECO | C109: Blandford | D109: 6B137-2012 | E109: 01008 | F109: 1000 | G109: Solar | H109: 19J4 | I109: 2012-02-17 | AO109: 2012-10-30 | AP109: Yes | AQ109: STD | BA109: Cancelled by Cust. Not included in joint Impact Study with associated applications. Stand alone generation. New construction.
B110: WMECO | C110: Ludlow | D110: 6S96-2012 | E110: 01056 | F110: 2000 | G110: Solar | H110: 27A5 | I110: 2012-02-23 | J110: 2012-06-29 | K110: =NETWORKDAYS(I110,J110,MALegalHolidays) -> 90 | M110: 90 | AC110: 2012-08-02 | AD110: 2012-10-22 | AE110: =NETWORKDAYS(AC110,AD110,MALegalHolidays) -> 56 | AG110: 56 | AH110: 2012-12-26 | AI110: 2013-03-08 | AJ110: =NETWORKDAYS(AH110,AI110,MALegalHolidays) -> 50 | AK110: 0 | AL110: 50 | AM110: 2013-03-14 | AO110: 2012-09-30 | AP110: Yes | AQ110: STD | AR110: 2013-07-31 | AT110: 2013-07-30 | AX110: 2013-08-02 | AY110: 2013-08-07 | AZ110: 2013-08-26 | BA110: Scoping Mtg. Held. IA executed. Impact Study Complete. Detailed Study Complete. Line construction complete. System is online under Temporary SOG while DTT/substation issue dealt with. Temporary SOG is valid only until transfer trip is commissioned.
B111: WMECO | C111: Ludlow | D111: 6S97-2012 | E111: 01056 | F111: 1000 | G111: Solar | H111: 19S3 | I111: 2012-02-23 | AO111: 2012-09-30 | AP111: Yes | AQ111: STD | BA111: Cancelled by Int Cust. Proceeding with one application at this site. Third party owned. Stand alone generation. New construction.
B112: WMECO | C112: Hatfield | D112: 6A271-2012 | E112: 01038 | F112: 2000 | G112: Solar | H112: 18G6 | I112: 2012-02-24 | J112: 2012-07-19 | K112: =NETWORKDAYS(I112,J112,MALegalHolidays) -> 102 | M112: 102 | AC112: 2012-04-30 | AD112: 2012-11-01 | AE112: =NETWORKDAYS(AC112,AD112,MALegalHolidays) -> 130 | AF112: 0 | AG112: 130 | AH112: 2012-10-10 | AI112: 2012-10-17 | AJ112: =NETWORKDAYS(AH112,AI112,MALegalHolidays) -> 6 | AK112: 0 | AL112: 6 | AM112: 2013-02-13 | AO112: 2012-11-01 | AP112: Yes | AQ112: STD | BA112: Int Cust trying to find Cust and make this 3rd party owned. ISO-NE notification approved. Stand alone generation. New construction. Sent IA to Jen for signature to send to cust for signature 6/10/13. Developer sent letter 6/30/13 requesting temp suspension due to court case. Developer sent in first part of system upgrade monies, They have 120 days to send in the remainder of the monies. withdrawn
B113: WMECO | C113: Pittsfield | D113: 6B139-2012 | E113: 01201 | F113: 2000 | G113: Solar | H113: 30B2 | I113: 2012-02-24 | AO113: 2012-11-06 | AP113: Yes | AQ113: STD | BA113: Talked with Customer 9/16/13 re: status of project moving forward, Customer will talk with investors, WMECO to send e-mail with request to Customer of project status. Cust decided to move forward with separate Impact Study. Impact Study will no longer be joint with 6B140-2012. Stand alone generation. New construction. withdrawn
B114: WMECO | C114: Pittsfield | D114: 6B140-2012 | E114: 01201 | F114: 1000 | G114: Solar | H114: 30B2 | I114: 2012-02-24 | AO114: 2012-11-06 | AP114: Yes | AQ114: STD | BA114: Cancelled by Cust, had been on hold by Cust. Impact Study will no longer be joint with 6B139-2012. Stand alone generation. New construction. Application has three options 500 kW or 750 kW or 1,000 kW. Highest option listed in Design Capacity.
B115: WMECO | C115: Agawam | D115: 6S98-2012 | E115: 01001 | F115: 2000 | G115: Solar | H115: 30A6 | I115: 2012-02-27 | AO115: 2012-11-06 | AP115: Yes | AQ115: STD | BA115: Cancelled by Int Cust. Stand alone generation. New construction.
B116: WMECO | C116: Agawam | D116: 6S99-2012 | E116: 01001 | F116: 2000 | G116: Solar | H116: 30A6 | I116: 2012-02-27 | AO116: 2012-11-06 | AP116: Yes | AQ116: STD | BA116: Cancelled by Int Cust. Stand alone generation. New construction. Application has three options 1,000 kW or 1,500 kW or 2,000 kW. Highest option listed in Design Capacity.
B117: WMECO | C117: Easthampton | D117: 6A273-2012 | E117: 01027 | F117: 11 | G117: Solar | H117: 15A5 | I117: 2012-03-01 | AO117: 2012-03-20 | AP117: TBD | AQ117: EXP | BA117: Cancelled by Cust. Submitted new Simplified Application.
B118: WMECO | C118: Lee | D118: 6B141-2012 | E118: 01238 | F118: 295 | G118: Solar | H118: 16B5 | I118: 2012-03-01 | J118: 2012-06-11 | K118: =NETWORKDAYS(I118,J118,MALegalHolidays) -> 71 | M118: 71 | AM118: 2012-06-14 | AO118: Q2 2012 | AP118: No | AQ118: EXP | AZ118: 2012-08-10 | BA118: On line. Third party owned.
B119: WMECO | C119: Easthampton | D119: 6A275-2012 | E119: 01027 | F119: 26.4 | G119: Solar | H119: 15A3 | I119: 2012-03-02 | J119: 2012-05-11 | K119: =NETWORKDAYS(I119,J119,MALegalHolidays) -> 50 | M119: 50 | AM119: 2012-09-12 | AO119: 2012-04-15 | AP119: No | AQ119: EXP | AZ119: 2012-10-04 | BA119: On line. New construction service.
B120: WMECO | C120: Hadley | D120: 6A277-2012 | E120: 01035 | F120: 1000 | G120: Solar | H120: 17K1 | I120: 2012-03-12 | AO120: 2012-10-01 | AP120: Yes | AQ120: STD | BA120: Cancelled by Cust. Stand alone generation. New construction.
B121: WMECO | C121: Hadley | D121: 6A278-2012 | E121: 01035 | F121: 2500 | G121: Solar | H121: 17K1 | I121: 2012-03-12 | J121: 2012-07-18 | K121: =NETWORKDAYS(I121,J121,MALegalHolidays) -> 90 | M121: 90 | AC121: 2012-08-29 | AD121: 2013-06-07 | AE121: =NETWORKDAYS(AC121,AD121,MALegalHolidays) -> 192 | AF121: 0 | AG121: 192 | AH121: 2013-05-31 | AI121: 2013-07-23 | AJ121: =NETWORKDAYS(AH121,AI121,MALegalHolidays) -> 36 | AK121: 18 | AL121: 18 | AM121: 2013-07-30 | AO121: 2012-10-12 | AP121: Yes | AQ121: STD | AX121: 2014-06-09 | AY121: 2014-06-16 | AZ121: 2014-07-02 | BA121: (impact study 8/7/12) Cust decided on new option. New Impact Study (3/4/13) required. Stand alone generation. New construction. Application has two options 1,500 kW or 2,500 kW. Highest option listed in Design Capacity. Sent Detailed Study to Customer, rcvd signed detailed study agrement 5/16/13, waiting for first check. Check rcvd for Detailed Study 6/5/13. Site visit to design service 6/18/13. Customer needs to decide where to interconnect service. Cust decided on new intconnect point and sent new site plan 7/5/13. Tech to write work order. Work orders completed 7/19/13, sent cust %10 est for circuit upgrades 7/23/13. Rcvd Scheule Z for Town of Ashfield, Project is third party owned as of 7/23/13, waiting for revised app with Town of Ashfield info. Rcvd revised Sched Z 7/23/13, rcvd revised app 7/24/13. Sent draft IAs for signature 7/30/13. Received signd IA. Call w/ Cust ISD by 11/18/13 providing all upgrade monies & insurance recvd by WMECO by 8/5/13. System upgrade monies received, construction scheduled. Construction of interconnection service is compelted, Customer is energized for testing purposes only, Communication to primary meter is required before ION meter set can be scheduled. Completion docs have been received and reviewed. ION meter has been set. Witness Test scheduled. Witness Test passed. Waiting on Verizon to finish the two FDDA lines. Verizon finished FDDA lines, tranfer trip finished and commissioned and in service. Project is on line.
B122: WMECO | C122: Longmeadow | D122: 6S102-2012 | E122: 01106 | F122: 45.6 | G122: Solar | H122: 22H11 | I122: 2012-03-14 | J122: 2012-05-03 | K122: =NETWORKDAYS(I122,J122,MALegalHolidays) -> 36 | M122: =IF(K122>0,K122-L122," ") -> 36 | R122: =IF(P122>0,P122-Q122," ") ->  | W122: =IF(U122>0,U122-V122," ") ->  | AB122: =IF(Z122>0,Z122-AA122," ") ->  | AG122: =IF(AE122>0,AE122-AF122," ") ->  | AL122: =IF(AJ122>0,AJ122-AK122," ") ->  | AM122: 2012-06-11 | AO122: 2012-07-01 | AP122: No | AQ122: EXP | AW122: =IF(AU122>0,AU122-AV122," ") ->  | AZ122: 2012-08-15 | BA122: On line. Third party owned.
B123: WMECO | C123: Lenoxdale | D123: 6B142-2012 | E123: 01242 | F123: 780 | G123: Solar | H123: 17G3 | I123: 2012-03-19 | J123: 2013-03-27 | K123: =NETWORKDAYS(I123,J123,MALegalHolidays) -> 256 | M123: 256 | Q123: 0 | AC123: 2012-12-17 | AD123: 2013-07-08 | AE123: =NETWORKDAYS(AC123,AD123,MALegalHolidays) -> 138 | AF123: 29 | AG123: 109 | AH123: 2013-05-10 | AI123: 2013-06-07 | AJ123: =NETWORKDAYS(AH123,AI123,MALegalHolidays) -> 20 | AK123: 0 | AL123: 20 | AM123: 2013-06-03 | AO123: 2012-05-01 | AP123: Yes | AQ123: STD | BA123: Int Cust changed inverters and size on 021413, almost done w/ report continued w/ original study for final report, cust submitted new option 021913 revised study, waited for updated project info. Detailed Study required. Signed Detailed Study Agreement and check rcvd. Third party owned. Stand alone generation or Cust to upgrade their service. Application has three options 1,000 kW or 885 kW or 780 kW. Customer's current design option listed in Design Capacity. Sent plus/minus 10% and draft IA to Int cust 5/29/13. Sent Exhibit G & H for signatures 6/6/13. Rvcd signed Exhibit H 6/22/13. Sent phone line specs to customer 6/26/13. Conf call w/ customer 7/29/13 to discuss ISD dates and requirements for those dates. Liability insurance received. Sent two revised construction schedules, waiting for Customer to send in system upgrade monies by 8/30/13. Per conf call with Interconnecting Customer on 9/9/13, If the checks and new in service dates are provided before or during our next conference call which is scheduled for 9/23/13, we will be able to discuss the next steps. Until these are provided, we will not prepare another tentative construction schedule. withdrawn Interconnection Customer stated that the ball is in their court and that WMECO will not be held responsible for any delay for construction at this time. It is the understanding of both Interconnection Customer and WMECO that completed construction for this project is not anticipated in 2013. Int Customer in liquidation. Sent notice letter, no response. Withdrawn 6/27/14. Int Cust owes WMECO money.
B124: WMECO | C124: Lee | D124: 6B143-2012 | E124: 01238 | F124: 500 | G124: Solar | H124: 17G7 | I124: 2012-03-19 | J124: 2013-03-27 | K124: =NETWORKDAYS(I124,J124,MALegalHolidays) -> 256 | M124: 256 | AC124: 2013-01-09 | AD124: 2013-07-08 | AE124: =NETWORKDAYS(AC124,AD124,MALegalHolidays) -> 123 | AF124: 29 | AG124: 94 | AH124: 2013-05-10 | AI124: 2013-06-07 | AJ124: =NETWORKDAYS(AH124,AI124,MALegalHolidays) -> 20 | AK124: 0 | AL124: 20 | AM124: 2013-06-03 | AO124: 2012-05-12 | AP124: Yes | AQ124: STD | BA124: Int Cust changed inverters,021413 almost done w/ report continued w/ original study for final report, cust submitted new option 021913, revised study, waited for updated project info. Detailed Study required. Signed detailed Study Agreement and check rcvd. Third party owned. Stand alone generation. New construction. Sent plus/minus 10% and draft IA to Int cust. Sent Exhibit G & H for signatures 6/6/13. Conf call w/ customer 7/29/13 to discuss ISD dates and requirements for those dates. Liability insurance received. Exhibit H from Town of Lee received. Sent two revised construction schedules, waiting for Customer to send in system upgrade monies by 8/30/13. Per conf call with Interconnecting Customer on 9/9/13, If the checks and new in service dates are provided before or during our next conference call which is scheduled for 9/23/13, we will be able to discuss the next steps. Until these are provided, we will not prepare another tentative construction schedule. withdrawn Interconnection Customer stated that the ball is in their court and that WMECO will not be held responsible for any delay for construction at this time. It is the understanding of both Interconnection Customer and WMECO that completed construction for this project is not anticipated in 2013. Int Customer in liquidation. Sent notice letter, no response. Withdrawn 6/27/14. Int Cust owes WMECO money.
B125: WMECO | C125: Lee | D125: 6B144-2012 | E125: 01238 | F125: 750 | G125: Solar | H125: 16B5 | I125: 2012-03-19 | J125: 2013-03-27 | K125: =NETWORKDAYS(I125,J125,MALegalHolidays) -> 256 | M125: 256 | AC125: 2013-01-09 | AD125: 2013-07-08 | AE125: =NETWORKDAYS(AC125,AD125,MALegalHolidays) -> 123 | AF125: 24 | AG125: 99 | AH125: 2013-06-04 | AI125: 2013-06-07 | AJ125: =NETWORKDAYS(AH125,AI125,MALegalHolidays) -> 4 | AK125: 0 | AL125: 4 | AM125: 2013-06-26 | AO125: 2012-05-01 | AP125: Yes | AQ125: STD | BA125: Impact Study joint with 6B145-2012. Int Cust changed inverters, 021413, revised study, waited for updated project info. Detailed Study required. Third party owned. May be new construction service. Application has two options 1,000 kW or 750 kW. Customer's current design option listed in Design Capacity. Received signed Detail Study agreement 052413, waiting for first check. Plus/minus 10% sent to cust 6/7/13. Sent Exhibit G & H for signature 6/28/13. Conf call w/ customer 7/29/13 to discuss ISD dates and requirements for those dates. Liability insurance received. Exhibit H from Town of Lee received. Sent two revised construction schedules, waiting for Customer to send in system upgrade monies by 8/30/13. Per conf call with Interconnecting Customer on 9/9/13, If the checks and new in service dates are provided before or during our next conference call which is scheduled for 9/23/13, we will be able to discuss the next steps. Until these are provided, we will not prepare another tentative construction schedule. withdrawn Interconnection Customer stated that the ball is in their court and that WMECO will not be held responsible for any delay for construction at this time. It is the understanding of both Interconnection Customer and WMECO that completed construction for this project is not anticipated in 2013. Int Customer in liquidation. Sent notice letter, no response. Withdrawn 6/27/14. Int Cust owes WMECO money.
B126: WMECO | C126: Lee | D126: 6B145-2012 | E126: 01238 | F126: 750 | G126: Solar | H126: 16B5 | I126: 2012-03-21 | J126: 2013-03-27 | K126: =NETWORKDAYS(I126,J126,MALegalHolidays) -> 254 | M126: 254 | AC126: 2013-01-09 | AD126: 2013-07-08 | AE126: =NETWORKDAYS(AC126,AD126,MALegalHolidays) -> 123 | AF126: 24 | AG126: 99 | AH126: 2013-06-04 | AI126: 2013-06-07 | AJ126: =NETWORKDAYS(AH126,AI126,MALegalHolidays) -> 4 | AK126: 0 | AL126: 4 | AM126: 2013-06-26 | AO126: 2012-05-01 | AP126: Yes | AQ126: STD | BA126: Impact Study required joint with 6B144-2012. Int Cust changed inverters 021413, revised study, waited for updated project info . Detailed Study required. Third party owned. Stand alone generation. New construction. Application has two options 1,000 kW or 750 kW. Customer's current design option listed in Design Capacity. Received signed Detail Study agreement 052413, waiting for first check. Plus/minus 10% sent to cust 6/7/13. Sent Exhibit G & H for signature 6/28/13. Conf call w/ customer 7/29/13 to discuss ISD dates and requirements for those dates. Liability insurance received. Exhibit H from Town of Lee received. Sent two revised construction schedules, waiting for Customer to send in system upgrade monies by 8/30/13. Per conf call with Interconnecting Customer on 9/9/13, If the checks and new in service dates are provided before or during our next conference call which is scheduled for 9/23/13, we will be able to discuss the next steps. Until these are provided, we will not prepare another tentative construction schedule. withdrawn Interconnection Customer stated that the ball is in their court and that WMECO will not be held responsible for any delay for construction at this time. It is the understanding of both Interconnection Customer and WMECO that completed construction for this project is not anticipated in 2013. Int Customer in liquidation. Sent notice letter, no response. Withdrawn 6/27/14. Int Customer owes WMECO money.
B127: WMECO | C127: Lee | D127: 6B146-2012 | E127: 01238 | F127: 1000 | G127: Solar | H127: 16B5 | I127: 2012-03-21 | AO127: 2012-05-01 | AP127: Yes | AQ127: STD | BA127: Cancelled by Int Cust. Will be third party owned. Stand alone generation. New construction.
B128: WMECO | C128: Lee | D128: 6B147-2012 | E128: 01238 | F128: 1000 | G128: Solar | H128: 16B5 | I128: 2012-03-21 | AO128: 2012-05-01 | AP128: Yes | AQ128: STD | BA128: Cancelled by Int Cust. Will be third party owned. Stand alone generation. New construction.
B129: WMECO | C129: Lee | D129: 6B148-2012 | E129: 01238 | F129: 1000 | G129: Solar | H129: 16B5 | I129: 2012-03-21 | AO129: 2012-05-01 | AP129: Yes | AQ129: STD | BA129: Cancelled by Int Cust. Will be third party owned. Stand alone generation. New construction.
B130: WMECO | C130: Lee | D130: 6B149-2012 | E130: 01238 | F130: 1000 | G130: Solar | H130: 16B5 | I130: 2012-03-21 | AO130: 2012-05-01 | AP130: Yes | AQ130: STD | BA130: Cancelled by Int Cust. Will be third party owned. Stand alone generation. New construction.
B131: WMECO | C131: Lee | D131: 6B150-2012 | E131: 01238 | F131: 1000 | G131: Solar | H131: 16B5 | I131: 2012-03-21 | AO131: 2012-05-01 | AP131: Yes | AQ131: STD | BA131: Cancelled by Int Cust. Will be third party owned. Stand alone generation. New construction.
B132: WMECO | C132: Amherst | D132: 6A286-2012 | E132: 01002 | F132: 3750 | G132: Solar | H132: 17K2 | I132: 2012-03-22 | AO132: 2012-10-01 | AP132: Yes | AQ132: STD | BA132: Purge letter sent 5/20/13. On hold by Int Cust. Held Scoping Meeting. Impact Study required. Int Cust may submit option(s). Third party owned. Stand alone generation. New construction. Withdrawn
B133: WMECO | C133: Whately | D133: 6A287-2012 | E133: 01373 | F133: 1000 | G133: Solar | H133: 18G8 | I133: 2012-03-22 | AO133: 2012-10-01 | AP133: Yes | AQ133: STD | BA133: Cancelled by Cust who submitted new application. Stand alone generation. New construction.
B134: WMECO | C134: Middlefield | D134: 6B156-2012 | E134: 01243 | F134: 12.04 | G134: Solar | H134: 18C2 | I134: 2012-03-29 | J134: 2012-06-18 | K134: =NETWORKDAYS(I134,J134,MALegalHolidays) -> 56 | M134: 56 | AM134: 2012-07-17 | AO134: 2012-04-24 | AP134: No | AQ134: EXP | AY134: 2012-09-13 | AZ134: 2012-09-13 | BA134: on line
B135: WMECO | C135: Whately | D135: 6A289-2012 | E135: 01373 | F135: 1000 | G135: Solar | H135: 18G8 | I135: 2012-04-03 | AO135: 2012-01-01 | AP135: Yes | AQ135: STD | BA135: Purge letter sent 5/20/13. Withdrawn 7/8/13 due to no response. On hold by Int Cust. Held Scoping Meeting. Impact Study required. Int Cust deciding if will move forward. Third party owned. Stand alone generation. New construction.
B136: WMECO | C136: Hatfield | D136: 6A290-2012 | E136: 01038 | F136: 44.4 | G136: Solar | H136: 18G5 | I136: 2012-04-06 | J136: 2012-06-08 | K136: =NETWORKDAYS(I136,J136,MALegalHolidays) -> 44 | M136: 44 | AM136: 2012-06-29 | AO136: 2012-04-30 | AP136: No | AQ136: EXP | AZ136: 2012-07-27 | BA136: on line
B137: WMECO | C137: Hadley | D137: 6A291-2012 | E137: 01035 | F137: 1000 | G137: Solar | H137: 17K1 | I137: 2012-04-06 | J137: 2012-06-29 | K137: =NETWORKDAYS(I137,J137,MALegalHolidays) -> 59 | M137: 59 | AC137: 2012-08-29 | AE137: =NETWORKDAYS(AC137,AD137,MALegalHolidays) -> -29387 | AO137: 2012-10-01 | AP137: Yes | AQ137: STD | BA137: Int Cust cancelled project, had been on hold. Joint Impact Study with 6A278-2012 in progress but on hold by Int Cust. Stand alone generation. New construction.
B138: WMECO | C138: Blandford | D138: 6B159-2012 | E138: 01008 | F138: 125 | G138: Solar | H138: 19J4 | I138: 2012-04-09 | AO138: 2012-05-25 | AP138: Yes | AQ138: STD | BA138: Impact Study estimate sent to customer. Cust submitted two options. On hold by Cust. Third party owned. Either new construction or cust to upgrade service. Third party owned. Application has three options 50 kW or 100 kW or 125 kW. Highest option listed in Design Capacity. cancelled
B139: WMECO | C139: Hatfield | D139: 6A294-2012 | E139: 01088 | F139: 67.5 | G139: Solar | H139: 18G5 | I139: 2012-04-10 | J139: 2012-10-09 | K139: =NETWORKDAYS(I139,J139,MALegalHolidays) -> 126 | M139: 126 | AM139: 2012-10-10 | AO139: 2012-10-31 | AP139: No | AQ139: EXP | AZ139: 2012-11-13 | BA139: On line. Third party owned. Will not export.
B140: WMECO | C140: Chesterfield | D140: 6F316-2012 | E140: 01012 | F140: 60 | G140: Solar | H140: 18K3 | I140: 2012-04-11 | J140: 2012-05-18 | K140: =NETWORKDAYS(I140,J140,MALegalHolidays) -> 27 | M140: 27 | S140: 2012-07-12 | U140: =NETWORKDAYS(S140,T140,MALegalHolidays) -> -29353 | AM140: 2012-05-31 | AO140: 2012-05-01 | AP140: No | AQ140: EXP | AZ140: 2012-09-25 | BA140: on line
B141: WMECO | C141: Turners Falls | D141: 6F319-2012 | E141: 01376 | F141: 8.6 | G141: Solar | H141: 21C2 | I141: 2012-04-23 | J141: 2012-07-18 | K141: =NETWORKDAYS(I141,J141,MALegalHolidays) -> 61 | M141: 61 | AM141: 2012-07-25 | AO141: 2012-04-30 | AP141: No | AQ141: EXP | AZ141: 2012-09-18 | BA141: On line. Two phase system on three phase service.
B142: WMECO | C142: Cummington | D142: 6F322-2012 | E142: 01026 | F142: 12.255 | G142: Solar | H142: 18K3 | I142: 2012-05-14 | AO142: 2012-05-25 | AP142: TBD | AQ142: EXP | BA142: Purge letter sent 5/20/13. Withdrawn 7/8/13 due to no response. Held Scoping Meeting. Waiting for info.
B143: WMECO | C143: Hadley | D143: 6A312-2012 | E143: 01035 | F143: 95 | G143: Solar | H143: 17K6 | I143: 2012-05-17 | J143: 2012-07-05 | K143: =NETWORKDAYS(I143,J143,MALegalHolidays) -> 34 | M143: 34 | AM143: 2012-09-25 | AO143: 2012-07-13 | AP143: No | AQ143: EXP | AX143: 2012-12-27 | AY143: 2012-12-28 | AZ143: 2012-12-28 | BA143: on line
B144: WMECO | C144: West Springfield | D144: 6S112-2012 | E144: 01089 | F144: 333 | G144: Solar | H144: 21N8 | I144: 2012-05-18 | J144: 2012-08-15 | K144: =NETWORKDAYS(I144,J144,MALegalHolidays) -> 62 | M144: 62 | AM144: 2012-08-17 | AO144: 2012-10-29 | AP144: No | AQ144: EXP | BA144: Int Cust delayed construction to 2013. Need completion documents to schedule Witness Test. Third party owned. Have heard nothing from cust as of 8/21/13. Waiting for Customer. Custoemr may be cancelling this project. Cancelled
B145: WMECO | C145: Turners Falls | D145: 6F325-2012 | E145: 01376 | F145: 500 | G145: Solar | H145: 21C3 | I145: 2012-05-29 | AO145: 2012-11-01 | AP145: Yes | AQ145: EXP | BA145: Purge letter sent 5/20/13. Impact Study Agreement out for signature. Need signed agreement and check for initial payment. Third party owned. Stand alone generation. New construction. Withdrawn
B146: WMECO | C146: Easthampton | D146: 6A316-2012 | E146: 01027 | F146: 298 | G146: Solar | H146: 15A3 | I146: 2012-05-30 | J146: 2013-08-27 | K146: =NETWORKDAYS(I146,J146,MALegalHolidays) -> 311 | M146: 311 | N146: 2013-08-28 | O146: 2013-12-10 | P146: =NETWORKDAYS(N146,O146,MALegalHolidays) -> 70 | Q146: 58 | R146: 12 | S146: 2013-12-10 | U146: =NETWORKDAYS(S146,T146,MALegalHolidays) -> -29703 | V146: 52 | AO146: 2012-08-10 | AQ146: EXP | BA146: New option (option 2) submitted. Application Complete. In Supplemental Review. Held Meeting. Application cancelled per Interconnecting Customer 4/28/14
B147: WMECO | C147: Easthampton | D147: 6A317-2012 | E147: 01027 | F147: 120 | G147: Solar | H147: 15A2 | I147: 2012-05-30 | J147: 2013-08-06 | K147: =NETWORKDAYS(I147,J147,MALegalHolidays) -> 296 | L147: 297 | M147: -1 | N147: 2013-08-07 | O147: 2013-09-11 | P147: =NETWORKDAYS(N147,O147,MALegalHolidays) -> 25 | Q147: 5 | R147: 20 | S147: 2014-04-29 | T147: 2014-05-20 | U147: =NETWORKDAYS(S147,T147,MALegalHolidays) -> 16 | V147: 0 | W147: 16 | AM147: 2014-07-31 | AO147: 2012-08-10 | AP147: TBD | AQ147: EXP | AX147: 2015-06-26 | AY147: 2015-06-26 | AZ147: 2015-07-10 | BA147: New option (option 2) submitted. Application Complete. Supplemental Review complete. Received signed Exhibit H. Received signed Exhibit G. Received CoC. Compliance docs received. Witness Test performed. Online
B148: WMECO | C148: Deerfield | D148: 6F328-2012 | E148: 01342 | F148: 19.99 | G148: Solar | H148: 22B1 | I148: 2012-06-04 | J148: 2012-08-14 | K148: =NETWORKDAYS(I148,J148,MALegalHolidays) -> 51 | M148: 51 | AM148: 2012-08-29 | AO148: 2012-09-01 | AP148: No | AQ148: EXP | AX148: 2012-11-01 | AY148: 2012-11-07 | AZ148: 2012-11-08 | BA148: on line
B149: WMECO | C149: Springfield | D149: 6S115-2012 | E149: 01104 | F149: 500 | G149: Solar | H149: 5J15 | I149: 2012-06-04 | J149: 2012-10-18 | K149: =NETWORKDAYS(I149,J149,MALegalHolidays) -> 96 | M149: 96 | AM149: 2013-02-21 | AO149: Q4 2012 | AP149: No | AQ149: EXP | AX149: 2013-05-20 | AY149: 2013-05-21 | AZ149: 2013-05-30 | BA149: Third party owned. On line.
B150: WMECO | C150: Hatfield | D150: 6A320-2012 | E150: 01038 | F150: 1000 | G150: Solar | H150: 18G6 | I150: 2012-06-08 | AO150: 2012-06-01 | AP150: Yes | AQ150: STD | BA150: Sent purge letter 5/20/13. Int cust cancelled 6/12/13. Held Scoping Meeting. On hold by Int Cust. See 6A321-2012 and 6A322-2012. Stand alone generation. New construction.
B151: WMECO | C151: Hatfield | D151: 6A321-2012 | E151: 01038 | F151: 1000 | G151: Solar | H151: 18G6 | I151: 2012-06-08 | AO151: 2012-06-01 | AP151: Yes | AQ151: STD | BA151: Sent purge letter 5/20/13. Int cust cancelled 6/12/13. Held Scoping meeting. Was on hold by Int Cust. See 6A320-2012 and 6A322-2012. Stand alone generation. New construction.
B152: WMECO | C152: Hatfield | D152: 6A322-2012 | E152: 01038 | F152: 1000 | G152: Solar | H152: 18G6 | I152: 2012-06-08 | AO152: 2012-06-01 | AP152: Yes | AQ152: STD | BA152: Sent purge letter 5/20/13. Int cust cancelled 6/12/13. Held Scoping Meeting. On hold by Int Cust. See 6A320-2012 and 6A321-2012. Stand alone generation. New construction.
B153: WMECO | C153: Hinsdale | D153: 6B169-2012 | E153: 01235 | F153: 23.995 | G153: Solar | H153: 18C2 | I153: 2012-06-27 | J153: 2012-08-03 | K153: =NETWORKDAYS(I153,J153,MALegalHolidays) -> 27 | M153: 27 | AM153: 2012-08-10 | AO153: 2012-08-01 | AP153: Yes | AQ153: EXP | AY153: 2012-09-28 | AZ153: 2012-09-28 | BA153: on line
B154: WMECO | C154: Shelburne Falls | D154: 6F338-2012 | E154: 01370 | F154: 82 | G154: Solar | H154: 29R1 | I154: 2012-06-28 | J154: 2012-10-07 | K154: =NETWORKDAYS(I154,J154,MALegalHolidays) -> 70 | M154: 70 | AM154: 2012-10-22 | AO154: 2012-09-01 | AP154: No | AQ154: EXP | AX154: 2012-11-28 | AY154: 2012-12-05 | AZ154: 2012-12-06 | BA154: on line
B155: WMECO | C155: Easthampton | D155: 6A332-2012 | E155: 01027 | F155: 14 | G155: Solar | H155: 15A5 | I155: 2012-07-13 | J155: 2012-11-02 | K155: =NETWORKDAYS(I155,J155,MALegalHolidays) -> 79 | M155: 79 | N155: 2012-11-05 | O155: 2012-11-16 | P155: =NETWORKDAYS(N155,O155,MALegalHolidays) -> 9 | Q155: 0 | R155: 9 | AM155: 2012-11-20 | AO155: 2012-09-01 | AP155: No | AQ155: EXP | AX155: 2012-12-14 | AY155: 2012-12-20 | AZ155: 2012-12-20 | BA155: on line
B156: WMECO | C156: Springfield | D156: 6S123-2012 | E156: 01104 | F156: 142 | G156: Solar | H156: 5J9 | I156: 2012-07-16 | J156: 2012-10-23 | K156: =NETWORKDAYS(I156,J156,MALegalHolidays) -> 70 | M156: 70 | AM156: 2013-03-13 | AO156: not supplied | AP156: No | AQ156: EXP | AX156: 2012-04-10 | AY156: 2013-04-11 | AZ156: 2013-04-23 | BA156: On line. Third party owned.
B157: WMECO | C157: Springfield | D157: 6S124-2012 | E157: 01104 | F157: 266 | G157: Solar | H157: 5J18 | I157: 2012-07-16 | J157: 2012-08-30 | K157: =NETWORKDAYS(I157,J157,MALegalHolidays) -> 34 | M157: 34 | AM157: 2013-04-16 | AO157: 2012-10-30 | AP157: No | AQ157: EXP | AX157: 2013-05-30 | AY157: 2013-05-31 | AZ157: 2013-05-31 | BA157: New construction service. On line
B158: WMECO | C158: Southwick | D158: 6S126-2012 | E158: 01077 | F158: 1500 | G158: Solar | H158: 29A1 | I158: 2012-07-17 | J158: 2012-10-18 | K158: =NETWORKDAYS(I158,J158,MALegalHolidays) -> 66 | L158: 65 | M158: 1 | X158: 2012-10-19 | Y158: 2013-03-05 | Z158: =NETWORKDAYS(X158,Y158,MALegalHolidays) -> 91 | AA158: 89 | AB158: 2 | AC158: 2013-04-16 | AD158: 2013-09-20 | AE158: =NETWORKDAYS(AC158,AD158,MALegalHolidays) -> 110 | AF158: 0 | AG158: 110 | AH158: 2014-03-31 | AI158: 2014-08-20 | AJ158: =NETWORKDAYS(AH158,AI158,MALegalHolidays) -> 99 | AK158: 99 | AL158: 0 | AM158: 2013-12-16 | AO158: Q4 2012 | AP158: Yes | AQ158: STD | BA158: Impact Study in progress. Cust to submit info. Third party owned. Stand alone generation. New construction. Sent ISO docs to Customer. Waiting for Customer to sned ISO docs. Waiting for final Impact Study report from vendor. Received final report from vendor, sent report to customer 9/20/13. Detailed Stduy Agreement sent to customer. Talked to Carter Wilde-Widling on 11/26/13, the Customer is waiting for the SREC II program results in order to mmove forward with the project. It will not be on line before June 2014 and they may change their design to offset customer load. Received signed Detailed Study Agreement 12/9/13 as well as request for an extension for the Detailed Study phase as the Customer cannot move forward until MA SREC-II is in place. Extension has lapsed, Customer is moving forward with the detailed Study, proposed dates for site visit, Customer is not ready, will notify WMECO when ready, project is on Customer hold. Held site visit, after site visit Customer informed WMECO PM that the adjoining resident objected to overhead poles, PM got information on pad mounted metering, however WMECO does not use padmounted recloser. The Customer informed WMECO that the overhead equipment is no longer an issue. The technician is writing the work order. Work order has been written, Customer has Early ISA from December 2013, sent new Exhibit G & H dated August 20, 2014, Exhibit G included plu/minus 10% and construction schedule. Customer wants to send construction monies ASAP. Waiting for Customer to send system Modifications monies. Verizon has not yet set poles. cancelled
B159: WMECO | C159: Amherst | D159: 6A336-2012 | E159: 01002 | F159: 11.4 | G159: Solar | H159: 19B16 | I159: 2012-07-24 | J159: 2012-09-28 | K159: =NETWORKDAYS(I159,J159,MALegalHolidays) -> 48 | M159: 48 | AM159: 2012-10-11 | AO159: 2012-08-01 | AP159: No | AQ159: EXP | AX159: 2012-11-15 | AY159: 2012-11-16 | AZ159: 2012-11-16 | BA159: on line
B160: WMECO | C160: Hatfield | D160: 6A339-2012 | E160: 01038 | F160: 175 | G160: Solar | H160: 18G5 | I160: 2012-07-27 | J160: 2012-08-31 | K160: =NETWORKDAYS(I160,J160,MALegalHolidays) -> 26 | M160: 26 | AM160: 2012-10-09 | AO160: not supplied | AP160: No | AQ160: EXP | AX160: 2012-11-29 | AY160: 2012-12-03 | AZ160: 2012-12-01 | BA160: on line
B161: WMECO | C161: Amherst | D161: 6A341-2012 | E161: 01002 | F161: 34.2 | G161: Solar | H161: 17K2 | I161: 2012-07-30 | J161: 2012-11-29 | K161: =NETWORKDAYS(I161,J161,MALegalHolidays) -> 84 | M161: 84 | N161: 2012-11-30 | O161: 2012-12-04 | P161: =NETWORKDAYS(N161,O161,MALegalHolidays) -> 3 | Q161: 0 | R161: 3 | AM161: 2012-12-05 | AO161: 2012-09-12 | AP161: No | AQ161: EXP | AX161: 2012-12-27 | AY161: 2012-12-28 | AZ161: 2012-12-31 | BA161: on line
B162: WMECO | C162: Amherst | D162: 6A343-2012 | E162: 01027 | F162: 57 | G162: Solar | H162: 17K8 | I162: 2012-07-31 | J162: 2012-12-10 | K162: =NETWORKDAYS(I162,J162,MALegalHolidays) -> 90 | M162: 90 | N162: 2012-12-11 | O162: 2013-01-08 | P162: =NETWORKDAYS(N162,O162,MALegalHolidays) -> 19 | Q162: 0 | R162: 19 | AM162: 2013-01-10 | AO162: 2012-09-01 | AP162: No | AQ162: EXP | AX162: 2013-02-26 | AY162: 2013-02-28 | AZ162: 2013-02-28 | BA162: on line
B163: WMECO | C163: Amherst | D163: 6A344-2012 | E163: 01002 | F163: 29.985 | G163: Solar | H163: 17K7 | I163: 2012-08-01 | J163: 2012-10-03 | K163: =NETWORKDAYS(I163,J163,MALegalHolidays) -> 45 | M163: 45 | AM163: 2012-11-20 | AO163: not supplied | AP163: No | AQ163: EXP | AX163: 2012-12-18 | AY163: 2012-12-19 | AZ163: 2012-12-19 | BA163: on line
B164: WMECO | C164: Greenfield | D164: 6F354-2012 | E164: 01301 | F164: 135 | G164: Solar | H164: 21C1 | I164: 2012-08-17 | J164: 2012-10-29 | K164: =NETWORKDAYS(I164,J164,MALegalHolidays) -> 50 | M164: 50 | AM164: 2012-11-20 | AO164: not supplied | AP164: No | AQ164: EXP | AX164: 2012-12-10 | AY164: 2012-12-12 | AZ164: 2012-12-12 | BA164: on line
B165: WMECO | C165: Gill | D165: 6F355-2012 | E165: 01354 | F165: 1250 | G165: Diesel | H165: 21B8 | I165: 2012-08-20 | J165: 2012-09-12 | K165: =NETWORKDAYS(I165,J165,MALegalHolidays) -> 17 | M165: 17 | AC165: 2012-12-14 | AD165: 2013-08-21 | AE165: =NETWORKDAYS(AC165,AD165,MALegalHolidays) -> 171 | AF165: 17 | AG165: 154 | AM165: 2013-12-12 | AO165: 2012-11-25 | AP165: TBD | AQ165: STD | AX165: 2017-08-10 | AY165: 2017-05-19 | AZ165: 2017-08-21 | BA165: Protection review in progress. Will not export. Closed transition emergency generator. ISO notification not required. Waiting for Customer. No longer waiting for customer, need protection review of information that customer sent. Review finished need to send IA. Waiting for information from Customer. Received signed Exhibit G & H. Waiting for relay test results from Customer.
B166: WMECO | C166: Springfield | D166: 6S136-2012 | E166: 01119 | F166: 333 | G166: Solar | H166: 20A33 | I166: 2012-08-20 | J166: 2012-10-05 | K166: =NETWORKDAYS(I166,J166,MALegalHolidays) -> 34 | M166: 34 | AM166: 2012-12-21 | AO166: 2012-11-01 | AP166: No | AQ166: EXP | AX166: 2012-12-27 | AY166: 2012-12-31 | AZ166: 2012-12-31 | BA166: On line. Third party owned.
B167: WMECO | C167: Tolland | D167: 6B180-2012 | E167: 01034 | F167: 136.8 | G167: Solar | H167: 19J4 | I167: 2012-08-22 | AO167: 2013-01-01 | AP167: Yes | AQ167: STD | BA167: Purge letter sent 5/20/13. Withdrawn 7/8/13 due to no response. Waiting for Cust to submit info. New Construction.
B168: WMECO | C168: Amherst | D168: 6A347-2012 | E168: 01002 | F168: 14 | G168: Solar | H168: 17K8 | I168: 2012-08-24 | J168: 2012-11-26 | K168: =NETWORKDAYS(I168,J168,MALegalHolidays) -> 62 | M168: 62 | N168: 2012-11-27 | O168: 2012-11-29 | P168: =NETWORKDAYS(N168,O168,MALegalHolidays) -> 3 | Q168: 0 | R168: 3 | AM168: 2012-11-30 | AO168: 2012-12-01 | AP168: Yes | AQ168: EXP | AS168: 2012-12-06 | AT168: 2012-12-06 | AU168: =NETWORKDAYS(AS168,AT168,MALegalHolidays) -> 1 | AV168: 0 | AW168: 1 | AX168: 2012-12-14 | AY168: 2012-12-17 | AZ168: 2012-12-17 | BA168: on line
B169: WMECO | C169: Leyden | D169: 6F358-2012 | E169: 01337 | F169: 38 | G169: Solar | H169: 22B7 | I169: 2012-08-28 | J169: 2012-09-07 | K169: =NETWORKDAYS(I169,J169,MALegalHolidays) -> 8 | M169: 8 | AM169: 2012-11-06 | AO169: 2012-12-01 | AP169: Yes | AQ169: EXP | AX169: 2013-05-17 | AY169: 2013-05-22 | AZ169: 2013-05-22 | BA169: on line
B170: WMECO | C170: Easthampton | D170: 6A349-2012 | E170: 01027 | F170: 83 | G170: Solar | H170: 15A2 | I170: 2012-08-29 | J170: 2012-09-26 | K170: =NETWORKDAYS(I170,J170,MALegalHolidays) -> 20 | M170: 20 | AM170: 2013-01-16 | AO170: 2012-11-12 | AP170: No | AQ170: EXP | AX170: 2013-03-29 | AY170: 2013-04-02 | AZ170: 2013-04-02 | BA170: On line. New construction service.
B171: WMECO | C171: Greenfield | D171: 6F360-2012 | E171: 01301 | F171: 3.4 | G171: Solar | H171: 28WNW_1 | I171: 2012-08-29 | J171: 2012-09-20 | K171: =NETWORKDAYS(I171,J171,MALegalHolidays) -> 16 | M171: 16 | AM171: 2013-01-15 | AO171: 2012-09-30 | AP171: No | AQ171: STD | AX171: 2013-04-22 | AY171: 2013-04-23 | AZ171: 2013-04-23 | BA171: on line
B172: WMECO | C172: Hancock | D172: 6B183-2012 | E172: 01237 | F172: 6000 | G172: Solar | H172: 30B7 | I172: 2012-09-05 | AO172: Q3 2013 | AP172: Yes | AQ172: STD | BA172: Cust sent purge letter 5/20/13. 7/2/13 Cust said will continue. Int Cust submitted new option. Third party owned. Stand alone generation. New Construction. Applicationm has two options 1,500 kW or 6,000 kW. Highest option listed in Design Capacity. withdrawn
B173: WMECO | C173: Hancock | D173: 6B184-2012 | E173: 01237 | F173: 1500 | G173: Solar | H173: 30B7 | I173: 2012-09-05 | AO173: Q3 2013 | AP173: Yes | AQ173: STD | BA173: Cust sent purge letter 5/20/13. 7/2/13 Cust said will continue. Third party owned. Stand alone generation. New Construction. Project hold per Int Cust due to net metering laws. Submitted option to related project. Withdrawn
B174: WMECO | C174: Hancock | D174: 6B185-2012 | E174: 01237 | F174: 1500 | G174: Solar | H174: 30B7 | I174: 2012-09-05 | AO174: Q3 2013 | AP174: Yes | AQ174: STD | BA174: Cust sent purge letter 5/20/13. 7/2/13 Cust said will continue. Third party owned. Stand alone generation. New Construction. Project hold per Int Cust due to net metering laws. Submitted option to related project. withdrawn
B175: WMECO | C175: Deerfield | D175: 6F368-2012 | E175: 01342 | F175: 34.83 | G175: Solar | H175: 22B1 | I175: 2012-09-06 | J175: 2012-11-09 | K175: =NETWORKDAYS(I175,J175,MALegalHolidays) -> 46 | M175: 46 | N175: 2012-11-12 | O175: 2012-11-19 | P175: =NETWORKDAYS(N175,O175,MALegalHolidays) -> 5 | Q175: 0 | R175: 5 | AM175: 2012-11-26 | AO175: not supplied | AP175: No | AQ175: EXP | AX175: 2012-12-14 | AY175: 2013-01-03 | AZ175: 2013-01-03 | BA175: on line
B176: WMECO | C176: Russell | D176: 6A357-2012 | E176: 01071 | F176: 125 | G176: Solar | H176: 19J2 | I176: 2012-09-17 | J176: 2012-10-04 | K176: =NETWORKDAYS(I176,J176,MALegalHolidays) -> 14 | L176: 2 | M176: 12 | N176: 2012-11-05 | O176: 2012-11-06 | P176: =NETWORKDAYS(N176,O176,MALegalHolidays) -> 2 | Q176: 0 | R176: 2 | AC176: 2013-03-18 | AD176: 2013-09-03 | AE176: =NETWORKDAYS(AC176,AD176,MALegalHolidays) -> 117 | AF176: 0 | AG176: 117 | AH176: 2013-09-18 | AI176: 2013-10-10 | AJ176: =NETWORKDAYS(AH176,AI176,MALegalHolidays) -> 17 | AK176: 0 | AL176: 17 | AM176: 2013-12-10 | AO176: 2012-11-08 | AP176: Yes | AQ176: STD | BA176: Cust decided on own Impact Study instead of joint study, study in progress. Stand alone generation. New construction. First site visit 6/25/13, second site visit to design new service 7/1/13. Sent prices for two options for upgrades/new service 7/24/13-waiting for customer to contact WMECO with their decision on how to move forward with project. conf cal w/ Paradise 8/21/13 customer needs to decide on option. Customer decided upon a primary metered service. Sent out Detailed Study Agreement for signature 9/3/13. Customer sent signed agreement and first check 9/18/13, work order writing underway. Customer is still deciding on option for interconnection service. Sent Draft IA for review 10/18/13. Sent IA for signature. Customer cancelled project.
B177: WMECO | C177: Middlefield | D177: 6B190-2012 | E177: 01243 | F177: 10.965 | G177: Solar | H177: 18C2 | I177: 2012-09-24 | J177: 2012-10-17 | K177: =NETWORKDAYS(I177,J177,MALegalHolidays) -> 17 | L177: 0 | M177: 17 | AM177: 2013-01-24 | AO177: 2012-11-24 | AP177: No | AQ177: EXP | AX177: 2013-06-18 | AY177: 2013-06-20 | AZ177: 2013-06-20 | BA177: On Line 6/20/13.
B178: WMECO | C178: Westhampton | D178: 6A363-2012 | E178: 01027 | F178: 12.9 | G178: Solar | H178: 15A3 | I178: 2012-10-01 | J178: 2012-10-01 | K178: =NETWORKDAYS(I178,J178,MALegalHolidays) -> 1 | M178: 1 | AM178: 2012-11-27 | AO178: 2012-09-28 | AP178: No | AQ178: EXP | AX178: 2012-12-26 | AY178: 2012-12-31 | AZ178: 2012-12-31 | BA178: on line
B179: WMECO | C179: Pittsfield | D179: 6B194-2012 | E179: 01201 | F179: 23.22 | G179: Solar | H179: 30B4 | I179: 2012-10-02 | J179: 2012-11-15 | K179: =NETWORKDAYS(I179,J179,MALegalHolidays) -> 31 | M179: 31 | N179: 2012-11-16 | P179: =NETWORKDAYS(N179,O179,MALegalHolidays) -> -29441 | AM179: 2013-04-11 | AO179: not supplied | AP179: No | AQ179: EXP | AX179: 2013-05-02 | AY179: 2013-05-03 | AZ179: 2013-05-03 | BA179: Was third party owned. Single phase inverters on three phase service. On line.
B180: WMECO | C180: Pittsfield | D180: 6B195-2012 | E180: 01201 | F180: 18.06 | G180: Solar | H180: 30B4 | I180: 2012-10-02 | J180: 2012-11-13 | K180: =NETWORKDAYS(I180,J180,MALegalHolidays) -> 29 | M180: 29 | N180: 2012-11-14 | P180: =NETWORKDAYS(N180,O180,MALegalHolidays) -> -29439 | AM180: 2013-04-11 | AO180: not supplied | AP180: No | AQ180: EXP | AX180: 2013-05-02 | AY180: 2013-05-03 | AZ180: 2013-05-03 | BA180: Was third party owned. On line.
B181: WMECO | C181: Ludlow | D181: 6S144-2012 | E181: 01056 | F181: 600 | G181: Diesel | H181: 27A4 | I181: 2012-10-19 | J181: 2012-11-15 | K181: =NETWORKDAYS(I181,J181,MALegalHolidays) -> 19 | L181: 0 | M181: 19 | N181: 2012-11-27 | O181: 2013-06-21 | P181: =NETWORKDAYS(N181,O181,MALegalHolidays) -> 142 | Q181: 40 | R181: 102 | AM181: 2013-07-03 | AO181: 2012-11-12 | AP181: No | AQ181: EXP | AX181: 2013-07-29 | AY181: 2013-07-30 | AZ181: 2013-08-01 | BA181: May not export. Closed transition emergency generator. Generator to be interconnected with Big Y service, cust on line 7/30/13. On line 8/7/13.
B182: WMECO | C182: Pittsfield | D182: 6B225-2012 | E182: 01201 | F182: 23.22 | G182: Solar | H182: 30BNW_1 | I182: 2012-10-23 | J182: 2012-11-07 | K182: =NETWORKDAYS(I182,J182,MALegalHolidays) -> 12 | M182: 12 | N182: 2012-11-08 | P182: =NETWORKDAYS(N182,O182,MALegalHolidays) -> -29436 | AM182: 2013-03-21 | AO182: not supplied | AP182: No | AQ182: EXP | AX182: 2013-04-01 | AY182: 2013-04-05 | AZ182: 2013-04-05 | BA182: On line. Single phase inverters on three phase service.
B183: WMECO | C183: Pittsfield | D183: 6B234-2012 | E183: 01201 | F183: 19.78 | G183: Solar | H183: 30B7 | I183: 2012-11-16 | J183: 2013-02-21 | K183: =NETWORKDAYS(I183,J183,MALegalHolidays) -> 64 | L183: 28 | M183: 36 | N183: 2013-02-22 | O183: 2013-02-22 | P183: =NETWORKDAYS(N183,O183,MALegalHolidays) -> 1 | Q183: 0 | R183: 1 | AM183: 2013-04-08 | AO183: 2013-01-21 | AP183: No | AQ183: EXP | AX183: 2014-03-03 | AY183: 2014-03-05 | AZ183: 2014-03-05 | BA183: on line
B184: WMECO | C184: Hadley | D184: 6A381-2012 | E184: 01035 | F184: 760 | G184: Solar | H184: 17K5 | I184: 2012-11-21 | J184: 2013-07-30 | K184: =NETWORKDAYS(I184,J184,MALegalHolidays) -> 170 | L184: 2 | M184: 168 | N184: 2012-11-30 | O184: 2013-09-10 | P184: =NETWORKDAYS(N184,O184,MALegalHolidays) -> 194 | Q184: 153 | R184: 41 | X184: 2013-01-31 | Y184: 2013-01-31 | Z184: =NETWORKDAYS(X184,Y184,MALegalHolidays) -> 1 | AA184: 0 | AB184: 1 | AC184: 2013-10-08 | AD184: 2013-11-25 | AE184: =NETWORKDAYS(AC184,AD184,MALegalHolidays) -> 33 | AF184: 2 | AG184: 31 | AO184: 2013-12-15 | AP184: Yes | AQ184: STD | BA184: Stand alone generation. New construction. May be third party owned. Scoping meeting held. Project on hold (2/14/13), customer needs to submit option because of inverter change. Purge letter sent to Int Cust 5/20/13. Rcvd new option 5/28/13 from customer. Need to perform initial review of new option. New project size 10 kW larger than original. Design 750 kW or 760 kW. Highest design listed. 8/20/13 call with designer - Customer sending new option. Recieved new option, need to make project smaller due to wetlands. Customer informed WMECO that they would move forward with the 760 kW project on 9/4/13. Waiting for Customer to revise drawings. Customer wants the Impact Study to inform them of the size project that can be installed without significant system upgrades. Waiting for customer to submit correct site plan and one line. Sent Impact Study agreement for signature 9/26/13. Still waiting for revised project information. Received updated info. Received Impact Study agreement and first check. Sent Impact Study Report and Detailed Study Agreement to Customer. Sents Early ISA to Customer for signature and received signed early ISA from Customer 12/19/13. Detailed Study was sent out for signature, Customer has not returned signed agreement. Project cancelled by Interconnecting Customer.
B185: WMECO | C185: Hadley | D185: 6A382-2012 | E185: 01035 | F185: 760 | G185: Solar | H185: 17K5 | I185: 2012-11-21 | J185: 2012-11-29 | K185: =NETWORKDAYS(I185,J185,MALegalHolidays) -> 5 | L185: 2 | M185: 3 | N185: 2012-11-30 | O185: 2013-01-31 | P185: =NETWORKDAYS(N185,O185,MALegalHolidays) -> 42 | Q185: 0 | R185: 42 | X185: 2013-01-31 | Y185: 2013-01-31 | Z185: =NETWORKDAYS(X185,Y185,MALegalHolidays) -> 1 | AA185: 0 | AB185: 1 | AO185: 2013-12-15 | AP185: Yes | AQ185: STD | BA185: Stand alone generation. New construction. May be third party owned. Scoping meeting held. Project on hold (2/14/13), customer needs to submit option because of inverter change. Purge letter sent to Int Cust 5/20/13. Rcvd new option 5/28/13 from customer. Need to perform initial review of new option. New project size 10 kW larger than original. Design 750 kW or 760 kW. Highest design listed. 8/20/13 call with deigner - Customer sending new option. Customer sent e-mail 8/29/13 that this project has been cancelled.
B186: WMECO | C186: Lanesborough | D186: 6B236-2012 | E186: 01237 | F186: 20.2 | G186: Solar | H186: 15E1 | I186: 2012-11-21 | J186: 2012-12-03 | K186: =NETWORKDAYS(I186,J186,MALegalHolidays) -> 7 | L186: 0 | M186: =IF(K186>0,K186-L186," ") -> 7 | N186: 2012-11-22 | O186: 2012-11-22 | P186: =NETWORKDAYS(N186,O186,MALegalHolidays) -> 0 | Q186: 0 | R186: =IF(P186>0,P186-Q186," ") ->  | W186: =IF(U186>0,U186-V186," ") ->  | AB186: =IF(Z186>0,Z186-AA186," ") ->  | AG186: =IF(AE186>0,AE186-AF186," ") ->  | AL186: =IF(AJ186>0,AJ186-AK186," ") ->  | AO186: 2013-02-07 | AP186: TBD | AQ186: EXP | AW186: =IF(AU186>0,AU186-AV186," ") ->  | BA186: Cancelled. New application submitted
B187: WMECO | C187: Springfield | D187: 6S149-2012 | E187: 01105 | F187: 5000 | G187: Natural Gas / Diesel | H187: 08C21, 08C23, 21S3 | I187: 2012-11-26 | L187: 208 | AO187: 2012-10-15 | AP187: TBD | AQ187: STD | BA187: cancelled
B188: WMECO | C188: Pittsfield | D188: 6B238-2012 | E188: 01201 | F188: 45.795 | G188: Solar | H188: 30B4 | I188: 2012-11-27 | J188: 2012-12-03 | K188: =NETWORKDAYS(I188,J188,MALegalHolidays) -> 5 | M188: 5 | N188: 2012-12-04 | O188: 2013-06-27 | P188: =NETWORKDAYS(N188,O188,MALegalHolidays) -> 141 | Q188: 46 | R188: 95 | AM188: 2013-08-19 | AO188: 2012-11-30 | AP188: TBD | AQ188: EXP | AX188: 2013-09-29 | AY188: 2013-09-30 | AZ188: 2013-09-30 | BA188: Customer is on line 9/30/13.
B189: WMECO | C189: Southampton | D189: 6A384-2012 | E189: 01073 | F189: 600 | G189: Diesel | H189: 15A1 | I189: 2012-12-04 | J189: 2012-12-07 | K189: =NETWORKDAYS(I189,J189,MALegalHolidays) -> 4 | L189: 0 | M189: 4 | N189: 2013-06-10 | O189: 2013-06-21 | P189: =NETWORKDAYS(N189,O189,MALegalHolidays) -> 9 | Q189: 8 | R189: 1 | AM189: 2013-07-03 | AO189: 2012-12-31 | AP189: TBD | AQ189: EXP | AX189: 2013-07-29 | AY189: 2013-07-30 | AZ189: 2013-07-30 | BA189: Will not export. Closed transition emergency generator. Generator to be interconnected with Big Y service, Customer on line, 7/30/13.
B190: WMECO | C190: Pittsfield | D190: 6B240-2012 | E190: 01201 | F190: 11.4 | G190: Solar | H190: 30B3 | I190: 2012-12-05 | J190: 2013-03-13 | K190: =NETWORKDAYS(I190,J190,MALegalHolidays) -> 67 | L190: 33 | M190: 34 | N190: 2013-03-14 | O190: 2013-04-08 | P190: =NETWORKDAYS(N190,O190,MALegalHolidays) -> 18 | Q190: 0 | R190: 18 | AM190: 2013-04-09 | AO190: 2013-01-21 | AP190: TBD | AQ190: EXP | BA190: Cancelled. New application submitted
B191: WMECO | C191: Montague | D191: 6F410-2012 | E191: 01351 | F191: 11.4 | G191: Solar | H191: 21C7 | I191: 2012-12-13 | J191: 2013-02-12 | K191: =NETWORKDAYS(I191,J191,MALegalHolidays) -> 41 | M191: 41 | N191: 2013-02-12 | O191: 2013-02-12 | P191: =NETWORKDAYS(N191,O191,MALegalHolidays) -> 1 | Q191: 0 | R191: 1 | AM191: 2013-03-19 | AO191: 2013-02-01 | AP191: No | AQ191: EXP | AX191: 2013-04-30 | AY191: 2013-05-03 | AZ191: 2013-05-03 | BA191: on line
B192: WMECO | C192: Amherst | D192: 6A385-2012 | E192: 01002 | F192: 19.35 | G192: Solar | H192: 17K2 | I192: 2012-12-17 | J192: 2013-02-05 | K192: =NETWORKDAYS(I192,J192,MALegalHolidays) -> 34 | M192: 34 | N192: 2013-02-05 | O192: 2013-02-12 | P192: =NETWORKDAYS(N192,O192,MALegalHolidays) -> 6 | Q192: 0 | R192: 6 | AM192: 2013-02-14 | AO192: not supplied | AP192: No | AQ192: EXP | AX192: 2013-03-29 | AY192: 2013-04-01 | AZ192: 2013-04-01 | BA192: Cust made change to service. On line.
B193: WMECO | C193: Springfield | D193: 6S154-2012 | E193: 01111 | F193: 5000 | G193: Diesel | H193: 5J14 | I193: 2012-12-17 | J193: 2013-04-19 | K193: =NETWORKDAYS(I193,J193,MALegalHolidays) -> 85 | L193: 0 | M193: 85 | N193: 2013-05-13 | O193: 2013-10-28 | P193: =NETWORKDAYS(N193,O193,MALegalHolidays) -> 116 | Q193: 45 | R193: 71 | X193: 2013-04-22 | Y193: 2013-04-22 | Z193: =NETWORKDAYS(X193,Y193,MALegalHolidays) -> 1 | AA193: 0 | AB193: 1 | AC193: 2013-10-28 | AD193: 2013-11-13 | AE193: =NETWORKDAYS(AC193,AD193,MALegalHolidays) -> 12 | AF193: 0 | AG193: 12 | AM193: 2014-01-09 | AO193: not supplied | AP193: TBD | AQ193: STD | AX193: 2014-11-13 | AY193: 2014-11-30 | AZ193: 2014-12-01 | BA193: Closed transition generator. Will export 250 kW for 10 seconds via reverse power relay. Initial review done. Waiting for cutomer to send revised drawings. Protection review done, need revised info from Customer. Revised info sent is O.K. Sent Draft IA to Customer for review. Sent revised Draft IA for review 11/18/13. Exhibit G for signature sent to Customer 1/9/14. Waiting on Customer for relay test results and final doucumentation to peform a Witness Test. Witness Test originally scheduled for 11/23/14 but Customer rescheduled for 11/30/14. Witness Test originally scheduled for 11/23/14 but Customer rescheduled for 11/30/14. Witness Test performed. Generators on line.
B194: WMECO | C194: Amherst | D194: 6A387-2012 | E194: 01059 | F194: 3000 | G194: Solar | H194: 18G7 | I194: 2012-12-26 | L194: 148 | AO194: 2013-07-01 | AP194: Yes | AQ194: STD | BA194: Stand alone generation. New construction. Third party owned. Held Scoping meeting. Interconnecint Customer may submit options. Need updated drawings and options to continue. Withdrawn
B195: WMECO | C195: Richmond | D195: 6B254-2013 | E195: 01254 | F195: 11.2 | G195: Solar | H195: 30B7 | I195: 2013-01-08 | J195: 2013-02-20 | K195: =NETWORKDAYS(I195,J195,MALegalHolidays) -> 30 | L195: 2 | M195: 28 | N195: 2013-02-21 | O195: 2013-03-11 | P195: =NETWORKDAYS(N195,O195,MALegalHolidays) -> 13 | Q195: 0 | R195: 13 | AM195: 2013-03-14 | AO195: 2013-03-13 | AP195: No | AQ195: EXP | BA195: Cancelled. New Simplified application submitted.
B196: WMECO | C196: West Springfield | D196: 6S155-2013 | E196: 01089 | F196: 16.985 | G196: Solar | H196: 21N9 | I196: 2013-01-10 | J196: 2013-03-06 | K196: =NETWORKDAYS(I196,J196,MALegalHolidays) -> 38 | L196: 1 | M196: 37 | N196: 2013-03-07 | O196: 2013-03-07 | P196: =NETWORKDAYS(N196,O196,MALegalHolidays) -> 1 | Q196: 0 | R196: 1 | AM196: 2013-04-01 | AO196: 2013-01-01 | AP196: No | AQ196: EXP | AX196: 2013-05-08 | AY196: 2013-05-09 | AZ196: 2013-05-09 | BA196: on line
B197: WMECO | C197: Pittsfield | D197: 6B257-2013 | E197: 01201 | F197: 21.93 | G197: Solar | H197: 30B4 | I197: 2013-01-16 | J197: 2013-01-23 | K197: =NETWORKDAYS(I197,J197,MALegalHolidays) -> 5 | L197: 0 | M197: 5 | N197: 2013-01-24 | O197: 2013-01-24 | P197: =NETWORKDAYS(N197,O197,MALegalHolidays) -> 1 | Q197: 0 | R197: 1 | AM197: 2013-07-08 | AO197: not supplied | AP197: TBD | AQ197: EXP | AX197: 2013-10-09 | AY197: 2013-10-10 | AZ197: 2013-10-10 | BA197: on line 10/10/13.
B198: WMECO | C198: Bernardston | D198: 6F432-2013 | E198: 01337 | F198: 31.39 | G198: Solar | H198: 21B8 | I198: 2013-02-01 | J198: 2013-03-18 | K198: =NETWORKDAYS(I198,J198,MALegalHolidays) -> 31 | L198: 4 | M198: 27 | N198: 2013-03-19 | O198: 2013-04-03 | P198: =NETWORKDAYS(N198,O198,MALegalHolidays) -> 12 | Q198: 5 | R198: 7 | AM198: 2013-04-08 | AO198: 2013-05-01 | AP198: Yes | AQ198: EXP | AX198: 2013-05-31 | AY198: 2013-06-05 | AZ198: 2013-06-05 | BA198: on line
B199: WMECO | C199: Hadley | D199: 6A405-2013 | E199: 01035 | F199: 833 | G199: Solar | H199: 18G4 | I199: 2013-02-11 | J199: 2013-06-19 | K199: =NETWORKDAYS(I199,J199,MALegalHolidays) -> 89 | L199: 26 | M199: 63 | N199: 2013-07-09 | O199: 2013-07-12 | P199: =NETWORKDAYS(N199,O199,MALegalHolidays) -> 4 | Q199: 0 | R199: 4 | X199: 2013-07-12 | Y199: 2013-07-12 | Z199: =NETWORKDAYS(X199,Y199,MALegalHolidays) -> 1 | AA199: 0 | AB199: 1 | AC199: 2013-10-07 | AD199: 2013-11-25 | AE199: =NETWORKDAYS(AC199,AD199,MALegalHolidays) -> 34 | AF199: 0 | AG199: 34 | AM199: 2013-12-23 | AO199: 2013-12-15 | AP199: Yes | AQ199: STD | BA199: Stand alone generation. New construction. May be third party owned. Will not be third party owned per Customer. Waiting for Customer to revise drawings. Customer wants the Impact Study to inform them of the size project that can be installed without significant system upgrades. Waiting for Customer to supply revised info. Interconnecting Customer wants Impact Study to study 833, 500 and 333 kW projects or other size that will not require significant upgrades for other than the interconnection service. If Impact Study determines project size other than the original submitted inverters, the Interconneting Customer will need to submit new application package and fee and the DG process starts over. Sent Joint Impact Study to Interconnecting Customer 10/2/13 for 6A405-2013 & 6A415-2013 total cost $33,000. Received Impact Study agreement and first check. Sent Impact Study Report and Detailed Study Agreement to Customer. Sent Early ISA to Customer for signature 12/23/13, recieved signed Early ISA from Customer 12/28/13. Detailed Study agreement was sent out for signature, Customer has not returned signed agreement. Customer wanted to interconnect this and the 6A415-2013 project at one interconnection point, WMECO sent them an estimate for this design, the Customer has not decided whether to go with one interconnection point or to only build the 6A415-2013 project. Customer had an extension for the Detailed Syudy phase. Extension expired, WMECO DG sent e-mail to Customer that this project is withdrawn for the interconnection queue.
B200: WMECO | C200: Hadley | D200: 6A408-2013 | E200: 01035 | F200: 2730 | G200: Solar | H200: 17K1 | I200: 2013-02-14 | J200: 2013-03-29 | K200: =NETWORKDAYS(I200,J200,MALegalHolidays) -> 31 | L200: 1 | M200: 30 | N200: 2013-04-01 | P200: =NETWORKDAYS(N200,O200,MALegalHolidays) -> -29531 | Q200: 93 | AO200: 2013-10-13 | AP200: Yes | AQ200: STD | BA200: Sent email to schedule Scoping Mtg. Stand alone generation. New construction. May be third party owned. Held Scoping meeting. Need decsision from Interconnecting Customer on how they will move forward. Cancelled
... 1479 more rows

Sheet Sheet1
A1: DOER Status | B1: Raw Data Enterprise Report Status
A2: Online | B2: Application Completed/Closed
A3: Application Review | B3: Awaiting Work Order Number
A4: Application Review | B4: Eversource Waiting For Payment
A5: Application Review | B5: Incomplete Application Customer Action Required
A6: Application Review | B6: Awaiting App Fee and/or Further Info
A7: Application Review | B7: Awaiting Fee
A8: Technical Review | B8: Eversource Initiated Technical Review
A9: Technical Review | B9: Eversource Technical Review Completed
A10: Technical Review | B10: Initiate Additional Technical Review
A11: Technical Review | B11: Additional Technical Details Required - Customer Action Required
A12: Technical Review | B12: Additional Details Required for CR - Customer Action Required
A13: Technical Review | B13: Eversource Review Schedule Z
A14: Technical Review | B14: Eversource QF - Schedule Z Review
A15: Technical Review | B15: Eversource Initiate Detailed Study
A16: Technical Review | B16: Additional Technical Review Completed
A17: Technical Review | B17: Initiate Application Additional Review
A18: Engineering Review | B18: Awaiting Response and/or Cost Estimates from Eng
A19: Engineering Review | B19: Eng Stage: Awaiting Customer's Response/Docs
A20: Engineering Review | B20: Engineering Review Stage
A21: Engineering Review | B21: Engineering Screen Review
A22: Engineering Review | B22: Engineering Screen Review Desn1 Stage
A23: Engineering Review | B23: Eng Screen Review: Awaiting Customer's Response/Docs
A24: Impact Study | B24: Eng. Impact Study
A25: Impact Study | B25: Eng Impct Stdy:Awaiting Customers Response/Doc
A26: Impact Study | B26: Awaiting Impact Study WO
A27: Impact Study | B27: Awaiting Impact Study Fee & Agreement
A28: Impact Study | B28: Impact Study Stage
A29: Impact Study | B29: Impact Study Started
A30: Impact Study | B30: Awaiting Maximo WO
A31: Impact Study | B31: Impact Study Hold
A32: ISA Agreement | B32: ISA Received/Signed
A33: ISA Agreement | B33: ISA sent
A34: ISA Agreement | B34: Awaiting ISA Receipt/Approval
A35: ISA Agreement | B35: Amended ISA Agreement - Customer Action Required
A36: ISA Agreement | B36: Customer ISA eSignature Completed
A37: ISA Agreement | B37: Amended ISA Agreement Customer Action Required
A38: ISA Agreement | B38: Missing Agreement Sign Customer Action Required
A39: ISA Agreement | B39: Eversource Sent ISA Agreement - Customer Action Required
A40: ISA Agreement | B40: Customer Accepted ISA Agreement
A41: Withdrawn | B41: Application Withdrawn
A42: Design Stage | B42: Design Approval
A43: Construction Stage | B43: Eversource Initiated Construction
A44: Meter | B44: Eversource Initiate Meter Installation
A45: Meter | B45: Meter Review
A46: Meter | B46: Wiring Issues
A47: Permission to Operate | B47: Ready for PTO
A48: Permission to Operate | B48: Permission to Operate
A49: Permission to Operate | B49: Final Close Out Documents - Customer Action Required
A50: Compliances Documents | B50: Submit Compliances Documents
A51: Compliances Documents | B51: Missing Documents - Customer Action Required
A52: Compliances Documents | B52: Awaiting Completion Docs
A53: Compliances Documents | B53: Awaiting Completion Docs and NSTARwork completion
A54: Compliances Documents | B54: Missing Documents - Customer Action Required
A55: Compliances Documents | B55: Missing Agreement Sign - Customer Action Required
A56: Compliances Documents | B56: Incomplete Application - Customer Action Required
A57: Compliances Documents | B57: Initiated Eversource Document Verification
A58: Compliances Documents | B58: Waiting for Customer's Response / Revised Docs
A59: Witness Test | B59: Witness Test Awaiting Cust Response/Doc
A60: Customer Cost | B60: Customer Cost
A61: Cust Docs | B61: Cust Docs
A62: Decommissioned | B62: Decommissioned
A63: Detailed Study Stage | B63: Detailed Study Stage
A64: Exhibit E Agreement | B64: Exhibit E Agreement - Customer Action Required
A65: Field Com | B65: Field Com
A66: Cluster Study | B66: hold cluster
A67: In Queue | B67: In Queue
A68: Rights & Rights/Customer Cost | B68: Same as the status
A69: Study | B69: Waiting for the Study of a Nearby System
A70: In Queue
A71: Compliances Documents | B71: Missing Schedule Z Details - Customer Action Required
A72: On Hold | B72: On Hold
A73: Compliances Documents | B73: Request Customer Care For Additional Details
A74: ISA Agreement | B74: Request ISA - Customer Action Required
A75: Compliances Documents | B75: Supplemental Review Completed
A76: Meter | B76: Wiring Issue - Customer Action Required
A77: Compliance Documents | B77: Request Project Changes - Customer Action Required
A78: Application Review | B78: Eversource Perform Initial Review
A79: Technical Review | B79: Post ISA Technical Review
A80: Technical Review | B80: Upload Technical Documents Customer Action Required
A81: Compliance Documents | B81: Upload Technical Documents (Impact Study)– Customer Action Required
A82: Impact Study | B82: Impact Study Review
A83: ISA Agreement | B83: Permission To Install/ISA Approval
A84: Impact Study | B84: Impact Study Completed
A85: Cancelled | B85: Cancelled
A86: On Hold | B86: CIP On Hold
A87: ISA Agreement | B87: Awaiting Supplemental WO
A88: Application Review | B88: Customer Exhibit D eSignature Completed
A89: Application Review | B89: Eversource Waiting for Supp Review Check
A90: Application Review | B90: Exhibit D Agreement Customer Action Required
A91: Impact Study | B91: Impact Study Approval
A92: Meter Review Rejected - Customer Action | B92: Meter Review Rejected - Customer Action Required
A93: Supplemental Designer | B93: Supplemental Designer Review
A94: Transmission | B94: Transmission Study
A95: Supplemental Review | B95: Supplemental Review Started

Sheet Holiday
B2: Holiday List 2012-2014
B3: (official Massachusetts Legal Holidays - Sec of State Office)
B4: And WMECO Holidays
B5: New Year’s Day | C5: 2012-01-02
B6: Martin Luther King Jr. Birthday | C6: 2012-01-16
B7: Washington’s Birthday | C7: 2012-02-20
B8: Evacuation Day | C8: 2012-03-17
B9: Patriots' Day | C9: 2012-04-16
B10: Memorial Day | C10: 2012-05-28
B11: Bunker Hill Day | C11: 2012-06-17
B12: Independence Day | C12: 2012-07-04
B13: Labor Day | C13: 2012-09-03
B14: Columbus Day | C14: 2012-10-08
B15: Veterans’ Day | C15: 2012-11-12
B16: Thanksgiving Day | C16: 2012-11-22
B17: Day after Thanksgiving Day WMECO | C17: 2012-11-23
B18: Christmas Day | C18: 2012-12-25
B19: New Year’s Day | C19: 2013-01-01
B20: Martin Luther King Jr. Birthday | C20: 2013-01-21
B21: Washington’s Birthday | C21: 2013-02-18
B22: Evacuation Day | C22: 2013-03-17
B23: Patriots' Day | C23: 2013-04-15
B24: Memorial Day | C24: 2013-05-27
B25: Bunker Hill Day | C25: 2013-06-17
B26: Independence Day | C26: 2013-07-04
B27: Labor Day | C27: 2013-09-02
B28: Columbus Day | C28: 2013-10-14
B29: Veterans’ Day | C29: 2013-11-11
B30: Thanksgiving Day | C30: 2013-11-28
B31: Day after Thanksgiving Day WMECO | C31: 2013-11-29
B32: Christmas Day | C32: 2013-12-25
B33: New Year’s Day | C33: 2014-01-01
B34: Martin Luther King Jr. Birthday | C34: 2014-01-20
B35: Washington’s Birthday | C35: 2014-02-17
B36: Evacuation Day | C36: 2014-03-17
B37: Patriots' Day | C37: 2014-04-21
B38: Memorial Day | C38: 2014-05-26
B39: Bunker Hill Day | C39: 2014-06-17
B40: Independence Day | C40: 2014-07-04
B41: Labor Day | C41: 2014-09-01
B42: Columbus Day | C42: 2014-10-13
B43: Veterans’ Day | C43: 2014-11-11
B44: Thanksgiving Day | C44: 2014-11-27
B45: Christmas Day | C45: 2014-12-25
B46: New Year’s Day | C46: 2015-01-01
B47: Martin Luther King Jr. Birthday | C47: 2015-01-19
B48: Washington’s Birthday | C48: 2015-02-16
B49: Evacuation Day | C49: 2015-03-17
B50: Patriots' Day | C50: 2015-04-20
B51: Memorial Day | C51: 2015-05-25
B52: Bunker Hill Day | C52: 2015-06-17
B53: Independence Day | C53: 2015-07-03
B54: Labor Day | C54: 2015-09-07
B55: Columbus Day | C55: 2015-10-12
B56: Veterans’ Day | C56: 2015-11-11
B57: Thanksgiving Day | C57: 2015-11-26
B58: Christmas Day | C58: 2015-12-25
B59: New Year’s Day | C59: 2016-01-01
B60: Martin Luther King Jr. Birthday | C60: 2016-01-18
B61: Washington’s Birthday | C61: 2016-02-15
B62: Evacuation Day | C62: 2016-03-17
B63: Patriots' Day | C63: 2016-04-18
B64: Memorial Day | C64: 2016-05-30
B65: Bunker Hill Day | C65: 2016-06-17
B66: Independence Day | C66: 2016-07-04
B67: Labor Day | C67: 2016-09-05
B68: Columbus Day | C68: 2016-10-10
B69: Veterans’ Day | C69: 2016-11-11
B70: Thanksgiving Day | C70: 2016-11-24
B71: Christmas Day | C71: 2016-12-26
